Workbook

Sheet 2Ring
A1: 2Ring SKU | B1: SKU Description | C1: NASPO PRICE
A2: 2RC-DW-AMZ | B2: 2Ring Dashboards & Wallboards (DW) Amazon Connect Connector - 1 month subscription for one concurrent agent/supervisor | C2: $9.89
A3: 2RC-DW-AMZ-3Y | B3: 2Ring Dashboards & Wallboards (DW) Amazon Connect Connector - 36 month subscription for one concurrent agent/supervisor (prepaid) | C3: $302.70
A4: 2RC-DW-AMZ-OVR | B4: 2Ring Dashboards & Wallboards (DW) Amazon Connect Connector - 1 month subscription for one concurrent agent/supervisor - overage rate for overcommited seats | C4: $11.87
A5: 2RC-DW-F9 | B5: 2Ring Dashboards & Wallboards (DW) Five9 Connector - 1 month subscription for one concurrent agent/supervisor | C5: $9.89
A6: 2RC-DW-F9-3Y | B6: 2Ring Dashboards & Wallboards (DW) Five9 Connector - 36 month subscription for one concurrent agent/supervisor (prepaid) | C6: $302.70
A7: 2RC-DW-F9-OVR | B7: 2Ring Dashboards & Wallboards (DW) Five9 Connector - 1 month subscription for one concurrent agent/supervisor - overage rate for overcommited seats | C7: $11.87
A8: 2RC-DW-GENC | B8: 2Ring Dashboards & Wallboards (DW) Genesys Cloud Connector - 1 month subscription for one concurrent agent/supervisor | C8: $9.89
A9: 2RC-DW-GENC-OVR | B9: 2Ring Dashboards & Wallboards (DW) Genesys Cloud Connector - 1 month subscription for one concurrent agent/supervisor - overage rate for overcommited seats | C9: $11.87
A10: 2RC-DW-WXCC | B10: 2Ring Dashboards & Wallboards (DW) Cisco WXCC Connector - 1 month subscription for one concurrent agent/supervisor | C10: $9.89
A11: 2RC-SERVICES | B11: 2Ring Dashboards & Wallboards (DW) - 2Ring Cloud Activation Services | C11: $3,165.44
A12: 2RC-SERVICES-MH | B12: 2Ring Manhour Rate for additional training sessions, change requests, and other configuration services | C12: $395.68

Sheet Abnormal Security
A1: ManufacturerPartNo | B1: ProductDescription | C1: NASPO Price
A2: IES | B2: Abnormal Inbound Email Security | C2: $105.09
A3: AISM | B3: Abnormal AI Security Mailbox | C3: $31.06
A4: EPR | B4: Abnormal Email Productivity | C4: $31.06
A5: CORE-ATO | B5: Abnormal Core Account Takeover Prot | C5: $31.06
A6: CORE-SPM | B6: Abnormal Core Security Posture Mgmt | C6: $31.06
A7: IES-T3 | B7: Abnormal Inbound Email Security - T3 | C7: $52.55
A8: AISM-T3 | B8: Abnormal AI Security Mailbox - T3 | C8: $15.53
A9: EPR-T3 | B9: Abnormal Email Productivity - T3 | C9: $15.53
A10: CORE-ATO-T3 | B10: Abnormal Core Account Takeover - T3 | C10: $15.53
A11: CORE-SPM-T3 | B11: Abnormal Core Security Pos Mgmt - T3 | C11: $15.53
A12: AMX | B12: Abnormal Abuse Mailbox Automation | C12: $31.06
A13: ATO | B13: Abnormal Email Account Takeover Prot | C13: $31.06
A14: SPM | B14: Abnormal Security Posture Management | C14: $31.06
A15: AMX-T3 | B15: Abnormal Abuse Mailbox Auto - T3 | C15: $15.53
A16: ATO-T3 | B16: Abnormal Email Account Takeover - T3 | C16: $15.53
A17: SPM-T3 | B17: Abnormal Security Pos Mgmt - T3 | C17: $15.53
A18: TEAMS-MS | B18: Abnormal Teams Msging Security | C18: $9.89
A19: SLK-MS | B19: Abnormal Slack Msging Security | C19: $9.89
A20: ZOOM-MS | B20: Abnormal Zoom Msging Security | C20: $9.89
A21: TEAMS-MS-T3 | B21: Abnormal Teams Msging Security - T3 | C21: $4.95
A22: SLK-MS-T3 | B22: Abnormal Slack Msging Security - T3 | C22: $4.95
A23: ZOOM-MS-T3 | B23: Abnormal Zoom Msging Security - T3 | C23: $4.95
A24: SLK-SPM | B24: Abnormal Slack Security Pos Mgmt | C24: $9.89
A25: ZOOM-SPM | B25: Abnormal Zoom Security Pos Mgmt | C25: $9.89
A26: SLK-SPM-T3 | B26: Abnormal Slack Security Pos Mgm - T3 | C26: $4.95
A27: ZOOM-SPM-T3 | B27: Abnormal Zoom Security Pos Mgmt - T3 | C27: $4.95
A28: ZOOM-ATO | B28: Abnormal Zoom Account Takeover | C28: $9.89
A29: SLK-ATO | B29: Abnormal Slack Account Takeover | C29: $9.89
A30: SFDC-ATO | B30: Abnormal SFDC Account Takeover | C30: $9.89
A31: JIRA-ATO | B31: Abnormal Jira Account Takeover | C31: $9.89
A32: DSIGN-ATO | B32: Abnormal DSign Account Takeover | C32: $9.89
A33: WKDY-ATO | B33: Abnormal Wkdy Account Takeover | C33: $9.89
A34: BOX-ATO | B34: Abnormal Box Account Takeover | C34: $9.89
A35: DBOX-ATO | B35: Abnormal DBox Account Takeover | C35: $9.89
A36: ZDESK-ATO | B36: Abnormal ZDesk Account Takeover | C36: $9.89
A37: SNOW-ATO | B37: Abnormal SNow Account Takeover | C37: $9.89
A38: COLLAB-ATO | B38: Abnormal Colab Account Takeover | C38: $39.57
A39: CLOUD-ATO | B39: Abnormal Cloud Account Takeover | C39: $69.24
A40: COMPLETE-ATO | B40: Abnormal Comp Account Takeover | C40: $118.70
A41: ZOOM-ATO-T3 | B41: Abnormal Zoom Account Takeover - T3 | C41: $4.95
A42: SLK-ATO-T3 | B42: Abnormal Slack Account Takeover - T3 | C42: $4.95
A43: SFDC-ATO-T3 | B43: Abnormal SFDC Account Takeover - T3 | C43: $4.95
A44: JIRA-ATO-T3 | B44: Abnormal Jira Account Takeover - T3 | C44: $4.95
A45: DSIGN-ATO-T3 | B45: Abnormal DSign Account Takeover - T3 | C45: $4.95
A46: WKDY-ATO-T3 | B46: Abnormal Wkdy Account Takeover - T3 | C46: $4.95
A47: BOX-ATO-T3 | B47: Abnormal Box Account Takeover - T3 | C47: $4.95
A48: DBOX-ATO-T3 | B48: Abnormal DBox Account Takeover - T3 | C48: $4.95
A49: ZDESK-ATO-T3 | B49: Abnormal ZDesk Account Takeover - T3 | C49: $4.95
A50: SNOW-ATO-T3 | B50: Abnormal SNow Account Takeover - T3 | C50: $4.95
A51: COLLAB-ATO-T3 | B51: Abnormal Colab Account Takeover - T3 | C51: $19.78
A52: CLOUD-ATO-T3 | B52: Abnormal Cloud Account Takeover - T3 | C52: $34.62
A53: COMPLETE-ATO-T3 | B53: Abnormal Comp Account Takeover - T3 | C53: $59.35

Sheet Acqueon
A1: Product Description | B1: Product code | C1: NASPO Price
A3: Acqueon Engagement Core Agent - Named agent | B3: ACQ_AE_Core_01 | C3: $138.60
A4: Acqueon Accelerated Dialing Model Named agent | B4: ACQ_AE_Core_AD_02 | C4: $44.55
A5: Acqueon AI Powered Predictive Models - Named Agent | B5: ACQ_AE_Core_PM_03 | C5: $44.55
A6: Acqueon Compliance Data Package - Named agent | B6: ACQ_AE_Core_CP_04 | C6: $34.65
A7: Acqueon CRM Server Plug-in | B7: ACQ_AE_Core_CRM_05 | C7: $990.00
A8: Acqueon Digital Message Transaction (per 200k transactions) | B8: ACQ_AE_Core_DP_06 | C8: $1,980.00
A9: Acqueon Agent Call Back per concurrent agent | B9: AUN_LIC_CB_AGT - Call | C9: $24.75
A10: Acqueon Engagement - Supervisor license | B10: AUN-S-LIC-SUP - Supervisor | C10: $107.91
A11: Acqueon Engagement - IVR port license for Voice Drop | B11: AUN_S_LIC_IVR - Port License for Voice Drop Campaigns | C11: $59.40
A12: Acqueon EHR Additional Instance (per instance) | B12: ACQ_EHR_AI_01 | C12: $1,980.00
A13: Acqueon EHR Connector named agent | B13: ACQ_EHR_AGNT_02 | C13: $34.65
A14: Acqueon EHR Connector API Integration (per 200k transactions) | B14: ACQ_EHR_API_Hub_03 | C14: $14,850.00
A15: Acqueon Engagement Additional Instance (per instance) | B15: ACQ_AE_Core_ADD_07 | C15: $1,980.00
A16: Acqueon Identity Verification (per transaction) | B16: ACQ_IDVER_01 | C16: $0.99
A17: Acqueon Lead Scoring Module - Named Agent | B17: ACQ_AE_Core_LSM_08 | C17: $24.75
A18: Acqueon Multi-channel Campaign - Named agent | B18: ACQ_AE_Core_MCH_09 | C18: $24.75
A19: Acqueon Professional Services - per day | B19: ACQ_PS_01 | C19: $1,683.00
A20: Acqueon Tuning Implementation | B20: ACQ_PS_Tune_01 | C20: $297,000.00
A21: Acqueon AiQ - Realtime Agent Guidance, Coaching & Scoring | B21: ACQ_AiQ_AGNGUID_01 | C21: $148.50

Sheet Adlumin
A1: Term | B1: Vendor Code | C1: Part Number | D1: Device Band | E1: Product Name | F1: Description 1 | G1: Description 2 | L1: Term | M1: Payment Freq.
B2: MDR COMPLETE
A3: 1 YEAR PRICING | B3: ADLUMIN | C3: A-ADL-MDRC-T01 | D3: 1-74 | E3: ADLUMIN MDR - COMPLETE (DB1:74) | F3: 1YR COMPLETE XDR & MDR | G3: EP/API/SYSLOG + 90 DAY LOGS | H3: $377.63 | I3: 1.08% | J3: =H3*(1-I3) -> $373.55 | K3: P12M | L3: One-time
B4: ADLUMIN | C4: A-ADL-MDRC-T02 | D4: 75-149 | E4: ADLUMIN MDR - COMPLETE (DB75:149) | F4: 1YR COMPLETE XDR & MDR | G4: EP/API/SYSLOG + 90 DAY LOGS | H4: $356.01 | I4: 1.08% | J4: =H4*(1-I4) -> $352.17 | K4: P12M | L4: One-time
B5: ADLUMIN | C5: A-ADL-MDRC-T03 | D5: 150-199 | E5: ADLUMIN MDR - COMPLETE (DB150:199) | F5: 1YR COMPLETE XDR & MDR | G5: EP/API/SYSLOG + 90 DAY LOGS | H5: $296.60 | I5: 1.08% | J5: $293.40 | K5: P12M | L5: One-time
B6: ADLUMIN | C6: A-ADL-MDRC-T04 | D6: 200-299 | E6: ADLUMIN MDR - COMPLETE (DB200:299) | F6: 1YR COMPLETE XDR & MDR | G6: EP/API/SYSLOG + 90 DAY LOGS | H6: $232.43 | I6: 1.08% | J6: $229.92 | K6: P12M | L6: One-time
B7: ADLUMIN | C7: A-ADL-MDRC-T05 | D7: 300-399 | E7: ADLUMIN MDR - COMPLETE (DB300:399) | F7: 1YR COMPLETE XDR & MDR | G7: EP/API/SYSLOG + 90 DAY LOGS | H7: $205.19 | I7: 1.08% | J7: $202.97 | K7: P12M | L7: One-time
B8: ADLUMIN | C8: A-ADL-MDRC-T06 | D8: 400-499 | E8: ADLUMIN MDR - COMPLETE (DB400:499) | F8: 1YR COMPLETE XDR & MDR | G8: EP/API/SYSLOG + 90 DAY LOGS | H8: $177.99 | I8: 1.08% | J8: $176.07 | K8: P12M | L8: One-time
B9: ADLUMIN | C9: A-ADL-MDRC-T07 | D9: 500-599 | E9: ADLUMIN MDR - COMPLETE (DB500:599) | F9: 1YR COMPLETE XDR & MDR | G9: EP/API/SYSLOG + 90 DAY LOGS | H9: $166.86 | I9: 1.08% | J9: $165.06 | K9: P12M | L9: One-time
B10: ADLUMIN | C10: A-ADL-MDRC-T08 | D10: 600-699 | E10: ADLUMIN MDR - COMPLETE (DB600:699) | F10: 1YR COMPLETE XDR & MDR | G10: EP/API/SYSLOG + 90 DAY LOGS | H10: $158.17 | I10: 1.08% | J10: $156.46 | K10: P12M | L10: One-time
B11: ADLUMIN | C11: A-ADL-MDRC-T09 | D11: 700-999 | E11: ADLUMIN MDR - COMPLETE (DB700:999) | F11: 1YR COMPLETE XDR & MDR | G11: EP/API/SYSLOG + 90 DAY LOGS | H11: $142.67 | I11: 1.08% | J11: $141.13 | K11: P12M | L11: One-time
B12: ADLUMIN | C12: A-ADL-MDRC-T10 | D12: 1000-2999 | E12: ADLUMIN MDR - COMPLETE (DB1,000:2,999) | F12: 1YR COMPLETE XDR & MDR | G12: EP/API/SYSLOG + 90 DAY LOGS | H12: $102.75 | I12: 1.08% | J12: $101.64 | K12: P12M | L12: One-time
B13: ADLUMIN | C13: A-ADL-MDRC-T11 | D13: 3000-5999 | E13: ADLUMIN MDR - COMPLETE (DB3,000:5,999) | F13: 1YR COMPLETE XDR & MDR | G13: EP/API/SYSLOG + 90 DAY LOGS | H13: $95.76 | I13: 1.08% | J13: $94.73 | K13: P12M | L13: One-time
B14: ADLUMIN | C14: A-ADL-MDRC-T12 | D14: 6000-8999 | E14: ADLUMIN MDR - COMPLETE (DB6,000:8,999) | F14: 1YR COMPLETE XDR & MDR | G14: EP/API/SYSLOG + 90 DAY LOGS | H14: $91.42 | I14: 1.08% | J14: $90.43 | K14: P12M | L14: One-time
B15: ADLUMIN | C15: A-ADL-MDRC-T13 | D15: 9000+ | E15: ADLUMIN MDR - COMPLETE (DB9,000+) | F15: 1YR COMPLETE XDR & MDR | G15: EP/API/SYSLOG + 90 DAY LOGS | H15: $87.07 | I15: 1.08% | J15: $86.13 | K15: P12M | L15: One-time
A17: 3 YEAR PRICING | B17: ADLUMIN | C17: A-ADL-MDRC-T01-3Y | D17: 1-74 | E17: ADLUMIN MDR - COMPLETE (3YR, DB1:74) | F17: 3YR COMPLETE XDR & MDR | G17: EP/API/SYSLOG + 90 DAY LOGS | H17: $1,132.89 | I17: 1.08% | J17: =H17*(1-I17) -> $1,120.65 | K17: P36M | L17: One-time
B18: ADLUMIN | C18: A-ADL-MDRC-T02-3Y | D18: 75-149 | E18: ADLUMIN MDR - COMPLETE (3YR, DB75:149) | F18: 3YR COMPLETE XDR & MDR | G18: EP/API/SYSLOG + 90 DAY LOGS | H18: $1,068.03 | I18: 1.08% | J18: $1,056.50 | K18: P36M | L18: One-time
B19: ADLUMIN | C19: A-ADL-MDRC-T03-3Y | D19: 150-199 | E19: ADLUMIN MDR - COMPLETE (3YR, DB150:199) | F19: 3YR COMPLETE XDR & MDR | G19: EP/API/SYSLOG + 90 DAY LOGS | H19: $889.80 | I19: 1.08% | J19: $880.19 | K19: P36M | L19: One-time
B20: ADLUMIN | C20: A-ADL-MDRC-T04-3Y | D20: 200-299 | E20: ADLUMIN MDR - COMPLETE (3YR, DB200:299) | F20: 3YR COMPLETE XDR & MDR | G20: EP/API/SYSLOG + 90 DAY LOGS | H20: $697.29 | I20: 1.08% | J20: $689.76 | K20: P36M | L20: One-time
B21: ADLUMIN | C21: A-ADL-MDRC-T05-3Y | D21: 300-399 | E21: ADLUMIN MDR - COMPLETE (3YR, DB300:399) | F21: 3YR COMPLETE XDR & MDR | G21: EP/API/SYSLOG + 90 DAY LOGS | H21: $615.58 | I21: 1.08% | J21: $608.93 | K21: P36M | L21: One-time
B22: ADLUMIN | C22: A-ADL-MDRC-T06-3Y | D22: 400-499 | E22: ADLUMIN MDR - COMPLETE (3YR, DB400:499) | F22: 3YR COMPLETE XDR & MDR | G22: EP/API/SYSLOG + 90 DAY LOGS | H22: $533.98 | I22: 1.08% | J22: $528.21 | K22: P36M | L22: One-time
B23: ADLUMIN | C23: A-ADL-MDRC-T07-3Y | D23: 500-599 | E23: ADLUMIN MDR - COMPLETE (3YR, DB500:599) | F23: 3YR COMPLETE XDR & MDR | G23: EP/API/SYSLOG + 90 DAY LOGS | H23: $500.58 | I23: 1.08% | J23: $495.17 | K23: P36M | L23: One-time
B24: ADLUMIN | C24: A-ADL-MDRC-T08-3Y | D24: 600-699 | E24: ADLUMIN MDR - COMPLETE (3YR, DB600:699) | F24: 3YR COMPLETE XDR & MDR | G24: EP/API/SYSLOG + 90 DAY LOGS | H24: $474.50 | I24: 1.08% | J24: $469.38 | K24: P36M | L24: One-time
B25: ADLUMIN | C25: A-ADL-MDRC-T09-3Y | D25: 700-999 | E25: ADLUMIN MDR - COMPLETE (3YR, DB700:999) | F25: 3YR COMPLETE XDR & MDR | G25: EP/API/SYSLOG + 90 DAY LOGS | H25: $428.01 | I25: 1.08% | J25: $423.39 | K25: P36M | L25: One-time
B26: ADLUMIN | C26: A-ADL-MDRC-T10-3Y | D26: 1000-2999 | E26: ADLUMIN MDR - COMPLETE (3YR, DB1,000:2,999) | F26: 3YR COMPLETE XDR & MDR | G26: EP/API/SYSLOG + 90 DAY LOGS | H26: $308.25 | I26: 1.08% | J26: $304.92 | K26: P36M | L26: One-time
B27: ADLUMIN | C27: A-ADL-MDRC-T11-3Y | D27: 3000-5999 | E27: ADLUMIN MDR - COMPLETE (3YR, DB3,000:5,999) | F27: 3YR COMPLETE XDR & MDR | G27: EP/API/SYSLOG + 90 DAY LOGS | H27: $287.29 | I27: 1.08% | J27: $284.19 | K27: P36M | L27: One-time
B28: ADLUMIN | C28: A-ADL-MDRC-T12-3Y | D28: 6000-8999 | E28: ADLUMIN MDR - COMPLETE (3YR, DB6,000:8,999) | F28: 3YR COMPLETE XDR & MDR | G28: EP/API/SYSLOG + 90 DAY LOGS | H28: $274.25 | I28: 1.08% | J28: $271.29 | K28: P36M | L28: One-time
B29: ADLUMIN | C29: A-ADL-MDRC-T13-3Y | D29: 9000+ | E29: ADLUMIN MDR - COMPLETE (3YR, DB9,000+) | F29: 3YR COMPLETE XDR & MDR | G29: EP/API/SYSLOG + 90 DAY LOGS | H29: $261.21 | I29: 1.08% | J29: $258.39 | K29: P36M | L29: One-time
A31: MONTHLY PRICING | B31: ADLUMIN | C31: A-ADL-MDRC-T01-M | D31: 1-74 | E31: ADLUMIN MDR - COMPLETE (MTHLY, DB1:74) | F31: MTHLY COMPLETE XDR & MDR | G31: EP/API/SYSLOG + 90 DAY LOGS | H31: $36.19 | I31: 1.08% | J31: =H31*(1-I31) -> $35.80 | K31: P12M | L31: Monthly
B32: ADLUMIN | C32: A-ADL-MDRC-T02-M | D32: 75-149 | E32: ADLUMIN MDR - COMPLETE (MTHLY, DB75:149) | F32: MTHLY COMPLETE XDR & MDR | G32: EP/API/SYSLOG + 90 DAY LOGS | H32: $34.12 | I32: 1.08% | J32: $33.75 | K32: P12M | L32: Monthly
B33: ADLUMIN | C33: A-ADL-MDRC-T03-M | D33: 150-199 | E33: ADLUMIN MDR - COMPLETE (MTHLY, DB150:199) | F33: MTHLY COMPLETE XDR & MDR | G33: EP/API/SYSLOG + 90 DAY LOGS | H33: $28.42 | I33: 1.08% | J33: $28.11 | K33: P12M | L33: Monthly
B34: ADLUMIN | C34: A-ADL-MDRC-T04-M | D34: 200-299 | E34: ADLUMIN MDR - COMPLETE (MTHLY, DB200:299) | F34: MTHLY COMPLETE XDR & MDR | G34: EP/API/SYSLOG + 90 DAY LOGS | H34: $22.27 | I34: 1.08% | J34: $22.03 | K34: P12M | L34: Monthly
B35: ADLUMIN | C35: A-ADL-MDRC-T05-M | D35: 300-399 | E35: ADLUMIN MDR - COMPLETE (MTHLY, DB300:399) | F35: MTHLY COMPLETE XDR & MDR | G35: EP/API/SYSLOG + 90 DAY LOGS | H35: $19.66 | I35: 1.08% | J35: $19.45 | K35: P12M | L35: Monthly
B36: ADLUMIN | C36: A-ADL-MDRC-T06-M | D36: 400-499 | E36: ADLUMIN MDR - COMPLETE (MTHLY, DB400:499) | F36: MTHLY COMPLETE XDR & MDR | G36: EP/API/SYSLOG + 90 DAY LOGS | H36: $17.06 | I36: 1.08% | J36: $16.88 | K36: P12M | L36: Monthly
B37: ADLUMIN | C37: A-ADL-MDRC-T07-M | D37: 500-599 | E37: ADLUMIN MDR - COMPLETE (MTHLY, DB500:599) | F37: MTHLY COMPLETE XDR & MDR | G37: EP/API/SYSLOG + 90 DAY LOGS | H37: $15.99 | I37: 1.08% | J37: $15.82 | K37: P12M | L37: Monthly
B38: ADLUMIN | C38: A-ADL-MDRC-T08-M | D38: 600-699 | E38: ADLUMIN MDR - COMPLETE (MTHLY, DB600:699) | F38: MTHLY COMPLETE XDR & MDR | G38: EP/API/SYSLOG + 90 DAY LOGS | H38: $15.16 | I38: 1.08% | J38: $15.00 | K38: P12M | L38: Monthly
B39: ADLUMIN | C39: A-ADL-MDRC-T09-M | D39: 700-999 | E39: ADLUMIN MDR - COMPLETE (MTHLY, DB700:999) | F39: MTHLY COMPLETE XDR & MDR | G39: EP/API/SYSLOG + 90 DAY LOGS | H39: $13.67 | I39: 1.08% | J39: $13.52 | K39: P12M | L39: Monthly
B40: ADLUMIN | C40: A-ADL-MDRC-T10-M | D40: 1000-2999 | E40: ADLUMIN MDR - COMPLETE (MTHLY, DB1,000:2,999) | F40: MTHLY COMPLETE XDR & MDR | G40: EP/API/SYSLOG + 90 DAY LOGS | H40: $9.85 | I40: 1.08% | J40: $9.74 | K40: P12M | L40: Monthly
B41: ADLUMIN | C41: A-ADL-MDRC-T11-M | D41: 3000-5999 | E41: ADLUMIN MDR - COMPLETE (MTHLY, DB3,000:5,999) | F41: MTHLY COMPLETE XDR & MDR | G41: EP/API/SYSLOG + 90 DAY LOGS | H41: $9.18 | I41: 1.08% | J41: $9.08 | K41: P12M | L41: Monthly
B42: ADLUMIN | C42: A-ADL-MDRC-T12-M | D42: 6000-8999 | E42: ADLUMIN MDR - COMPLETE (MTHLY, DB6,000:8,999) | F42: MTHLY COMPLETE XDR & MDR | G42: EP/API/SYSLOG + 90 DAY LOGS | H42: $8.76 | I42: 1.08% | J42: $8.67 | K42: P12M | L42: Monthly
B43: ADLUMIN | C43: A-ADL-MDRC-T13-M | D43: 9000+ | E43: ADLUMIN MDR - COMPLETE (MTHLY, DB9,000+) | F43: MTHLY COMPLETE XDR & MDR | G43: EP/API/SYSLOG + 90 DAY LOGS | H43: $8.34 | I43: 1.08% | J43: $8.25 | K43: P12M | L43: Monthly
B44: MDR BASE
A45: 1 YEAR PRICING | B45: ADLUMIN | C45: A-ADL-MDRB-T01 | D45: 1-74 | E45: ADLUMIN MDR - BASE (DB1:74) | F45: 1YR BASE XDR & MDR | G45: EP/API/NO SYSLOG + 30 DAY LOGS | H45: $226.58 | I45: 1.08% | J45: =H45*(1-I45) -> $224.13 | K45: P12M | L45: One-time
B46: ADLUMIN | C46: A-ADL-MDRB-T02 | D46: 75-149 | E46: ADLUMIN MDR - BASE (DB75:149) | F46: 1YR BASE XDR & MDR | G46: EP/API/NO SYSLOG + 30 DAY LOGS | H46: $213.61 | I46: 1.08% | J46: $211.30 | K46: P12M | L46: One-time
B47: ADLUMIN | C47: A-ADL-MDRB-T03 | D47: 150-199 | E47: ADLUMIN MDR - BASE (DB150:199) | F47: 1YR BASE XDR & MDR | G47: EP/API/NO SYSLOG + 30 DAY LOGS | H47: $177.96 | I47: 1.08% | J47: $176.04 | K47: P12M | L47: One-time
B48: ADLUMIN | C48: A-ADL-MDRB-T04 | D48: 200-299 | E48: ADLUMIN MDR - BASE (DB200:299) | F48: 1YR BASE XDR & MDR | G48: EP/API/NO SYSLOG + 30 DAY LOGS | H48: $139.46 | I48: 1.08% | J48: $137.95 | K48: P12M | L48: One-time
B49: ADLUMIN | C49: A-ADL-MDRB-T05 | D49: 300-399 | E49: ADLUMIN MDR - BASE (DB300:399) | F49: 1YR BASE XDR & MDR | G49: EP/API/NO SYSLOG + 30 DAY LOGS | H49: $123.12 | I49: 1.08% | J49: $121.79 | K49: P12M | L49: One-time
B50: ADLUMIN | C50: A-ADL-MDRB-T06 | D50: 400-499 | E50: ADLUMIN MDR - BASE (DB400:499) | F50: 1YR BASE XDR & MDR | G50: EP/API/NO SYSLOG + 30 DAY LOGS | H50: $106.80 | I50: 1.08% | J50: $105.65 | K50: P12M | L50: One-time
B51: ADLUMIN | C51: A-ADL-MDRB-T07 | D51: 500-599 | E51: ADLUMIN MDR - BASE (DB500:599) | F51: 1YR BASE XDR & MDR | G51: EP/API/NO SYSLOG + 30 DAY LOGS | H51: $100.12 | I51: 1.08% | J51: $99.04 | K51: P12M | L51: One-time
B52: ADLUMIN | C52: A-ADL-MDRB-T08 | D52: 600-699 | E52: ADLUMIN MDR - BASE (DB600:699) | F52: 1YR BASE XDR & MDR | G52: EP/API/NO SYSLOG + 30 DAY LOGS | H52: $94.90 | I52: 1.08% | J52: $93.88 | K52: P12M | L52: One-time
B53: ADLUMIN | C53: A-ADL-MDRB-T09 | D53: 700-999 | E53: ADLUMIN MDR - BASE (DB700:999) | F53: 1YR BASE XDR & MDR | G53: EP/API/NO SYSLOG + 30 DAY LOGS | H53: $85.60 | I53: 1.08% | J53: $84.68 | K53: P12M | L53: One-time
B54: ADLUMIN | C54: A-ADL-MDRB-T10 | D54: 1000-2999 | E54: ADLUMIN MDR - BASE (DB1,000:2,999) | F54: 1YR BASE XDR & MDR | G54: EP/API/NO SYSLOG + 30 DAY LOGS | H54: $61.65 | I54: 1.08% | J54: $60.98 | K54: P12M | L54: One-time
B55: ADLUMIN | C55: A-ADL-MDRB-T11 | D55: 3000-5999 | E55: ADLUMIN MDR - BASE (DB3,000:5,999) | F55: 1YR BASE XDR & MDR | G55: EP/API/NO SYSLOG + 30 DAY LOGS | H55: $57.46 | I55: 1.08% | J55: $56.84 | K55: P12M | L55: One-time
B56: ADLUMIN | C56: A-ADL-MDRB-T12 | D56: 6000-8999 | E56: ADLUMIN MDR - BASE (DB6,000:8,999) | F56: 1YR BASE XDR & MDR | G56: EP/API/NO SYSLOG + 30 DAY LOGS | H56: $54.85 | I56: 1.08% | J56: $54.26 | K56: P12M | L56: One-time
B57: ADLUMIN | C57: A-ADL-MDRB-T13 | D57: 9000+ | E57: ADLUMIN MDR - BASE (DB9,000+) | F57: 1YR BASE XDR & MDR | G57: EP/API/NO SYSLOG + 30 DAY LOGS | H57: $52.24 | I57: 1.08% | J57: $51.68 | K57: P12M | L57: One-time
A59: 3 YEAR PRICING | B59: ADLUMIN | C59: A-ADL-MDRB-T01-3Y | D59: 1-74 | E59: ADLUMIN MDR - BASE (3YR, DB1:74) | F59: 3YR BASE XDR & MDR | G59: EP/API/NO SYSLOG + 30 DAY LOGS | H59: $679.73 | I59: 1.08% | J59: =H59*(1-I59) -> $672.39 | K59: P36M | L59: One-time
B60: ADLUMIN | C60: A-ADL-MDRB-T02-3Y | D60: 75-149 | E60: ADLUMIN MDR - BASE (3YR, DB75:149) | F60: 3YR BASE XDR & MDR | G60: EP/API/NO SYSLOG + 30 DAY LOGS | H60: $640.82 | I60: 1.08% | J60: $633.90 | K60: P36M | L60: One-time
B61: ADLUMIN | C61: A-ADL-MDRB-T03-3Y | D61: 150-199 | E61: ADLUMIN MDR - BASE (3YR, DB150:199) | F61: 3YR BASE XDR & MDR | G61: EP/API/NO SYSLOG + 30 DAY LOGS | H61: $533.88 | I61: 1.08% | J61: $528.11 | K61: P36M | L61: One-time
B62: ADLUMIN | C62: A-ADL-MDRB-T04-3Y | D62: 200-299 | E62: ADLUMIN MDR - BASE (3YR, DB200:299) | F62: 3YR BASE XDR & MDR | G62: EP/API/NO SYSLOG + 30 DAY LOGS | H62: $418.37 | I62: 1.08% | J62: $413.85 | K62: P36M | L62: One-time
B63: ADLUMIN | C63: A-ADL-MDRB-T05-3Y | D63: 300-399 | E63: ADLUMIN MDR - BASE (3YR, DB300:399) | F63: 3YR BASE XDR & MDR | G63: EP/API/NO SYSLOG + 30 DAY LOGS | H63: $369.35 | I63: 1.08% | J63: $365.36 | K63: P36M | L63: One-time
B64: ADLUMIN | C64: A-ADL-MDRB-T06-3Y | D64: 400-499 | E64: ADLUMIN MDR - BASE (3YR, DB400:499) | F64: 3YR BASE XDR & MDR | G64: EP/API/NO SYSLOG + 30 DAY LOGS | H64: $320.39 | I64: 1.08% | J64: $316.93 | K64: P36M | L64: One-time
B65: ADLUMIN | C65: A-ADL-MDRB-T07-3Y | D65: 500-599 | E65: ADLUMIN MDR - BASE (3YR, DB500:599) | F65: 3YR BASE XDR & MDR | G65: EP/API/NO SYSLOG + 30 DAY LOGS | H65: $300.35 | I65: 1.08% | J65: $297.11 | K65: P36M | L65: One-time
B66: ADLUMIN | C66: A-ADL-MDRB-T08-3Y | D66: 600-699 | E66: ADLUMIN MDR - BASE (3YR, DB600:699) | F66: 3YR BASE XDR & MDR | G66: EP/API/NO SYSLOG + 30 DAY LOGS | H66: $284.70 | I66: 1.08% | J66: $281.63 | K66: P36M | L66: One-time
B67: ADLUMIN | C67: A-ADL-MDRB-T09-3Y | D67: 700-999 | E67: ADLUMIN MDR - BASE (3YR, DB700:999) | F67: 3YR BASE XDR & MDR | G67: EP/API/NO SYSLOG + 30 DAY LOGS | H67: $256.80 | I67: 1.08% | J67: $254.03 | K67: P36M | L67: One-time
B68: ADLUMIN | C68: A-ADL-MDRB-T10-3Y | D68: 1000-2999 | E68: ADLUMIN MDR - BASE (3YR, DB1,000:2,999) | F68: 3YR BASE XDR & MDR | G68: EP/API/NO SYSLOG + 30 DAY LOGS | H68: $184.95 | I68: 1.08% | J68: $182.95 | K68: P36M | L68: One-time
B69: ADLUMIN | C69: A-ADL-MDRB-T11-3Y | D69: 3000-5999 | E69: ADLUMIN MDR - BASE (3YR, DB3,000:5,999) | F69: 3YR BASE XDR & MDR | G69: EP/API/NO SYSLOG + 30 DAY LOGS | H69: $172.38 | I69: 1.08% | J69: $170.52 | K69: P36M | L69: One-time
B70: ADLUMIN | C70: A-ADL-MDRB-T12-3Y | D70: 6000-8999 | E70: ADLUMIN MDR - BASE (3YR, DB6,000:8,999) | F70: 3YR BASE XDR & MDR | G70: EP/API/NO SYSLOG + 30 DAY LOGS | H70: $164.55 | I70: 1.08% | J70: $162.77 | K70: P36M | L70: One-time
B71: ADLUMIN | C71: A-ADL-MDRB-T13-3Y | D71: 9000+ | E71: ADLUMIN MDR - BASE (3YR, DB9,000+) | F71: 3YR BASE XDR & MDR | G71: EP/API/NO SYSLOG + 30 DAY LOGS | H71: $156.73 | I71: 1.08% | J71: $155.04 | K71: P36M | L71: One-time
A73: MONTHLY PRICING | B73: ADLUMIN | C73: A-ADL-MDRB-T01-M | D73: 1-74 | E73: ADLUMIN MDR - BASE (MTHLY, DB1:74) | F73: MTHLY BASE XDR & MDR | G73: EP/API/NO SYSLOG + 30 DAY LOGS | H73: $21.71 | I73: 1.08% | J73: =H73*(1-I73) -> $21.48 | K73: P12M | L73: Monthly
B74: ADLUMIN | C74: A-ADL-MDRB-T02-M | D74: 75-149 | E74: ADLUMIN MDR - BASE (MTHLY, DB75:149) | F74: MTHLY BASE XDR & MDR | G74: EP/API/NO SYSLOG + 30 DAY LOGS | H74: $20.47 | I74: 1.08% | J74: $20.25 | K74: P12M | L74: Monthly
B75: ADLUMIN | C75: A-ADL-MDRB-T03-M | D75: 150-199 | E75: ADLUMIN MDR - BASE (MTHLY, DB150:199) | F75: MTHLY BASE XDR & MDR | G75: EP/API/NO SYSLOG + 30 DAY LOGS | H75: $17.05 | I75: 1.08% | J75: $16.87 | K75: P12M | L75: Monthly
B76: ADLUMIN | C76: A-ADL-MDRB-T04-M | D76: 200-299 | E76: ADLUMIN MDR - BASE (MTHLY, DB200:299) | F76: MTHLY BASE XDR & MDR | G76: EP/API/NO SYSLOG + 30 DAY LOGS | H76: $13.36 | I76: 1.08% | J76: $13.22 | K76: P12M | L76: Monthly
B77: ADLUMIN | C77: A-ADL-MDRB-T05-M | D77: 300-399 | E77: ADLUMIN MDR - BASE (MTHLY, DB300:399) | F77: MTHLY BASE XDR & MDR | G77: EP/API/NO SYSLOG + 30 DAY LOGS | H77: $11.80 | I77: 1.08% | J77: $11.67 | K77: P12M | L77: Monthly
B78: ADLUMIN | C78: A-ADL-MDRB-T06-M | D78: 400-499 | E78: ADLUMIN MDR - BASE (MTHLY, DB400:499) | F78: MTHLY BASE XDR & MDR | G78: EP/API/NO SYSLOG + 30 DAY LOGS | H78: $10.23 | I78: 1.08% | J78: $10.12 | K78: P12M | L78: Monthly
B79: ADLUMIN | C79: A-ADL-MDRB-T07-M | D79: 500-599 | E79: ADLUMIN MDR - BASE (MTHLY, DB500:599) | F79: MTHLY BASE XDR & MDR | G79: EP/API/NO SYSLOG + 30 DAY LOGS | H79: $9.59 | I79: 1.08% | J79: $9.49 | K79: P12M | L79: Monthly
B80: ADLUMIN | C80: A-ADL-MDRB-T08-M | D80: 600-699 | E80: ADLUMIN MDR - BASE (MTHLY, DB600:699) | F80: MTHLY BASE XDR & MDR | G80: EP/API/NO SYSLOG + 30 DAY LOGS | H80: $9.09 | I80: 1.08% | J80: $8.99 | K80: P12M | L80: Monthly
B81: ADLUMIN | C81: A-ADL-MDRB-T09-M | D81: 700-999 | E81: ADLUMIN MDR - BASE (MTHLY, DB700:999) | F81: MTHLY BASE XDR & MDR | G81: EP/API/NO SYSLOG + 30 DAY LOGS | H81: $8.20 | I81: 1.08% | J81: $8.11 | K81: P12M | L81: Monthly
B82: ADLUMIN | C82: A-ADL-MDRB-T10-M | D82: 1000-2999 | E82: ADLUMIN MDR - BASE (MTHLY, DB1,000:2,999) | F82: MTHLY BASE XDR & MDR | G82: EP/API/NO SYSLOG + 30 DAY LOGS | H82: $5.91 | I82: 1.08% | J82: $5.85 | K82: P12M | L82: Monthly
B83: ADLUMIN | C83: A-ADL-MDRB-T11-M | D83: 3000-5999 | E83: ADLUMIN MDR - BASE (MTHLY, DB3,000:5,999) | F83: MTHLY BASE XDR & MDR | G83: EP/API/NO SYSLOG + 30 DAY LOGS | H83: $5.51 | I83: 1.08% | J83: $5.45 | K83: P12M | L83: Monthly
B84: ADLUMIN | C84: A-ADL-MDRB-T12-M | D84: 6000-8999 | E84: ADLUMIN MDR - BASE (MTHLY, DB6,000:8,999) | F84: MTHLY BASE XDR & MDR | G84: EP/API/NO SYSLOG + 30 DAY LOGS | H84: $5.26 | I84: 1.08% | J84: $5.20 | K84: P12M | L84: Monthly
B85: ADLUMIN | C85: A-ADL-MDRB-T13-M | D85: 9000+ | E85: ADLUMIN MDR - BASE (MTHLY, DB9,000+) | F85: MTHLY BASE XDR & MDR | G85: EP/API/NO SYSLOG + 30 DAY LOGS | H85: $5.01 | I85: 1.08% | J85: $4.96 | K85: P12M | L85: Monthly
B86: XDR COMPLETE
A87: 1 YEAR PRICING | B87: ADLUMIN | C87: A-ADL-XDRC-T01 | D87: 1-74 | E87: ADLUMIN XDR - COMPLETE (DB1:74) | F87: 1YR COMPLETE XDR ONLY | G87: EP/API/SYSLOG + 90 DAY LOGS | H87: $182.13 | I87: 1.08% | J87: =H87*(1-I87) -> $180.16 | K87: P12M | L87: One-time
B88: ADLUMIN | C88: A-ADL-XDRC-T02 | D88: 75-149 | E88: ADLUMIN XDR - COMPLETE (DB75:149) | F88: 1YR COMPLETE XDR ONLY | G88: EP/API/SYSLOG + 90 DAY LOGS | H88: $173.44 | I88: 1.08% | J88: $171.57 | K88: P12M | L88: One-time
B89: ADLUMIN | C89: A-ADL-XDRC-T03 | D89: 150-199 | E89: ADLUMIN XDR - COMPLETE (DB150:199) | F89: 1YR COMPLETE XDR ONLY | G89: EP/API/SYSLOG + 90 DAY LOGS | H89: $131.41 | I89: 1.08% | J89: $129.99 | K89: P12M | L89: One-time
B90: ADLUMIN | C90: A-ADL-XDRC-T04 | D90: 200-299 | E90: ADLUMIN XDR - COMPLETE (DB200:299) | F90: 1YR COMPLETE XDR ONLY | G90: EP/API/SYSLOG + 90 DAY LOGS | H90: $102.02 | I90: 1.08% | J90: $100.92 | K90: P12M | L90: One-time
B91: ADLUMIN | C91: A-ADL-XDRC-T05 | D91: 300-399 | E91: ADLUMIN XDR - COMPLETE (DB300:399) | F91: 1YR COMPLETE XDR ONLY | G91: EP/API/SYSLOG + 90 DAY LOGS | H91: $92.17 | I91: 1.08% | J91: $91.17 | K91: P12M | L91: One-time
B92: ADLUMIN | C92: A-ADL-XDRC-T06 | D92: 400-499 | E92: ADLUMIN XDR - COMPLETE (DB400:499) | F92: 1YR COMPLETE XDR ONLY | G92: EP/API/SYSLOG + 90 DAY LOGS | H92: $82.36 | I92: 1.08% | J92: $81.47 | K92: P12M | L92: One-time
B93: ADLUMIN | C93: A-ADL-XDRC-T07 | D93: 500-599 | E93: ADLUMIN XDR - COMPLETE (DB500:599) | F93: 1YR COMPLETE XDR ONLY | G93: EP/API/SYSLOG + 90 DAY LOGS | H93: $79.92 | I93: 1.08% | J93: $79.06 | K93: P12M | L93: One-time
B94: ADLUMIN | C94: A-ADL-XDRC-T08 | D94: 600-699 | E94: ADLUMIN XDR - COMPLETE (DB600:699) | F94: 1YR COMPLETE XDR ONLY | G94: EP/API/SYSLOG + 90 DAY LOGS | H94: $71.56 | I94: 1.08% | J94: $70.79 | K94: P12M | L94: One-time
B95: ADLUMIN | C95: A-ADL-XDRC-T09 | D95: 700-999 | E95: ADLUMIN XDR - COMPLETE (DB700:999) | F95: 1YR COMPLETE XDR ONLY | G95: EP/API/SYSLOG + 90 DAY LOGS | H95: $68.77 | I95: 1.08% | J95: $68.03 | K95: P12M | L95: One-time
B96: ADLUMIN | C96: A-ADL-XDRC-T10 | D96: 1000-2999 | E96: ADLUMIN XDR - COMPLETE (DB1,000:2,999) | F96: 1YR COMPLETE XDR ONLY | G96: EP/API/SYSLOG + 90 DAY LOGS | H96: $46.24 | I96: 1.08% | J96: $45.74 | K96: P12M | L96: One-time
B97: ADLUMIN | C97: A-ADL-XDRC-T11 | D97: 3000-5999 | E97: ADLUMIN XDR - COMPLETE (DB3,000:5,999) | F97: 1YR COMPLETE XDR ONLY | G97: EP/API/SYSLOG + 90 DAY LOGS | H97: $43.60 | I97: 1.08% | J97: $43.13 | K97: P12M | L97: One-time
B98: ADLUMIN | C98: A-ADL-XDRC-T12 | D98: 6000-8999 | E98: ADLUMIN XDR - COMPLETE (DB6,000:8,999) | F98: 1YR COMPLETE XDR ONLY | G98: EP/API/SYSLOG + 90 DAY LOGS | H98: $41.42 | I98: 1.08% | J98: $40.97 | K98: P12M | L98: One-time
B99: ADLUMIN | C99: A-ADL-XDRC-T13 | D99: 9000+ | E99: ADLUMIN XDR - COMPLETE (DB9,000+) | F99: 1YR COMPLETE XDR ONLY | G99: EP/API/SYSLOG + 90 DAY LOGS | H99: $39.35 | I99: 1.08% | J99: $38.93 | K99: P12M | L99: One-time
A101: 3 YEAR PRICING | B101: ADLUMIN | C101: A-ADL-XDRC-T01-3Y | D101: 1-74 | E101: ADLUMIN XDR - COMPLETE (3YR, DB1:74) | F101: 3YR COMPLETE XDR ONLY | G101: EP/API/SYSLOG + 90 DAY LOGS | H101: $546.39 | I101: 1.08% | J101: =H101*(1-I101) -> $540.49 | K101: P36M | L101: One-time
B102: ADLUMIN | C102: A-ADL-XDRC-T02-3Y | D102: 75-149 | E102: ADLUMIN XDR - COMPLETE (3YR, DB75:149) | F102: 3YR COMPLETE XDR ONLY | G102: EP/API/SYSLOG + 90 DAY LOGS | H102: $520.32 | I102: 1.08% | J102: $514.70 | K102: P36M | L102: One-time
B103: ADLUMIN | C103: A-ADL-XDRC-T03-3Y | D103: 150-199 | E103: ADLUMIN XDR - COMPLETE (3YR, DB150:199) | F103: 3YR COMPLETE XDR ONLY | G103: EP/API/SYSLOG + 90 DAY LOGS | H103: $394.23 | I103: 1.08% | J103: $389.97 | K103: P36M | L103: One-time
B104: ADLUMIN | C104: A-ADL-XDRC-T04-3Y | D104: 200-299 | E104: ADLUMIN XDR - COMPLETE (3YR, DB200:299) | F104: 3YR COMPLETE XDR ONLY | G104: EP/API/SYSLOG + 90 DAY LOGS | H104: $306.06 | I104: 1.08% | J104: $302.75 | K104: P36M | L104: One-time
B105: ADLUMIN | C105: A-ADL-XDRC-T05-3Y | D105: 300-399 | E105: ADLUMIN XDR - COMPLETE (3YR, DB300:399) | F105: 3YR COMPLETE XDR ONLY | G105: EP/API/SYSLOG + 90 DAY LOGS | H105: $276.51 | I105: 1.08% | J105: $273.52 | K105: P36M | L105: One-time
B106: ADLUMIN | C106: A-ADL-XDRC-T06-3Y | D106: 400-499 | E106: ADLUMIN XDR - COMPLETE (3YR, DB400:499) | F106: 3YR COMPLETE XDR ONLY | G106: EP/API/SYSLOG + 90 DAY LOGS | H106: $247.08 | I106: 1.08% | J106: $244.41 | K106: P36M | L106: One-time
B107: ADLUMIN | C107: A-ADL-XDRC-T07-3Y | D107: 500-599 | E107: ADLUMIN XDR - COMPLETE (3YR, DB500:599) | F107: 3YR COMPLETE XDR ONLY | G107: EP/API/SYSLOG + 90 DAY LOGS | H107: $239.76 | I107: 1.08% | J107: $237.17 | K107: P36M | L107: One-time
B108: ADLUMIN | C108: A-ADL-XDRC-T08-3Y | D108: 600-699 | E108: ADLUMIN XDR - COMPLETE (3YR, DB600:699) | F108: 3YR COMPLETE XDR ONLY | G108: EP/API/SYSLOG + 90 DAY LOGS | H108: $214.67 | I108: 1.08% | J108: $212.35 | K108: P36M | L108: One-time
B109: ADLUMIN | C109: A-ADL-XDRC-T09-3Y | D109: 700-999 | E109: ADLUMIN XDR - COMPLETE (3YR, DB700:999) | F109: 3YR COMPLETE XDR ONLY | G109: EP/API/SYSLOG + 90 DAY LOGS | H109: $206.31 | I109: 1.08% | J109: $204.08 | K109: P36M | L109: One-time
B110: ADLUMIN | C110: A-ADL-XDRC-T10-3Y | D110: 1000-2999 | E110: ADLUMIN XDR - COMPLETE (3YR, DB1,000:2,999) | F110: 3YR COMPLETE XDR ONLY | G110: EP/API/SYSLOG + 90 DAY LOGS | H110: $138.72 | I110: 1.08% | J110: $137.22 | K110: P36M | L110: One-time
B111: ADLUMIN | C111: A-ADL-XDRC-T11-3Y | D111: 3000-5999 | E111: ADLUMIN XDR - COMPLETE (3YR, DB3,000:5,999) | F111: 3YR COMPLETE XDR ONLY | G111: EP/API/SYSLOG + 90 DAY LOGS | H111: $130.80 | I111: 1.08% | J111: $129.39 | K111: P36M | L111: One-time
B112: ADLUMIN | C112: A-ADL-XDRC-T12-3Y | D112: 6000-8999 | E112: ADLUMIN XDR - COMPLETE (3YR, DB6,000:8,999) | F112: 3YR COMPLETE XDR ONLY | G112: EP/API/SYSLOG + 90 DAY LOGS | H112: $124.26 | I112: 1.08% | J112: $122.92 | K112: P36M | L112: One-time
B113: ADLUMIN | C113: A-ADL-XDRC-T13-3Y | D113: 9000+ | E113: ADLUMIN XDR - COMPLETE (3YR, DB9,000+) | F113: 3YR COMPLETE XDR ONLY | G113: EP/API/SYSLOG + 90 DAY LOGS | H113: $118.05 | I113: 1.08% | J113: $116.78 | K113: P36M | L113: One-time
A115: MONTHLY PRICING | B115: ADLUMIN | C115: A-ADL-XDRC-T01-M | D115: 1-74 | E115: ADLUMIN XDR - COMPLETE (MTHLY, DB1:74) | F115: MTHLY COMPLETE XDR ONLY | G115: EP/API/SYSLOG + 90 DAY LOGS | H115: $17.45 | I115: 1.08% | J115: =H115*(1-I115) -> $17.26 | K115: P12M | L115: Monthly
B116: ADLUMIN | C116: A-ADL-XDRC-T02-M | D116: 75-149 | E116: ADLUMIN XDR - COMPLETE (MTHLY, DB75:149) | F116: MTHLY COMPLETE XDR ONLY | G116: EP/API/SYSLOG + 90 DAY LOGS | H116: $16.62 | I116: 1.08% | J116: $16.44 | K116: P12M | L116: Monthly
B117: ADLUMIN | C117: A-ADL-XDRC-T03-M | D117: 150-199 | E117: ADLUMIN XDR - COMPLETE (MTHLY, DB150:199) | F117: MTHLY COMPLETE XDR ONLY | G117: EP/API/SYSLOG + 90 DAY LOGS | H117: $12.59 | I117: 1.08% | J117: $12.45 | K117: P12M | L117: Monthly
B118: ADLUMIN | C118: A-ADL-XDRC-T04-M | D118: 200-299 | E118: ADLUMIN XDR - COMPLETE (MTHLY, DB200:299) | F118: MTHLY COMPLETE XDR ONLY | G118: EP/API/SYSLOG + 90 DAY LOGS | H118: $9.78 | I118: 1.08% | J118: $9.67 | K118: P12M | L118: Monthly
B119: ADLUMIN | C119: A-ADL-XDRC-T05-M | D119: 300-399 | E119: ADLUMIN XDR - COMPLETE (MTHLY, DB300:399) | F119: MTHLY COMPLETE XDR ONLY | G119: EP/API/SYSLOG + 90 DAY LOGS | H119: $8.83 | I119: 1.08% | J119: $8.73 | K119: P12M | L119: Monthly
B120: ADLUMIN | C120: A-ADL-XDRC-T06-M | D120: 400-499 | E120: ADLUMIN XDR - COMPLETE (MTHLY, DB400:499) | F120: MTHLY COMPLETE XDR ONLY | G120: EP/API/SYSLOG + 90 DAY LOGS | H120: $7.89 | I120: 1.08% | J120: $7.80 | K120: P12M | L120: Monthly
B121: ADLUMIN | C121: A-ADL-XDRC-T07-M | D121: 500-599 | E121: ADLUMIN XDR - COMPLETE (MTHLY, DB500:599) | F121: MTHLY COMPLETE XDR ONLY | G121: EP/API/SYSLOG + 90 DAY LOGS | H121: $7.66 | I121: 1.08% | J121: $7.58 | K121: P12M | L121: Monthly
B122: ADLUMIN | C122: A-ADL-XDRC-T08-M | D122: 600-699 | E122: ADLUMIN XDR - COMPLETE (MTHLY, DB600:699) | F122: MTHLY COMPLETE XDR ONLY | G122: EP/API/SYSLOG + 90 DAY LOGS | H122: $6.86 | I122: 1.08% | J122: $6.79 | K122: P12M | L122: Monthly
B123: ADLUMIN | C123: A-ADL-XDRC-T09-M | D123: 700-999 | E123: ADLUMIN XDR - COMPLETE (MTHLY, DB700:999) | F123: MTHLY COMPLETE XDR ONLY | G123: EP/API/SYSLOG + 90 DAY LOGS | H123: $6.59 | I123: 1.08% | J123: $6.52 | K123: P12M | L123: Monthly
B124: ADLUMIN | C124: A-ADL-XDRC-T10-M | D124: 1000-2999 | E124: ADLUMIN XDR - COMPLETE (MTHLY, DB1,000:2,999) | F124: MTHLY COMPLETE XDR ONLY | G124: EP/API/SYSLOG + 90 DAY LOGS | H124: $4.43 | I124: 1.08% | J124: $4.38 | K124: P12M | L124: Monthly
B125: ADLUMIN | C125: A-ADL-XDRC-T11-M | D125: 3000-5999 | E125: ADLUMIN XDR - COMPLETE (MTHLY, DB3,000:5,999) | F125: MTHLY COMPLETE XDR ONLY | G125: EP/API/SYSLOG + 90 DAY LOGS | H125: $4.18 | I125: 1.08% | J125: $4.13 | K125: P12M | L125: Monthly
B126: ADLUMIN | C126: A-ADL-XDRC-T12-M | D126: 6000-8999 | E126: ADLUMIN XDR - COMPLETE (MTHLY, DB6,000:8,999) | F126: MTHLY COMPLETE XDR ONLY | G126: EP/API/SYSLOG + 90 DAY LOGS | H126: $3.97 | I126: 1.08% | J126: $3.93 | K126: P12M | L126: Monthly
B127: ADLUMIN | C127: A-ADL-XDRC-T13-M | D127: 9000+ | E127: ADLUMIN XDR - COMPLETE (MTHLY, DB9,000+) | F127: MTHLY COMPLETE XDR ONLY | G127: EP/API/SYSLOG + 90 DAY LOGS | H127: $3.77 | I127: 1.08% | J127: $3.73 | K127: P12M | L127: Monthly
B128: XDR BASE
A129: 1 YEAR PRICING | B129: ADLUMIN | C129: A-ADL-XDRB-T01 | D129: 1-74 | E129: ADLUMIN XDR - BASE (DB1:74) | F129: 1YR BASE XDR ONLY | G129: EP/API/NO SYSLOG + 30 DAY LOGS | H129: $109.28 | I129: 1.08% | J129: =H129*(1-I129) -> $108.10 | K129: P12M | L129: One-time
B130: ADLUMIN | C130: A-ADL-XDRB-T02 | D130: 75-149 | E130: ADLUMIN XDR - BASE (DB75:149) | F130: 1YR BASE XDR ONLY | G130: EP/API/NO SYSLOG + 30 DAY LOGS | H130: $104.06 | I130: 1.08% | J130: $102.94 | K130: P12M | L130: One-time
B131: ADLUMIN | C131: A-ADL-XDRB-T03 | D131: 150-199 | E131: ADLUMIN XDR - BASE (DB150:199) | F131: 1YR BASE XDR ONLY | G131: EP/API/NO SYSLOG + 30 DAY LOGS | H131: $78.85 | I131: 1.08% | J131: $78.00 | K131: P12M | L131: One-time
B132: ADLUMIN | C132: A-ADL-XDRB-T04 | D132: 200-299 | E132: ADLUMIN XDR - BASE (DB200:299) | F132: 1YR BASE XDR ONLY | G132: EP/API/NO SYSLOG + 30 DAY LOGS | H132: $61.21 | I132: 1.08% | J132: $60.55 | K132: P12M | L132: One-time
B133: ADLUMIN | C133: A-ADL-XDRB-T05 | D133: 300-399 | E133: ADLUMIN XDR - BASE (DB300:399) | F133: 1YR BASE XDR ONLY | G133: EP/API/NO SYSLOG + 30 DAY LOGS | H133: $55.30 | I133: 1.08% | J133: $54.70 | K133: P12M | L133: One-time
B134: ADLUMIN | C134: A-ADL-XDRB-T06 | D134: 400-499 | E134: ADLUMIN XDR - BASE (DB400:499) | F134: 1YR BASE XDR ONLY | G134: EP/API/NO SYSLOG + 30 DAY LOGS | H134: $49.42 | I134: 1.08% | J134: $48.89 | K134: P12M | L134: One-time
B135: ADLUMIN | C135: A-ADL-XDRB-T07 | D135: 500-599 | E135: ADLUMIN XDR - BASE (DB500:599) | F135: 1YR BASE XDR ONLY | G135: EP/API/NO SYSLOG + 30 DAY LOGS | H135: $47.95 | I135: 1.08% | J135: $47.43 | K135: P12M | L135: One-time
B136: ADLUMIN | C136: A-ADL-XDRB-T08 | D136: 600-699 | E136: ADLUMIN XDR - BASE (DB600:699) | F136: 1YR BASE XDR ONLY | G136: EP/API/NO SYSLOG + 30 DAY LOGS | H136: $42.93 | I136: 1.08% | J136: $42.47 | K136: P12M | L136: One-time
B137: ADLUMIN | C137: A-ADL-XDRB-T09 | D137: 700-999 | E137: ADLUMIN XDR - BASE (DB700:999) | F137: 1YR BASE XDR ONLY | G137: EP/API/NO SYSLOG + 30 DAY LOGS | H137: $41.26 | I137: 1.08% | J137: $40.81 | K137: P12M | L137: One-time
B138: ADLUMIN | C138: A-ADL-XDRB-T10 | D138: 1000-2999 | E138: ADLUMIN XDR - BASE (DB1,000:2,999) | F138: 1YR BASE XDR ONLY | G138: EP/API/NO SYSLOG + 30 DAY LOGS | H138: $27.74 | I138: 1.08% | J138: $27.44 | K138: P12M | L138: One-time
B139: ADLUMIN | C139: A-ADL-XDRB-T11 | D139: 3000-5999 | E139: ADLUMIN XDR - BASE (DB3,000:5,999) | F139: 1YR BASE XDR ONLY | G139: EP/API/NO SYSLOG + 30 DAY LOGS | H139: $26.16 | I139: 1.08% | J139: $25.88 | K139: P12M | L139: One-time
B140: ADLUMIN | C140: A-ADL-XDRB-T12 | D140: 6000-8999 | E140: ADLUMIN XDR - BASE (DB6,000:8,999) | F140: 1YR BASE XDR ONLY | G140: EP/API/NO SYSLOG + 30 DAY LOGS | H140: $24.85 | I140: 1.08% | J140: $24.58 | K140: P12M | L140: One-time
B141: ADLUMIN | C141: A-ADL-XDRB-T13 | D141: 9000+ | E141: ADLUMIN XDR - BASE (DB9,000+) | F141: 1YR BASE XDR ONLY | G141: EP/API/NO SYSLOG + 30 DAY LOGS | H141: $23.61 | I141: 1.08% | J141: $23.36 | K141: P12M | L141: One-time
A143: 3 YEAR PRICING | B143: ADLUMIN | C143: A-ADL-XDRB-T01-3Y | D143: 1-74 | E143: ADLUMIN XDR - BASE (3YR, DB1:74) | F143: 3YR BASE XDR ONLY | G143: EP/API/NO SYSLOG + 30 DAY LOGS | H143: $327.83 | I143: 1.08% | J143: =H143*(1-I143) -> $324.29 | K143: P36M | L143: One-time
B144: ADLUMIN | C144: A-ADL-XDRB-T02-3Y | D144: 75-149 | E144: ADLUMIN XDR - BASE (3YR, DB75:149) | F144: 3YR BASE XDR ONLY | G144: EP/API/NO SYSLOG + 30 DAY LOGS | H144: $312.19 | I144: 1.08% | J144: $308.82 | K144: P36M | L144: One-time
B145: ADLUMIN | C145: A-ADL-XDRB-T03-3Y | D145: 150-199 | E145: ADLUMIN XDR - BASE (3YR, DB150:199) | F145: 3YR BASE XDR ONLY | G145: EP/API/NO SYSLOG + 30 DAY LOGS | H145: $236.54 | I145: 1.08% | J145: $233.99 | K145: P36M | L145: One-time
B146: ADLUMIN | C146: A-ADL-XDRB-T04-3Y | D146: 200-299 | E146: ADLUMIN XDR - BASE (3YR, DB200:299) | F146: 3YR BASE XDR ONLY | G146: EP/API/NO SYSLOG + 30 DAY LOGS | H146: $183.64 | I146: 1.08% | J146: $181.66 | K146: P36M | L146: One-time
B147: ADLUMIN | C147: A-ADL-XDRB-T05-3Y | D147: 300-399 | E147: ADLUMIN XDR - BASE (3YR, DB300:399) | F147: 3YR BASE XDR ONLY | G147: EP/API/NO SYSLOG + 30 DAY LOGS | H147: $165.91 | I147: 1.08% | J147: $164.12 | K147: P36M | L147: One-time
B148: ADLUMIN | C148: A-ADL-XDRB-T06-3Y | D148: 400-499 | E148: ADLUMIN XDR - BASE (3YR, DB400:499) | F148: 3YR BASE XDR ONLY | G148: EP/API/NO SYSLOG + 30 DAY LOGS | H148: $148.25 | I148: 1.08% | J148: $146.65 | K148: P36M | L148: One-time
B149: ADLUMIN | C149: A-ADL-XDRB-T07-3Y | D149: 500-599 | E149: ADLUMIN XDR - BASE (3YR, DB500:599) | F149: 3YR BASE XDR ONLY | G149: EP/API/NO SYSLOG + 30 DAY LOGS | H149: $143.86 | I149: 1.08% | J149: $142.31 | K149: P36M | L149: One-time
B150: ADLUMIN | C150: A-ADL-XDRB-T08-3Y | D150: 600-699 | E150: ADLUMIN XDR - BASE (3YR, DB600:699) | F150: 3YR BASE XDR ONLY | G150: EP/API/NO SYSLOG + 30 DAY LOGS | H150: $128.80 | I150: 1.08% | J150: $127.41 | K150: P36M | L150: One-time
B151: ADLUMIN | C151: A-ADL-XDRB-T09-3Y | D151: 700-999 | E151: ADLUMIN XDR - BASE (3YR, DB700:999) | F151: 3YR BASE XDR ONLY | G151: EP/API/NO SYSLOG + 30 DAY LOGS | H151: $123.79 | I151: 1.08% | J151: $122.45 | K151: P36M | L151: One-time
B152: ADLUMIN | C152: A-ADL-XDRB-T10-3Y | D152: 1000-2999 | E152: ADLUMIN XDR - BASE (3YR, DB1,000:2,999) | F152: 3YR BASE XDR ONLY | G152: EP/API/NO SYSLOG + 30 DAY LOGS | H152: $83.23 | I152: 1.08% | J152: $82.33 | K152: P36M | L152: One-time
B153: ADLUMIN | C153: A-ADL-XDRB-T11-3Y | D153: 3000-5999 | E153: ADLUMIN XDR - BASE (3YR, DB3,000:5,999) | F153: 3YR BASE XDR ONLY | G153: EP/API/NO SYSLOG + 30 DAY LOGS | H153: $78.48 | I153: 1.08% | J153: $77.63 | K153: P36M | L153: One-time
B154: ADLUMIN | C154: A-ADL-XDRB-T12-3Y | D154: 6000-8999 | E154: ADLUMIN XDR - BASE (3YR, DB6,000:8,999) | F154: 3YR BASE XDR ONLY | G154: EP/API/NO SYSLOG + 30 DAY LOGS | H154: $74.56 | I154: 1.08% | J154: $73.75 | K154: P36M | L154: One-time
B155: ADLUMIN | C155: A-ADL-XDRB-T13-3Y | D155: 9000+ | E155: ADLUMIN XDR - BASE (3YR, DB9,000+) | F155: 3YR BASE XDR ONLY | G155: EP/API/NO SYSLOG + 30 DAY LOGS | H155: $70.83 | I155: 1.08% | J155: $70.07 | K155: P36M | L155: One-time
A157: MONTHLY PRICING | B157: ADLUMIN | C157: A-ADL-XDRB-T01-M | D157: 1-74 | E157: ADLUMIN XDR - BASE (MTHLY, DB1:74) | F157: MTHLY BASE XDR ONLY | G157: EP/API/NO SYSLOG + 30 DAY LOGS | H157: $10.47 | I157: 1.08% | J157: =H157*(1-I157) -> $10.36 | K157: P12M | L157: Monthly
B158: ADLUMIN | C158: A-ADL-XDRB-T02-M | D158: 75-149 | E158: ADLUMIN XDR - BASE (MTHLY, DB75:149) | F158: MTHLY BASE XDR ONLY | G158: EP/API/NO SYSLOG + 30 DAY LOGS | H158: $9.97 | I158: 1.08% | J158: $9.86 | K158: P12M | L158: Monthly
B159: ADLUMIN | C159: A-ADL-XDRB-T03-M | D159: 150-199 | E159: ADLUMIN XDR - BASE (MTHLY, DB150:199) | F159: MTHLY BASE XDR ONLY | G159: EP/API/NO SYSLOG + 30 DAY LOGS | H159: $7.56 | I159: 1.08% | J159: $7.48 | K159: P12M | L159: Monthly
B160: ADLUMIN | C160: A-ADL-XDRB-T04-M | D160: 200-299 | E160: ADLUMIN XDR - BASE (MTHLY, DB200:299) | F160: MTHLY BASE XDR ONLY | G160: EP/API/NO SYSLOG + 30 DAY LOGS | H160: $5.87 | I160: 1.08% | J160: $5.81 | K160: P12M | L160: Monthly
B161: ADLUMIN | C161: A-ADL-XDRB-T05-M | D161: 300-399 | E161: ADLUMIN XDR - BASE (MTHLY, DB300:399) | F161: MTHLY BASE XDR ONLY | G161: EP/API/NO SYSLOG + 30 DAY LOGS | H161: $5.30 | I161: 1.08% | J161: $5.24 | K161: P12M | L161: Monthly
B162: ADLUMIN | C162: A-ADL-XDRB-T06-M | D162: 400-499 | E162: ADLUMIN XDR - BASE (MTHLY, DB400:499) | F162: MTHLY BASE XDR ONLY | G162: EP/API/NO SYSLOG + 30 DAY LOGS | H162: $4.74 | I162: 1.08% | J162: $4.69 | K162: P12M | L162: Monthly
B163: ADLUMIN | C163: A-ADL-XDRB-T07-M | D163: 500-599 | E163: ADLUMIN XDR - BASE (MTHLY, DB500:599) | F163: MTHLY BASE XDR ONLY | G163: EP/API/NO SYSLOG + 30 DAY LOGS | H163: $4.60 | I163: 1.08% | J163: $4.55 | K163: P12M | L163: Monthly
B164: ADLUMIN | C164: A-ADL-XDRB-T08-M | D164: 600-699 | E164: ADLUMIN XDR - BASE (MTHLY, DB600:699) | F164: MTHLY BASE XDR ONLY | G164: EP/API/NO SYSLOG + 30 DAY LOGS | H164: $4.11 | I164: 1.08% | J164: $4.07 | K164: P12M | L164: Monthly
B165: ADLUMIN | C165: A-ADL-XDRB-T09-M | D165: 700-999 | E165: ADLUMIN XDR - BASE (MTHLY, DB700:999) | F165: MTHLY BASE XDR ONLY | G165: EP/API/NO SYSLOG + 30 DAY LOGS | H165: $3.95 | I165: 1.08% | J165: $3.91 | K165: P12M | L165: Monthly
B166: ADLUMIN | C166: A-ADL-XDRB-T10-M | D166: 1000-2999 | E166: ADLUMIN XDR - BASE (MTHLY, DB1,000:2,999) | F166: MTHLY BASE XDR ONLY | G166: EP/API/NO SYSLOG + 30 DAY LOGS | H166: $2.66 | I166: 1.08% | J166: $2.63 | K166: P12M | L166: Monthly
B167: ADLUMIN | C167: A-ADL-XDRB-T11-M | D167: 3000-5999 | E167: ADLUMIN XDR - BASE (MTHLY, DB3,000:5,999) | F167: MTHLY BASE XDR ONLY | G167: EP/API/NO SYSLOG + 30 DAY LOGS | H167: $2.51 | I167: 1.08% | J167: $2.48 | K167: P12M | L167: Monthly
B168: ADLUMIN | C168: A-ADL-XDRB-T12-M | D168: 6000-8999 | E168: ADLUMIN XDR - BASE (MTHLY, DB6,000:8,999) | F168: MTHLY BASE XDR ONLY | G168: EP/API/NO SYSLOG + 30 DAY LOGS | H168: $2.38 | I168: 1.08% | J168: $2.35 | K168: P12M | L168: Monthly
B169: ADLUMIN | C169: A-ADL-XDRB-T13-M | D169: 9000+ | E169: ADLUMIN XDR - BASE (MTHLY, DB9,000+) | F169: MTHLY BASE XDR ONLY | G169: EP/API/NO SYSLOG + 30 DAY LOGS | H169: $2.26 | I169: 1.08% | J169: $2.24 | K169: P12M | L169: Monthly
B170: 1YR LOG RETENTION
A171: 1 YEAR PRICING | B171: SECURE STORAGE | C171: A-ADL-LOGS-T01 | D171: 1-74 | E171: 1YR LOG RETENTION (DB1:74) | F171: 1YR Pre-Paid Cloud Storage | G171: Subscription Cloud Storage | H171: $40.25 | I171: 1.08% | J171: =H171*(1-I171) -> $39.82 | K171: P12M | L171: One-time
B172: SECURE STORAGE | C172: A-ADL-LOGS-T02 | D172: 75-149 | E172: 1YR LOG RETENTION (DB75:149) | F172: 1YR Pre-Paid Cloud Storage | G172: Subscription Cloud Storage | H172: $31.63 | I172: 1.08% | J172: $31.29 | K172: P12M | L172: One-time
B173: SECURE STORAGE | C173: A-ADL-LOGS-T03 | D173: 150-199 | E173: 1YR LOG RETENTION (DB150:199) | F173: 1YR Pre-Paid Cloud Storage | G173: Subscription Cloud Storage | H173: $23.00 | I173: 1.08% | J173: $22.75 | K173: P12M | L173: One-time
B174: SECURE STORAGE | C174: A-ADL-LOGS-T04 | D174: 200-299 | E174: 1YR LOG RETENTION (DB200:299) | F174: 1YR Pre-Paid Cloud Storage | G174: Subscription Cloud Storage | H174: $18.69 | I174: 1.08% | J174: $18.49 | K174: P12M | L174: One-time
B175: SECURE STORAGE | C175: A-ADL-LOGS-T05 | D175: 300-399 | E175: 1YR LOG RETENTION (DB300:399) | F175: 1YR Pre-Paid Cloud Storage | G175: Subscription Cloud Storage | H175: $14.38 | I175: 1.08% | J175: $14.22 | K175: P12M | L175: One-time
B176: SECURE STORAGE | C176: A-ADL-LOGS-T06 | D176: 400-499 | E176: 1YR LOG RETENTION (DB400:499) | F176: 1YR Pre-Paid Cloud Storage | G176: Subscription Cloud Storage | H176: $14.09 | I176: 1.08% | J176: $13.94 | K176: P12M | L176: One-time
B177: SECURE STORAGE | C177: A-ADL-LOGS-T07 | D177: 500-599 | E177: 1YR LOG RETENTION (DB500:599) | F177: 1YR Pre-Paid Cloud Storage | G177: Subscription Cloud Storage | H177: $13.80 | I177: 1.08% | J177: $13.65 | K177: P12M | L177: One-time
B178: SECURE STORAGE | C178: A-ADL-LOGS-T08 | D178: 600-699 | E178: 1YR LOG RETENTION (DB600:699) | F178: 1YR Pre-Paid Cloud Storage | G178: Subscription Cloud Storage | H178: $13.42 | I178: 1.08% | J178: $13.28 | K178: P12M | L178: One-time
B179: SECURE STORAGE | C179: A-ADL-LOGS-T09 | D179: 700-999 | E179: 1YR LOG RETENTION (DB700:999) | F179: 1YR Pre-Paid Cloud Storage | G179: Subscription Cloud Storage | H179: $12.78 | I179: 1.08% | J179: $12.64 | K179: P12M | L179: One-time
B180: SECURE STORAGE | C180: A-ADL-LOGS-T10 | D180: 1000-2999 | E180: 1YR LOG RETENTION (DB1,000:2,999) | F180: 1YR Pre-Paid Cloud Storage | G180: Subscription Cloud Storage | H180: $8.91 | I180: 1.08% | J180: $8.81 | K180: P12M | L180: One-time
B181: SECURE STORAGE | C181: A-ADL-LOGS-T11 | D181: 3000-5999 | E181: 1YR LOG RETENTION (DB3,000:5,999) | F181: 1YR Pre-Paid Cloud Storage | G181: Subscription Cloud Storage | H181: $6.33 | I181: 1.08% | J181: $6.26 | K181: P12M | L181: One-time
B182: SECURE STORAGE | C182: A-ADL-LOGS-T12 | D182: 6000-8999 | E182: 1YR LOG RETENTION (DB6,000:8,999) | F182: 1YR Pre-Paid Cloud Storage | G182: Subscription Cloud Storage | H182: $3.54 | I182: 1.08% | J182: $3.50 | K182: P12M | L182: One-time
B183: SECURE STORAGE | C183: A-ADL-LOGS-T13 | D183: 9000+ | E183: 1YR LOG RETENTION (DB9,000+) | F183: 1YR Pre-Paid Cloud Storage | G183: Subscription Cloud Storage | H183: $2.56 | I183: 1.08% | J183: $2.53 | K183: P12M | L183: One-time
A185: 3 YEAR PRICING | B185: SECURE STORAGE | C185: A-ADL-LOGS-T01-3Y | D185: 1-74 | E185: 1YR LOG RETENTION (3YR, DB1:74) | F185: 3YR Pre-Paid Cloud Storage | G185: Subscription Cloud Storage | H185: $120.75 | I185: 1.08% | J185: =H185*(1-I185) -> $119.45 | K185: P36M | L185: One-time
B186: SECURE STORAGE | C186: A-ADL-LOGS-T02-3Y | D186: 75-149 | E186: 1YR LOG RETENTION (3YR, DB75:149) | F186: 3YR Pre-Paid Cloud Storage | G186: Subscription Cloud Storage | H186: $94.89 | I186: 1.08% | J186: $93.87 | K186: P36M | L186: One-time
B187: SECURE STORAGE | C187: A-ADL-LOGS-T03-3Y | D187: 150-199 | E187: 1YR LOG RETENTION (3YR, DB150:199) | F187: 3YR Pre-Paid Cloud Storage | G187: Subscription Cloud Storage | H187: $69.00 | I187: 1.08% | J187: $68.25 | K187: P36M | L187: One-time
B188: SECURE STORAGE | C188: A-ADL-LOGS-T04-3Y | D188: 200-299 | E188: 1YR LOG RETENTION (3YR, DB200:299) | F188: 3YR Pre-Paid Cloud Storage | G188: Subscription Cloud Storage | H188: $56.07 | I188: 1.08% | J188: $55.46 | K188: P36M | L188: One-time
B189: SECURE STORAGE | C189: A-ADL-LOGS-T05-3Y | D189: 300-399 | E189: 1YR LOG RETENTION (3YR, DB300:399) | F189: 3YR Pre-Paid Cloud Storage | G189: Subscription Cloud Storage | H189: $43.14 | I189: 1.08% | J189: $42.67 | K189: P36M | L189: One-time
B190: SECURE STORAGE | C190: A-ADL-LOGS-T06-3Y | D190: 400-499 | E190: 1YR LOG RETENTION (3YR, DB400:499) | F190: 3YR Pre-Paid Cloud Storage | G190: Subscription Cloud Storage | H190: $42.27 | I190: 1.08% | J190: $41.81 | K190: P36M | L190: One-time
B191: SECURE STORAGE | C191: A-ADL-LOGS-T07-3Y | D191: 500-599 | E191: 1YR LOG RETENTION (3YR, DB500:599) | F191: 3YR Pre-Paid Cloud Storage | G191: Subscription Cloud Storage | H191: $41.40 | I191: 1.08% | J191: $40.95 | K191: P36M | L191: One-time
B192: SECURE STORAGE | C192: A-ADL-LOGS-T08-3Y | D192: 600-699 | E192: 1YR LOG RETENTION (3YR, DB600:699) | F192: 3YR Pre-Paid Cloud Storage | G192: Subscription Cloud Storage | H192: $40.26 | I192: 1.08% | J192: $39.83 | K192: P36M | L192: One-time
B193: SECURE STORAGE | C193: A-ADL-LOGS-T09-3Y | D193: 700-999 | E193: 1YR LOG RETENTION (3YR, DB700:999) | F193: 3YR Pre-Paid Cloud Storage | G193: Subscription Cloud Storage | H193: $38.34 | I193: 1.08% | J193: $37.93 | K193: P36M | L193: One-time
B194: SECURE STORAGE | C194: A-ADL-LOGS-T10-3Y | D194: 1000-2999 | E194: 1YR LOG RETENTION (3YR, DB1,000:2,999) | F194: 3YR Pre-Paid Cloud Storage | G194: Subscription Cloud Storage | H194: $26.73 | I194: 1.08% | J194: $26.44 | K194: P36M | L194: One-time
B195: SECURE STORAGE | C195: A-ADL-LOGS-T11-3Y | D195: 3000-5999 | E195: 1YR LOG RETENTION (3YR, DB3,000:5,999) | F195: 3YR Pre-Paid Cloud Storage | G195: Subscription Cloud Storage | H195: $18.99 | I195: 1.08% | J195: $18.78 | K195: P36M | L195: One-time
B196: SECURE STORAGE | C196: A-ADL-LOGS-T12-3Y | D196: 6000-8999 | E196: 1YR LOG RETENTION (3YR, DB6,000:8,999) | F196: 3YR Pre-Paid Cloud Storage | G196: Subscription Cloud Storage | H196: $10.62 | I196: 1.08% | J196: $10.51 | K196: P36M | L196: One-time
B197: SECURE STORAGE | C197: A-ADL-LOGS-T13-3Y | D197: 9000+ | E197: 1YR LOG RETENTION (3YR, DB9,000+) | F197: 3YR Pre-Paid Cloud Storage | G197: Subscription Cloud Storage | H197: $7.68 | I197: 1.08% | J197: $7.60 | K197: P36M | L197: One-time
A199: MONTHLY PRICING | B199: SECURE STORAGE | C199: A-ADL-LOGS-T01-M | D199: 1-74 | E199: 1YR LOG RETENTION (MTHLY, DB1:74) | F199: MTHLY Pre-Paid Cloud Storage | G199: Subscription Cloud Storage | H199: $3.86 | I199: 1.08% | J199: =H199*(1-I199) -> $3.82 | K199: P12M | L199: Monthly
B200: SECURE STORAGE | C200: A-ADL-LOGS-T02-M | D200: 75-149 | E200: 1YR LOG RETENTION (MTHLY, DB75:149) | F200: MTHLY Pre-Paid Cloud Storage | G200: Subscription Cloud Storage | H200: $3.03 | I200: 1.08% | J200: $3.00 | K200: P12M | L200: Monthly
B201: SECURE STORAGE | C201: A-ADL-LOGS-T03-M | D201: 150-199 | E201: 1YR LOG RETENTION (MTHLY, DB150:199) | F201: MTHLY Pre-Paid Cloud Storage | G201: Subscription Cloud Storage | H201: $2.20 | I201: 1.08% | J201: $2.18 | K201: P12M | L201: Monthly
B202: SECURE STORAGE | C202: A-ADL-LOGS-T04-M | D202: 200-299 | E202: 1YR LOG RETENTION (MTHLY, DB200:299) | F202: MTHLY Pre-Paid Cloud Storage | G202: Subscription Cloud Storage | H202: $1.79 | I202: 1.08% | J202: $1.77 | K202: P12M | L202: Monthly
B203: SECURE STORAGE | C203: A-ADL-LOGS-T05-M | D203: 300-399 | E203: 1YR LOG RETENTION (MTHLY, DB300:399) | F203: MTHLY Pre-Paid Cloud Storage | G203: Subscription Cloud Storage | H203: $1.38 | I203: 1.08% | J203: $1.37 | K203: P12M | L203: Monthly
B204: SECURE STORAGE | C204: A-ADL-LOGS-T06-M | D204: 400-499 | E204: 1YR LOG RETENTION (MTHLY, DB400:499) | F204: MTHLY Pre-Paid Cloud Storage | G204: Subscription Cloud Storage | H204: $1.35 | I204: 1.08% | J204: $1.34 | K204: P12M | L204: Monthly
B205: SECURE STORAGE | C205: A-ADL-LOGS-T07-M | D205: 500-599 | E205: 1YR LOG RETENTION (MTHLY, DB500:599) | F205: MTHLY Pre-Paid Cloud Storage | G205: Subscription Cloud Storage | H205: $1.32 | I205: 1.08% | J205: $1.31 | K205: P12M | L205: Monthly
B206: SECURE STORAGE | C206: A-ADL-LOGS-T08-M | D206: 600-699 | E206: 1YR LOG RETENTION (MTHLY, DB600:699) | F206: MTHLY Pre-Paid Cloud Storage | G206: Subscription Cloud Storage | H206: $1.29 | I206: 1.08% | J206: $1.28 | K206: P12M | L206: Monthly
B207: SECURE STORAGE | C207: A-ADL-LOGS-T09-M | D207: 700-999 | E207: 1YR LOG RETENTION (MTHLY, DB700:999) | F207: MTHLY Pre-Paid Cloud Storage | G207: Subscription Cloud Storage | H207: $1.22 | I207: 1.08% | J207: $1.21 | K207: P12M | L207: Monthly
B208: SECURE STORAGE | C208: A-ADL-LOGS-T10-M | D208: 1000-2999 | E208: 1YR LOG RETENTION (MTHLY, DB1,000:2,999) | F208: MTHLY Pre-Paid Cloud Storage | G208: Subscription Cloud Storage | H208: $0.85 | I208: 1.08% | J208: $0.84 | K208: P12M | L208: Monthly
B209: SECURE STORAGE | C209: A-ADL-LOGS-T11-M | D209: 3000-5999 | E209: 1YR LOG RETENTION (MTHLY, DB3,000:5,999) | F209: MTHLY Pre-Paid Cloud Storage | G209: Subscription Cloud Storage | H209: $0.61 | I209: 1.08% | J209: $0.60 | K209: P12M | L209: Monthly
B210: SECURE STORAGE | C210: A-ADL-LOGS-T12-M | D210: 6000-8999 | E210: 1YR LOG RETENTION (MTHLY, DB6,000:8,999) | F210: MTHLY Pre-Paid Cloud Storage | G210: Subscription Cloud Storage | H210: $0.34 | I210: 1.08% | J210: $0.34 | K210: P12M | L210: Monthly
... 374 more rows

Sheet Akamai
A1: Vendor | B1: Description | C1: Manufacturer Part Number | D1: NASPO Price
A2: Akamai | B2: ########################################################## | C2: INT-000-APP-APIS-ASM-DSA-DSAC-16-001 | D2: $1,440.00
A3: Akamai | B3: (Additional DSA Enterprise MPV --- per MPV) | C3: 100-978.3 | D3: $609.37
A4: Akamai | B4: (Additional DSA Enterprise MPV --- per MPV) | C4: 100-978.1 | D4: $761.71
A5: Akamai | B5: • 24/7 Threat Hunting by Guardicore Threat Expert. 1,001-2,000 • 4 unplanned incidents inquiry per year | C5: GC-HUNT-3 | D5: $47.50
A6: Akamai | B6: • 24/7 Threat Hunting by Guardicore Threat Expert. 1,001-2,000 • 4 unplanned incidents inquiry per year | C6: GC-HUNT-3-R | D6: $48.75
A7: Akamai | B7: • 24/7 Threat Hunting by Guardicore Threat Expert. 10,001-20,000 • 4 unplanned incidents inquiry per year | C7: GC-HUNT-6 | D7: $39.90
A8: Akamai | B8: • 24/7 Threat Hunting by Guardicore Threat Expert. 10,001-20,000 • 4 unplanned incidents inquiry per year | C8: GC-HUNT-6-R | D8: $40.95
A9: Akamai | B9: • 24/7 Threat Hunting by Guardicore Threat Expert. 1-500 • 4 unplanned incidents inquiry per year | C9: GC-HUNT-1-R | D9: $82.88
A10: Akamai | B10: • 24/7 Threat Hunting by Guardicore Threat Expert. 1-500 • 4 unplanned incidents inquiry per year | C10: GC-HUNT-1 | D10: $80.75
A11: Akamai | B11: • 24/7 Threat Hunting by Guardicore Threat Expert. 2,001-5,000 • 4 unplanned incidents inquiry per year | C11: GC-HUNT-4-R | D11: $45.83
A12: Akamai | B12: • 24/7 Threat Hunting by Guardicore Threat Expert. 2,001-5,000 • 4 unplanned incidents inquiry per year | C12: GC-HUNT-4 | D12: $44.65
A13: Akamai | B13: • 24/7 Threat Hunting by Guardicore Threat Expert. 20,001-30,000 • 4 unplanned incidents inquiry per year | C13: GC-HUNT-7 | D13: $32.30
A14: Akamai | B14: • 24/7 Threat Hunting by Guardicore Threat Expert. 20,001-30,000 • 4 unplanned incidents inquiry per year | C14: GC-HUNT-7-R | D14: $33.15
A15: Akamai | B15: • 24/7 Threat Hunting by Guardicore Threat Expert. 30,001-40,000 • 4 unplanned incidents inquiry per year | C15: GC-HUNT-8 | D15: $27.55
A16: Akamai | B16: • 24/7 Threat Hunting by Guardicore Threat Expert. 30,001-40,000 • 4 unplanned incidents inquiry per year | C16: GC-HUNT-8-R | D16: $28.28
A17: Akamai | B17: • 24/7 Threat Hunting by Guardicore Threat Expert. 40,001-50,000 • 4 unplanned incidents inquiry per year | C17: GC-HUNT-9 | D17: $23.75
A18: Akamai | B18: • 24/7 Threat Hunting by Guardicore Threat Expert. 40,001-50,000 • 4 unplanned incidents inquiry per year | C18: GC-HUNT-9-R | D18: $24.38
A19: Akamai | B19: • 24/7 Threat Hunting by Guardicore Threat Expert. 5,001-10,000 • 4 unplanned incidents inquiry per year | C19: GC-HUNT-5 | D19: $42.75
A20: Akamai | B20: • 24/7 Threat Hunting by Guardicore Threat Expert. 5,001-10,000 • 4 unplanned incidents inquiry per year | C20: GC-HUNT-5-R | D20: $43.88
A21: Akamai | B21: • 24/7 Threat Hunting by Guardicore Threat Expert. 50,001+ • 4 unplanned incidents inquiry per year | C21: GC-HUNT-10 | D21: $19.95
A22: Akamai | B22: • 24/7 Threat Hunting by Guardicore Threat Expert. 50,001+ • 4 unplanned incidents inquiry per year | C22: GC-HUNT-10-R | D22: $20.48
A23: Akamai | B23: • 24/7 Threat Hunting by Guardicore Threat Expert. 501-1,000 • 4 unplanned incidents inquiry per year | C23: GC-HUNT-2 | D23: $52.25
A24: Akamai | B24: • 24/7 Threat Hunting by Guardicore Threat Expert. 501-1,000 • 4 unplanned incidents inquiry per year | C24: GC-HUNT-2-R | D24: $53.63
A25: Akamai | B25: • 24/7 Threat Hunting for EP by Guardicore Threat Expert. 1,001-2,000 • 4 unplanned incidents inquiries per year | C25: GC-HUNT-EP-3-R | D25: $15.60
A26: Akamai | B26: • 24/7 Threat Hunting for EP by Guardicore Threat Expert. 1,001-2,000 • 4 unplanned incidents inquiries per year | C26: GC-HUNT-EP-3 | D26: $15.20
A27: Akamai | B27: • 24/7 Threat Hunting for EP by Guardicore Threat Expert. 10,001-20,000 • 4 unplanned incidents inquiries per year | C27: GC-HUNT-EP-6-R | D27: $10.73
A28: Akamai | B28: • 24/7 Threat Hunting for EP by Guardicore Threat Expert. 10,001-20,000 • 4 unplanned incidents inquiries per year | C28: GC-HUNT-EP-6 | D28: $10.45
A29: Akamai | B29: • 24/7 Threat Hunting for EP by Guardicore Threat Expert. 1-500 • 4 unplanned incidents inquiries per year | C29: GC-HUNT-EP-1-R | D29: $17.55
A30: Akamai | B30: • 24/7 Threat Hunting for EP by Guardicore Threat Expert. 1-500 • 4 unplanned incidents inquiries per year | C30: GC-HUNT-EP-1 | D30: $17.10
A31: Akamai | B31: • 24/7 Threat Hunting for EP by Guardicore Threat Expert. 2,001-5,000 • 4 unplanned incidents inquiries per year | C31: GC-HUNT-EP-4-R | D31: $15.60
A32: Akamai | B32: • 24/7 Threat Hunting for EP by Guardicore Threat Expert. 2,001-5,000 • 4 unplanned incidents inquiries per year | C32: GC-HUNT-EP-4 | D32: $15.20
A33: Akamai | B33: • 24/7 Threat Hunting for EP by Guardicore Threat Expert. 20,001-30,000 • 4 unplanned incidents inquiries per year | C33: GC-HUNT-EP-7-R | D33: $10.73
A34: Akamai | B34: • 24/7 Threat Hunting for EP by Guardicore Threat Expert. 20,001-30,000 • 4 unplanned incidents inquiries per year | C34: GC-HUNT-EP-7 | D34: $10.45
A35: Akamai | B35: • 24/7 Threat Hunting for EP by Guardicore Threat Expert. 30,001-40,000 • 4 unplanned incidents inquiries per year | C35: GC-HUNT-EP-8-R | D35: $10.73
A36: Akamai | B36: • 24/7 Threat Hunting for EP by Guardicore Threat Expert. 30,001-40,000 • 4 unplanned incidents inquiries per year | C36: GC-HUNT-EP-8 | D36: $10.45
A37: Akamai | B37: • 24/7 Threat Hunting for EP by Guardicore Threat Expert. 40,001-50,000 • 4 unplanned incidents inquiries per year | C37: GC-HUNT-EP-9-R | D37: $10.73
A38: Akamai | B38: • 24/7 Threat Hunting for EP by Guardicore Threat Expert. 40,001-50,000 • 4 unplanned incidents inquiries per year | C38: GC-HUNT-EP-9 | D38: $10.45
A39: Akamai | B39: • 24/7 Threat Hunting for EP by Guardicore Threat Expert. 5,001-10,000 • 4 unplanned incidents inquiries per year | C39: GC-HUNT-EP-5-R | D39: $13.65
A40: Akamai | B40: • 24/7 Threat Hunting for EP by Guardicore Threat Expert. 5,001-10,000 • 4 unplanned incidents inquiries per year | C40: GC-HUNT-EP-5 | D40: $13.30
A41: Akamai | B41: • 24/7 Threat Hunting for EP by Guardicore Threat Expert. 50,001+ • 4 unplanned incidents inquiries per year | C41: GC-HUNT-EP-10 | D41: $10.45
A42: Akamai | B42: • 24/7 Threat Hunting for EP by Guardicore Threat Expert. 50,001+ • 4 unplanned incidents inquiries per year | C42: GC-HUNT-EP-10-R | D42: $10.73
A43: Akamai | B43: • 24/7 Threat Hunting for EP by Guardicore Threat Expert. 501-1,000 • 4 unplanned incidents inquiries per year | C43: GC-HUNT-EP-2-R | D43: $17.55
A44: Akamai | B44: • 24/7 Threat Hunting for EP by Guardicore Threat Expert. 501-1,000 • 4 unplanned incidents inquiries per year | C44: GC-HUNT-EP-2 | D44: $17.10
A45: Akamai | B45: • On-Premise Management • No Remote Access • Per 500 assets • Up to two upgrades per year • Troubleshooting support including • Local presence as need | C45: GC-ADD-SUP-NOACCS-R | D45: $24,375.00
A46: Akamai | B46: • On-Premise Management • No Remote Access • Per 500 assets • Up to two upgrades per year • Troubleshooting support including • Local presence as need | C46: GC-ADD-SUP-NOACCS | D46: $23,750.00
A47: Akamai | B47: • SaaS Model • Per 500 Licenses (Servers, SPAN Collector/Hosts, DSK/EP, BM) • Annual fee, priced per month, of data retention above 60 days | C47: GC-ADD-SAAS-STORAGE-R | D47: $1,950.00
A48: Akamai | B48: • SaaS Model • Per 500 Licenses (Servers, SPAN Collector/Hosts, DSK/EP, BM) • Annual fee, priced per month, of data retention above 60 days | C48: GC-ADD-SAAS-STORAGE | D48: $1,900.00
A49: Akamai | B49: 1 Day Professional Services | C49: GC-PS-1D | D49: $2,437.50
A50: Akamai | B50: 1 Day Professional Services | C50: GC-PS-1D-R | D50: $2,437.50
A51: Akamai | B51: 10 Zones unlimited hits - Base Fee | C51: 100-1000-130.003 | D51: $1,209.07
A52: Akamai | B52: 100 GB SXL Overage (per GB Delivered) | C52: 100-822.16 | D52: $7.62
A53: Akamai | B53: 100 Zones Unlimited Hits - Base Fee | C53: 100-1000-130.007 | D53: $4,231.74
A54: Akamai | B54: 1000 GB SXL Overage (per GB Delivered) | C54: 100-822.18 | D54: $6.85
A55: Akamai | B55: 1000 Zones Unlimited Hits - Base Fee | C55: 100-1000-130.009 | D55: $6,045.34
A56: Akamai | B56: 10000 GB SXL Overage (per GB Delivered) | C56: 100-822.23 | D56: $4.95
A57: Akamai | B57: 1Y / 3Y Starter Package | C57: GC-SP200-JOINT-SAAS | D57: $172,000.00
A58: Akamai | B58: 1Y Starter Package - • Up to 200 WLs • SaaS Management • Installation • TURNKEY - Implementation of up to 3 use case • Premium Support | C58: GC-SP200-TK-SAAS-1 | D58: $114,000.00
A59: Akamai | B59: 1Y Starter Package - • Up to 200 WLs • SaaS Management • Installation • TURNKEY - Implementation of up to 3 use case • Premium Support | C59: GC-SP200-TK-SAAS-1-R | D59: $117,000.00
A60: Akamai | B60: 1Y Starter Package • Up to 200 WLs • On Premise Management • Installation • JOINT - (Guide-Do-Review) implementation of 1 use case and consultative guidance of up to 2 use cases • Premium Support | C60: GC-SP200-JOINT-ONP-1 | D60: $114,000.00
A61: Akamai | B61: 1Y Starter Package • Up to 200 WLs • On Premise Management • Installation • JOINT - (Guide-Do-Review) implementation of 1 use case and consultative guidance of up to 2 use cases • Premium Support | C61: GC-SP200-JOINT-ONP-1-R | D61: $117,000.00
A62: Akamai | B62: 1Y Starter Package • Up to 200 WLs • On Premise Management • Installation • TURNKEY - Implementation of up to 3 use case • Premium Support | C62: GC-SP200-TK-ONP-1 | D62: $133,000.00
A63: Akamai | B63: 1Y Starter Package • Up to 200 WLs • On Premise Management • Installation • TURNKEY - Implementation of up to 3 use case • Premium Support | C63: GC-SP200-TK-ONP-1-R | D63: $136,500.00
A64: Akamai | B64: 1Y Starter Package • Up to 200 WLs • SaaS / On-Prem Management • Installation • Core Infrastructure Risk Reduction to Ransomware Including 1 Application Ringfence • Premium Support | C64: GC-SP200-RW-1 | D64: $99,750.00
A65: Akamai | B65: 1Y Starter Package • Up to 200 WLs • SaaS / On-Prem Management • Installation • Core Infrastructure Risk Reduction to Ransomware Including 1 Application Ringfence • Premium Support | C65: GC-SP200-RW-1-R | D65: $102,375.00
A66: Akamai | B66: 1Y Starter Package • Up to 200 WLs • SaaS Management • Installation • JOINT - Guide-Do-Review implementation of 1 use case and consultative guidance of up tp 2 use cases • Premium Support | C66: GC-SP200-JOINT-SAAS-1-1Y | D66: $95,000.00
A67: Akamai | B67: 1Y Starter Package • Up to 200 WLs • SaaS Management • Installation • JOINT - Guide-Do-Review implementation of 1 use case and consultative guidance of up tp 2 use cases • Premium Support | C67: GC-SP200-JOINT-SAAS-1-1Y -R | D67: $97,500.00
A68: Akamai | B68: 2000 GB SXL Overage (per GB Delivered) | C68: 100-822.19 | D68: $6.48
A69: Akamai | B69: 24/7 Threat Hunting for WL's by Guardicore Threat Expert. 4 unplanned incidents inquiries per year | C69: GC-HUNT | D69: $68.00
A70: Akamai | B70: 3 Zones unlimited hits - Base Fee | C70: 100-1000-130.001 | D70: $604.53
A71: Akamai | B71: 3Y Starter Package - • Up to 200 WLs • SaaS Management • Installation • TURNKEY - Implementation of up to 3 use case • Premium Support | C71: GC-SP200-TK-SAAS-2 | D71: $223,250.00
A72: Akamai | B72: 3Y Starter Package - • Up to 200 WLs • SaaS Management • Installation • TURNKEY - Implementation of up to 3 use case • Premium Support | C72: GC-SP200-TK-SAAS-2-R | D72: $229,125.00
A73: Akamai | B73: 3Y Starter Package • Up to 200 WLs • On Premise Management • Installation • JOINT - (Guide-Do-Review) implementation of 1 use case and consultative guidance of up to 2 use cases • Premium Support | C73: GC-SP200-JOINT-ONP-2 | D73: $242,250.00
A74: Akamai | B74: 3Y Starter Package • Up to 200 WLs • On Premise Management • Installation • JOINT - (Guide-Do-Review) implementation of 1 use case and consultative guidance of up to 2 use cases • Premium Support | C74: GC-SP200-JOINT-ONP-2-R | D74: $248,625.00
A75: Akamai | B75: 3Y Starter Package • Up to 200 WLs • On Premise Management • Installation • TURNKEY - Implementation of up to 3 use case • Premium Support | C75: GC-SP200-TK-ONP-2 | D75: $261,250.00
A76: Akamai | B76: 3Y Starter Package • Up to 200 WLs • On Premise Management • Installation • TURNKEY - Implementation of up to 3 use case • Premium Support | C76: GC-SP200-TK-ONP-2-R | D76: $268,125.00
A77: Akamai | B77: 3Y Starter Package • Up to 200 WLs • SaaS / On-Prem Management • Installation • Core Infrastructure Risk Reduction to Ransomware Including 1 Application Ringfence • Premium Support | C77: GC-SP200-RW-2 | D77: $209,000.00
A78: Akamai | B78: 3Y Starter Package • Up to 200 WLs • SaaS / On-Prem Management • Installation • Core Infrastructure Risk Reduction to Ransomware Including 1 Application Ringfence • Premium Support | C78: GC-SP200-RW-2-R | D78: $214,500.00
A79: Akamai | B79: 3Y Starter Package • Up to 200 WLs • SaaS Management • Installation • JOINT - Guide-Do-Review implementation of 1 use case and consultative guidance of up tp 2 use cases • Premium Support | C79: GC-SP200-JOINT-SAAS-1-3Y | D79: $204,250.00
A80: Akamai | B80: 3Y Starter Package • Up to 200 WLs • SaaS Management • Installation • JOINT - Guide-Do-Review implementation of 1 use case and consultative guidance of up tp 2 use cases • Premium Support | C80: GC-SP200-JOINT-SAAS-1-3Y -R | D80: $209,625.00
A81: Akamai | B81: 4000 GB SXL Overage (per GB Delivered) | C81: 100-822.20 | D81: $6.10
A82: Akamai | B82: 50 Mbps | C82: 100-70.085 | D82: $19,076.68
A83: Akamai | B83: 50 Zones unlimited hits - Base Fee | C83: 100-1000-130.005 | D83: $3,022.67
A84: Akamai | B84: 500 GB SXL Overage (per GB Delivered) | C84: 100-822.17 | D84: $7.23
A85: Akamai | B85: 6000 GB SXL Overage (per GB Delivered) | C85: 100-822.21 | D85: $5.71
A86: Akamai | B86: 8000 GB SXL Overage( per GB Delivered) | C86: 100-822.22 | D86: $5.33
A87: Akamai | B87: Access Control | C87: 100-1000-01.100 | D87: $1,612.09
A88: Akamai | B88: Access Control (Legacy Customer Sale Only) PS Enterprise Custom SOW (per hour) | C88: 100-1000-04 | D88: $241.81
A89: Akamai | B89: Access Control (Legacy Customer Sale Only) PS Managed Integration (w/refer checking, block, central auth) | C89: 100-1000-03 | D89: $2,418.14
A90: Akamai | B90: Access Control (Legacy Customer Sale Only) PS Standard Integration (w/refer checking, block, central auth) | C90: 100-1000-02 | D90: $1,612.09
A91: Akamai | B91: Access Control- Shared Services- Recurring | C91: 100-1000-01 | D91: $2,856.42
A92: Akamai | B92: Account Protector - Commitment - GB, 1 - 24999 | C92: APE-000-GBC-21-001 | D92: $2.06
A93: Akamai | B93: Account Protector - Commitment - GB, 100000 - 499999 | C93: APE-000-GBC-21-004 | D93: $0.34
A94: Akamai | B94: Account Protector - Commitment - GB, 1000000 - 1999999 | C94: APE-000-GBC-21-006 | D94: $0.08
A95: Akamai | B95: Account Protector - Commitment - GB, 2000000 - Unlimited | C95: APE-000-GBC-21-007 | D95: $0.72
A96: Akamai | B96: Account Protector - Commitment - GB, 25000 - 49999 | C96: APE-000-GBC-21-002 | D96: $0.94
A97: Akamai | B97: Account Protector - Commitment - GB, 50000 - 99999 | C97: APE-000-GBC-21-003 | D97: $0.51
A98: Akamai | B98: Account Protector - Commitment - GB, 500000 - 999999 | C98: APE-000-GBC-21-005 | D98: $0.13
A99: Akamai | B99: Account Protector - Commitment - Additional Security Configurations, 1 | C99: APE-000-DOQ-21-001 | D99: $1,120.00
A100: Akamai | B100: Account Protector - Commitment - Additional Security Configurations, 10 | C100: APE-000-DOQ-21-002 | D100: $5,360.00
A101: Akamai | B101: Account Protector - Commitment - Additional Security Configurations, 100 | C101: APE-000-DOQ-21-003 | D101: $37,360.00
A102: Akamai | B102: Account Protector - Commitment - Additional Security Configurations, 1000 | C102: APE-000-DOQ-21-004 | D102: $187,200.00
A103: Akamai | B103: Account Protector - Commitment - Mbps, 1 - 149 | C103: APE-000-MBC-21-001 | D103: $410.40
A104: Akamai | B104: Account Protector - Commitment - Mbps, 12000 - Unlimited | C104: APE-000-MBC-21-007 | D104: $13.68
A105: Akamai | B105: Account Protector - Commitment - Mbps, 150 - 299 | C105: APE-000-MBC-21-002 | D105: $188.64
A106: Akamai | B106: Account Protector - Commitment - Mbps, 300 - 599 | C106: APE-000-MBC-21-003 | D106: $102.96
A107: Akamai | B107: Account Protector - Commitment - Mbps, 3000 - 5999 | C107: APE-000-MBC-21-005 | D107: $25.68
A108: Akamai | B108: Account Protector - Commitment - Mbps, 600 - 2999 | C108: APE-000-MBC-21-004 | D108: $68.64
A109: Akamai | B109: Account Protector - Commitment - Mbps, 6000 - 11999 | C109: APE-000-MBC-21-006 | D109: $15.36
A110: Akamai | B110: Account Protector - Flat fee - Per Month | C110: APE-000-PEF-21-001 | D110: $12,000.00
A111: Akamai | B111: Account Protector - Overage - GB, 1 - 24999 | C111: APE-000-GBC-21-008 | D111: $2.06
A112: Akamai | B112: Account Protector - Overage - GB, 100000 - 499999 | C112: APE-000-GBC-21-011 | D112: $0.34
A113: Akamai | B113: Account Protector - Overage - GB, 1000000 - 1999999 | C113: APE-000-GBC-21-013 | D113: $0.08
A114: Akamai | B114: Account Protector - Overage - GB, 2000000 - Unlimited | C114: APE-000-GBC-21-014 | D114: $0.07
A115: Akamai | B115: Account Protector - Overage - GB, 25000 - 49999 | C115: APE-000-GBC-21-009 | D115: $0.94
A116: Akamai | B116: Account Protector - Overage - GB, 50000 - 99999 | C116: APE-000-GBC-21-010 | D116: $0.51
A117: Akamai | B117: Account Protector - Overage - GB, 500000 - 999999 | C117: APE-000-GBC-21-012 | D117: $0.13
A118: Akamai | B118: Account Protector - Overage - Mbps, 1 - 149 | C118: APE-000-MBC-21-008 | D118: $410.40
A119: Akamai | B119: Account Protector - Overage - Mbps, 12000 - Unlimited | C119: APE-000-MBC-21-014 | D119: $13.68
A120: Akamai | B120: Account Protector - Overage - Mbps, 150 - 299 | C120: APE-000-MBC-21-009 | D120: $188.64
A121: Akamai | B121: Account Protector - Overage - Mbps, 300 - 599 | C121: APE-000-MBC-21-010 | D121: $102.96
A122: Akamai | B122: Account Protector - Overage - Mbps, 3000 - 5999 | C122: APE-000-MBC-21-012 | D122: $25.68
A123: Akamai | B123: Account Protector - Overage - Mbps, 600 - 2999 | C123: APE-000-MBC-21-011 | D123: $68.64
A124: Akamai | B124: Account Protector - Overage - Mbps, 6000 - 11999 | C124: APE-000-MBC-21-013 | D124: $15.36
A125: Akamai | B125: Adaptive Image Compression - Additional Commit (per Million Images) | C125: 100-30.94 | D125: $761.71
A126: Akamai | B126: Adaptive Image Compression Additional Commit (per Million Images) | C126: 100-30.133 | D126: $761.71
A127: Akamai | B127: Adaptive Image Compression Base Fee (Includes 1 site) | C127: 100-30.080 | D127: $2,285.14
A128: Akamai | B128: Adaptive Image Compression Mobile Front End Optimization - Base Fee (Includes 1 | C128: 100-30.135 | D128: $2,285.14
A129: Akamai | B129: Adaptive Image Compression Overage (per Million Images) | C129: 100-30.134 | D129: $76.17
A130: Akamai | B130: Adaptive Media Delivery HTTPS (Custom Cert): 0 to 10000 GB Commitment, Monthly | C130: AMDCC-GBC-15-001 | D130: $7.96
A131: Akamai | B131: Adaptive Media Delivery HTTPS (Custom Cert): 0 to 10000 GB Overage, As Incurred | C131: AMDCC-GBO-15-001 | D131: $7.96
A132: Akamai | B132: Adaptive Media Delivery HTTPS (Custom Cert): 0 to 60 Mbps Commitment, Monthly | C132: AMDCC-MBC-15-001 | D132: $1,310.63
A133: Akamai | B133: Adaptive Media Delivery HTTPS (Custom Cert): 0 to 60 Mbps Overage, As Incurred | C133: AMDCC-MBO-15-001 | D133: $1,310.63
A134: Akamai | B134: Adaptive Media Delivery HTTPS (Custom Cert): 1000001 to 2500000 GB Commitment, Monthly | C134: AMDCC-GBC-15-008 | D134: $1.99
A135: Akamai | B135: Adaptive Media Delivery HTTPS (Custom Cert): 1000001 to 2500000 GB Overage, As Incurred | C135: AMDCC-GBO-15-008 | D135: $1.99
A136: Akamai | B136: Adaptive Media Delivery HTTPS (Custom Cert): 100001 to 250000 GB Commitment, Monthly | C136: AMDCC-GBC-15-005 | D136: $2.99
A137: Akamai | B137: Adaptive Media Delivery HTTPS (Custom Cert): 100001 to 250000 GB Overage, As Incurred | C137: AMDCC-GBO-15-005 | D137: $2.99
A138: Akamai | B138: Adaptive Media Delivery HTTPS (Custom Cert): 10001 to 25000 GB Commitment, Monthly | C138: AMDCC-GBC-15-002 | D138: $5.97
A139: Akamai | B139: Adaptive Media Delivery HTTPS (Custom Cert): 10001 to 25000 GB Overage, As Incurred | C139: AMDCC-GBO-15-002 | D139: $5.97
A140: Akamai | B140: Adaptive Media Delivery HTTPS (Custom Cert): 15001 to 999999999 Mbps Commitment, Monthly | C140: AMDCC-MBC-15-009 | D140: $313.57
A141: Akamai | B141: Adaptive Media Delivery HTTPS (Custom Cert): 15001 to 999999999 Mbps Overage, As Incurred | C141: AMDCC-MBO-15-009 | D141: $313.57
A142: Akamai | B142: Adaptive Media Delivery HTTPS (Custom Cert): 1501 to 3000 Mbps Commitment, Monthly | C142: AMDCC-MBC-15-006 | D142: $326.31
A143: Akamai | B143: Adaptive Media Delivery HTTPS (Custom Cert): 1501 to 3000 Mbps Overage, As Incurred | C143: AMDCC-MBO-15-006 | D143: $326.31
A144: Akamai | B144: Adaptive Media Delivery HTTPS (Custom Cert): 151 to 300 Mbps Commitment, Monthly | C144: AMDCC-MBC-15-003 | D144: $658.20
A145: Akamai | B145: Adaptive Media Delivery HTTPS (Custom Cert): 151 to 300 Mbps Overage, As Incurred | C145: AMDCC-MBO-15-003 | D145: $658.20
A146: Akamai | B146: Adaptive Media Delivery HTTPS (Custom Cert): 2500001 to 999999999 GB Commitment, Monthly | C146: AMDCC-GBC-15-009 | D146: $1.99
A147: Akamai | B147: Adaptive Media Delivery HTTPS (Custom Cert): 2500001 to 999999999 GB Overage, As Incurred | C147: AMDCC-GBO-15-009 | D147: $1.99
A148: Akamai | B148: Adaptive Media Delivery HTTPS (Custom Cert): 250001 to 500000 GB Commitment, Monthly | C148: AMDCC-GBC-15-006 | D148: $1.99
A149: Akamai | B149: Adaptive Media Delivery HTTPS (Custom Cert): 250001 to 500000 GB Overage, As Incurred | C149: AMDCC-GBO-15-006 | D149: $1.99
A150: Akamai | B150: Adaptive Media Delivery HTTPS (Custom Cert): 25001 to 50000 GB Commitment, Monthly | C150: AMDCC-GBC-15-003 | D150: $3.98
A151: Akamai | B151: Adaptive Media Delivery HTTPS (Custom Cert): 25001 to 50000 GB Overage, As Incurred | C151: AMDCC-GBO-15-003 | D151: $3.98
A152: Akamai | B152: Adaptive Media Delivery HTTPS (Custom Cert): 3001 to 6000 Mbps Commitment, Monthly | C152: AMDCC-MBC-15-007 | D152: $323.53
A153: Akamai | B153: Adaptive Media Delivery HTTPS (Custom Cert): 3001 to 6000 Mbps Overage, As Incurred | C153: AMDCC-MBO-15-007 | D153: $323.53
A154: Akamai | B154: Adaptive Media Delivery HTTPS (Custom Cert): 301 to 600 Mbps Commitment, Monthly | C154: AMDCC-MBC-15-004 | D154: $655.02
A155: Akamai | B155: Adaptive Media Delivery HTTPS (Custom Cert): 301 to 600 Mbps Overage, As Incurred | C155: AMDCC-MBO-15-004 | D155: $655.02
A156: Akamai | B156: Adaptive Media Delivery HTTPS (Custom Cert): 500001 to 1000000 GB Commitment, Monthly | C156: AMDCC-GBC-15-007 | D156: $1.99
A157: Akamai | B157: Adaptive Media Delivery HTTPS (Custom Cert): 500001 to 1000000 GB Overage, As Incurred | C157: AMDCC-GBO-15-007 | D157: $1.99
A158: Akamai | B158: Adaptive Media Delivery HTTPS (Custom Cert): 50001 to 100000 GB Commitment, Monthly | C158: AMDCC-GBC-15-004 | D158: $3.98
A159: Akamai | B159: Adaptive Media Delivery HTTPS (Custom Cert): 50001 to 100000 GB Overage, As Incurred | C159: AMDCC-GBO-15-004 | D159: $3.98
A160: Akamai | B160: Adaptive Media Delivery HTTPS (Custom Cert): 6001 to 15000 Mbps Commitment, Monthly | C160: AMDCC-MBC-15-008 | D160: $320.34
A161: Akamai | B161: Adaptive Media Delivery HTTPS (Custom Cert): 6001 to 15000 Mbps Overage, As Incurred | C161: AMDCC-MBO-15-008 | D161: $320.34
A162: Akamai | B162: Adaptive Media Delivery HTTPS (Custom Cert): 601 to 1500 Mbps Commitment, Monthly | C162: AMDCC-MBC-15-005 | D162: $491.16
A163: Akamai | B163: Adaptive Media Delivery HTTPS (Custom Cert): 601 to 1500 Mbps Overage, As Incurred | C163: AMDCC-MBO-15-005 | D163: $491.16
A164: Akamai | B164: Adaptive Media Delivery HTTPS (Custom Cert): 61 to 150 Mbps Commitment, Monthly | C164: AMDCC-MBC-15-002 | D164: $985.51
A165: Akamai | B165: Adaptive Media Delivery HTTPS (Custom Cert): 61 to 150 Mbps Overage, As Incurred | C165: AMDCC-MBO-15-002 | D165: $985.51
A166: Akamai | B166: Adaptive Media Delivery HTTPS (Custom Cert): Base Fee, Monthly | C166: AMDCC-PLT-15-001 | D166: $19,909.32
A167: Akamai | B167: Adaptive Media Delivery HTTPS (Shared Cert): 0 to 10000 GB Commitment, Monthly | C167: AMD-GBPC-15-001 | D167: $6.13
A168: Akamai | B168: Adaptive Media Delivery HTTPS (Shared Cert): 0 to 10000 GB Overage, As Incurred | C168: AMD-GBPO-15-001 | D168: $6.13
A169: Akamai | B169: Adaptive Media Delivery HTTPS (Shared Cert): 0 to 60 Mbps Commitment, Monthly | C169: AMD-MBC-15-001 | D169: $1,008.18
A170: Akamai | B170: Adaptive Media Delivery HTTPS (Shared Cert): 0 to 60 Mbps Overage, As Incurred | C170: AMD-MBO-15-001 | D170: $1,008.18
A171: Akamai | B171: Adaptive Media Delivery HTTPS (Shared Cert): 1000001 to 2500000 GB Commitment, Monthly | C171: AMD-GBPC-15-008 | D171: $1.53
A172: Akamai | B172: Adaptive Media Delivery HTTPS (Shared Cert): 1000001 to 2500000 GB Overage, As Incurred | C172: AMD-GBPO-15-008 | D172: $1.53
A173: Akamai | B173: Adaptive Media Delivery HTTPS (Shared Cert): 100001 to 250000 GB Commitment, Monthly | C173: AMD-GBPC-15-005 | D173: $2.30
A174: Akamai | B174: Adaptive Media Delivery HTTPS (Shared Cert): 100001 to 250000 GB Overage, As Incurred | C174: AMD-GBPO-15-005 | D174: $2.30
A175: Akamai | B175: Adaptive Media Delivery HTTPS (Shared Cert): 10001 to 25000 GB Commitment, Monthly | C175: AMD-GBPC-15-002 | D175: $4.59
A176: Akamai | B176: Adaptive Media Delivery HTTPS (Shared Cert): 10001 to 25000 GB Overage, As Incurred | C176: AMD-GBPO-15-002 | D176: $4.59
A177: Akamai | B177: Adaptive Media Delivery HTTPS (Shared Cert): 15001 to 999999999 Mbps Commitment, Monthly | C177: AMD-MBC-15-009 | D177: $241.21
A178: Akamai | B178: Adaptive Media Delivery HTTPS (Shared Cert): 15001 to 999999999 Mbps Overage, As Incurred | C178: AMD-MBO-15-009 | D178: $241.21
A179: Akamai | B179: Adaptive Media Delivery HTTPS (Shared Cert): 1501 to 3000 Mbps Commitment, Monthly | C179: AMD-MBC-15-006 | D179: $251.01
A180: Akamai | B180: Adaptive Media Delivery HTTPS (Shared Cert): 151 to 300 Mbps Commitment, Monthly | C180: AMD-MBC-15-003 | D180: $506.31
A181: Akamai | B181: Adaptive Media Delivery HTTPS (Shared Cert): 151 to 300 Mbps Overage, As Incurred | C181: AMD-MBO-15-003 | D181: $506.31
A182: Akamai | B182: Adaptive Media Delivery HTTPS (Shared Cert): 2500001 to 999999999 GB Commitment, Monthly | C182: AMD-GBPC-15-009 | D182: $1.53
A183: Akamai | B183: Adaptive Media Delivery HTTPS (Shared Cert): 2500001 to 999999999 GB Overage, As Incurred | C183: AMD-GBPO-15-009 | D183: $1.53
A184: Akamai | B184: Adaptive Media Delivery HTTPS (Shared Cert): 250001 to 500000 GB Commitment, Monthly | C184: AMD-GBPC-15-006 | D184: $1.53
A185: Akamai | B185: Adaptive Media Delivery HTTPS (Shared Cert): 250001 to 500000 GB Overage, As Incurred | C185: AMD-GBPO-15-006 | D185: $1.53
A186: Akamai | B186: Adaptive Media Delivery HTTPS (Shared Cert): 25001 to 50000 GB Commitment, Monthly | C186: AMD-GBPC-15-003 | D186: $3.06
A187: Akamai | B187: Adaptive Media Delivery HTTPS (Shared Cert): 25001 to 50000 GB Overage, As Incurred | C187: AMD-GBPO-15-003 | D187: $3.06
A188: Akamai | B188: Adaptive Media Delivery HTTPS (Shared Cert): 3001 to 6000 Mbps Commitment, Monthly | C188: AMD-MBC-15-007 | D188: $248.87
A189: Akamai | B189: Adaptive Media Delivery HTTPS (Shared Cert): 3001 to 6000 Mbps Overage, As Incurred | C189: AMD-MBO-15-007 | D189: $248.87
A190: Akamai | B190: Adaptive Media Delivery HTTPS (Shared Cert): 301 to 600 Mbps Commitment, Monthly | C190: AMD-MBC-15-004 | D190: $503.86
A191: Akamai | B191: Adaptive Media Delivery HTTPS (Shared Cert): 301 to 600 Mbps Overage, As Incurred | C191: AMD-MBO-15-004 | D191: $503.86
A192: Akamai | B192: Adaptive Media Delivery HTTPS (Shared Cert): 500001 to 1000000 GB Commitment, Monthly | C192: AMD-GBPC-15-007 | D192: $1.53
A193: Akamai | B193: Adaptive Media Delivery HTTPS (Shared Cert): 500001 to 1000000 GB Overage, As Incurred | C193: AMD-GBPO-15-007 | D193: $1.53
A194: Akamai | B194: Adaptive Media Delivery HTTPS (Shared Cert): 50001 to 100000 GB Commitment, Monthly | C194: AMD-GBPC-15-004 | D194: $3.06
A195: Akamai | B195: Adaptive Media Delivery HTTPS (Shared Cert): 50001 to 100000 GB Overage, As Incurred | C195: AMD-GBPO-15-004 | D195: $3.06
A196: Akamai | B196: Adaptive Media Delivery HTTPS (Shared Cert): 6001 to 15000 Mbps Commitment, Monthly | C196: AMD-MBC-15-008 | D196: $246.42
A197: Akamai | B197: Adaptive Media Delivery HTTPS (Shared Cert): 6001 to 15000 Mbps Overage, As Incurred | C197: AMD-MBO-15-008 | D197: $246.42
A198: Akamai | B198: Adaptive Media Delivery HTTPS (Shared Cert): 601 to 1500 Mbps Commitment, Monthly | C198: AMD-MBC-15-005 | D198: $377.82
A199: Akamai | B199: Adaptive Media Delivery HTTPS (Shared Cert): 601 to 1500 Mbps Overage, As Incurred | C199: AMD-MBO-15-005 | D199: $377.82
A200: Akamai | B200: Adaptive Media Delivery HTTPS (Shared Cert): 61 to 150 Mbps Commitment, Monthly | C200: AMD-MBC-15-002 | D200: $758.09
... 925 more rows

Sheet Alteryx
A1: Vendor | B1: Description | C1: Manufacturer Part Number | D1: NASPO Price
A2: Alteryx | B2: Designer Cloud powered by Trifacta - Enterprise Platform | C2: AX-187458 | D2: $29,676.00
A3: Alteryx | B3: Designer Cloud powered by Trifacta - Enterprise User | C3: AX-187457 | D3: $8,853.34
A4: Alteryx | B4: Designer Cloud powered by Trifacta - Self Managed Additional Workflow | C4: AX-187456 | D4: $5,935.20
A5: Alteryx | B5: Designer Cloud powered by Trifacta - Customer Managed Sandbox | C5: AX-187455 | D5: $39,568.00
A6: Alteryx | B6: Designer Cloud powered by Trifacta - Self Managed User | C6: AX-187454 | D6: $8,853.34
A7: Alteryx | B7: Designer Cloud powered by Trifacta - Self Managed Platform | C7: AX-187453 | D7: $79,136.00
A8: Alteryx | B8: Designer Cloud powered by Trifacta - Enterprise Sandbox | C8: AX-187452 | D8: $14,838.00
A9: Alteryx | B9: Designer Cloud powered by Trifacta - Professional User | C9: AX-187450 | D9: $4,896.54
A10: Alteryx | B10: Designer Cloud powered by Trifacta - Professional Platform | C10: AX-187449 | D10: $9,892.00
A11: Alteryx | B11: Designer Cloud powered by Trifacta - Additional Workflow Runs | C11: AX-187425 | D11: $5,935.20
A12: Alteryx | B12: Alteryx Analytics Cloud Enterprise Bundle - 20 Users | C12: AX-187428 | D12: $163,218.00
A13: Alteryx | B13: Alteryx Analytics Cloud Enterprise Bundle - 30 Users | C13: AX-187429 | D13: $257,192.00
A14: Alteryx | B14: Alteryx Analytics Cloud Enterprise Bundle - 50 Users | C14: AX-187430 | D14: $385,788.00
A15: Alteryx | B15: Alteryx Analytics Cloud Enterprise Bundle - 75 Users | C15: AX-187431 | D15: $499,546.00
A16: Alteryx | B16: Alteryx Analytics Cloud Enterprise Bundle - 100 Users | C16: AX-187432 | D16: $608,358.00
A17: Alteryx | B17: Alteryx Analytics Cloud Enterprise Bundle - 150 Users | C17: AX-187433 | D17: $766,630.00
A18: Alteryx | B18: Alteryx Analytics Cloud Enterprise Bundle - 200 Users | C18: AX-187434 | D18: $959,524.00
A19: Alteryx | B19: Alteryx Analytics Cloud Enterprise Bundle - 300 Users | C19: AX-187435 | D19: $1,236,500.00
A20: Alteryx | B20: Alteryx Analytics Cloud Enterprise Bundle - 500 Users | C20: AX-187436 | D20: $1,661,856.00

Sheet APC
A1: APC Schneider
A2: Navigation Path | B2: Part Number | C2: Model | D2: NAM LIST PRICE USD | E2: NASPO Price
A3: AV Power Conditioners with Battery >> Audio-Video Solutions | B3: SRAILKIT | C3: APC AV S Type Universal Rail Kit | D3: $60.00 | E3: $59.39
A4: AV Power Filters >> Audio-Video Solutions | B4: G5BLK | C4: APC AV 15 Amp G Type Rack Power Filter, 120V | D4: $340.00 | E4: $336.53
A5: Business Continuity Software >> Data Center Infrastructure Management (DCIM) Software | B5: 940-0020 | C5: UPS Communications Cable Simple Signalling | D5: $71.00 | E5: $70.28
B6: 940-0024 | C6: UPS-LINK CABLE KIT | D6: $48.00 | E6: $47.51
B7: AP940-0625A | C7: RJ45 serial cable for Smart-UPS LCD Models 2M | D7: $40.00 | E7: $39.59
B8: AP940-1525A | C8: RJ45 serial cable for Smart-UPS LCD Models 15 | D8: $60.00 | E8: $59.39
B9: AP9804 | C9: UPS Communications Cable Smart Signalling 15' / 4.5m | D9: $71.00 | E9: $70.28
B10: AP9815 | C10: UPS INTERFACE EXTENSION | D10: $48.00 | E10: $47.51
B11: AP9824LJ | C11: LINUX POWERCHUTE CABLE KIT FOR JPAA | D11: $40.00 | E11: $39.59
B12: AP9827 | C12: Simple Signaling UPS Cable USB to RJ45 | D12: $48.00 | E12: $47.51
B13: AP98275 | C13: UPS Signaling Offer for IBM AS/400 and IBMi (IBM Power Systems) | D13: $102.00 | E13: $100.96
B14: SWPCNS1Y-DIGI | C14: PowerChute Network Shutdown License for Virtualization and HCI, 1-Year | D14: $188.00 | E14: $186.08
B15: SWPCNS3Y-DIGI | C15: PowerChute Network Shutdown License for Virtualization and HCI, 3-Year | D15: $479.00 | E15: $474.11
B16: SWPCNS5Y-DIGI | C16: PowerChute Network Shutdown License for Virtualization and HCI, 5-Year | D16: $800.00 | E16: $791.84
B17: SWPCNS6Y-DIGI | C17: PowerChute Network Shutdown License for Virtualization and HCI, 6-Year | D17: $958.00 | E17: $948.23
A18: Bypass Panels >> Uninterruptible Power Supply (UPS) | B18: SBP6KRMT2U | C18: APC Service Bypass Panel- 200/208/240V: 50A: MBB: L6-30P/HW input: (1) L6-30R (2) L6-20R output | D18: $1,700.00 | E18: $1,682.66
B19: SBP10KRMI4U | C19: APC Service Bypass Panel- 230V, 100A, MBB, Hardwire input, IEC-320 output- (8) C13 (2) C19 | D19: $1,905.00 | E19: $1,885.57
B20: SBP10KRMT4U | C20: APC Service Bypass Panel- 200/208/240V 100A MBB Hardwire input (3) L6-30R (3) L6-20R output | D20: $2,770.00 | E20: $2,741.75
B21: SBP16KP | C21: APC Service Bypass Panel- 200/208/240V, 100A, MBB, Hardwire input/output | D21: $2,240.00 | E21: $2,217.15
B22: SBP16KRMP4U | C22: APC Service Bypass Panel- 200/208/240V, 100A, MBB, Hardwire input (6) L14-30R output | D22: $2,545.00 | E22: $2,519.04
B23: SBP16KRMP4U-HW | C23: APC Service Bypass Panel 200/208/240V Symmetra LX 4-16kVA (1)L14-30R, (3)L5-20R, (1)100A Hardwire | D23: $2,260.00 | E23: $2,236.95
B24: SBP20KP | C24: APC Service Bypass Panel 200/208/230/240V MBB 125A HW Input/Output | D24: $2,160.00 | E24: $2,137.97
B25: SBP20KRMT4U | C25: APC Service Bypass Panel 200/208/240V MBB 125A HW input (2) L6-30R (4) L6-20R output | D25: $2,110.00 | E25: $2,088.48
B26: SBP1500RM | C26: APC SERVICE BYPASS PANEL 120V 15A BBM 5-15P input (8) 5-15R output | D26: $393.00 | E26: $388.99
B27: SBP1500RMI | C27: APC SERVICE BYPASS PANEL 230V 10A BBM IEC C14 input, (6) IEC C13 output | D27: $507.00 | E27: $501.83
B28: SBP2200RM | C28: APC SERVICE BYPASS PANEL 120V 20A BBM 5-20P input (6) 5-15R (2) 5-20R output | D28: $467.00 | E28: $462.24
B29: SBP3000 | C29: APC Service Bypass Panel- 100-240V, 30A, BBM, Wall Mount, Hardwire Input/Output | D29: $950.00 | E29: $940.31
B30: SBP3000RM | C30: APC SERVICE BYPASS PANEL 120V 30A BBM L5-30P input (4) 5-20R (1) L5-30R output | D30: $531.00 | E30: $525.58
B31: SBP3000RM2U | C31: APC Service Bypass Panel- 100-120V: 30A: BBM: L5-30P input: (2) 5-20R (6) 5-15R output | D31: $1,080.00 | E31: $1,068.98
B32: SBP3000RMHW | C32: APC SERVICE BYPASS PANEL 230V 16A BBM Hardwire | D32: $625.00 | E32: $618.63
B33: SBP3000RMI | C33: APC SERVICE BYPASS PANEL 230V 16A BBM IEC C20 input, (6) IEC C13 (1) C19 output | D33: $612.00 | E33: $605.76
B34: SBP5000RMI2U | C34: APC Service Bypass Panel - 230V, 32A, BBM, IEC320 C20/HW Input, IEC-320 Output - (2) C19 (8) C13 | D34: $1,165.00 | E34: $1,153.12
B35: SBP5000RMT2U | C35: APC Service Bypass Panel - 200/208/240V, 30A, BBM, L6-30P input (2) L6-30R (2) L6-20R output | D35: $1,350.00 | E35: $1,336.23
A36: Close Coupled Air Conditioners >> Cooling | B36: ACAC10005 | C36: InRow Bridge Partition, Data Cable 300 MM | D36: $501.00 | E36: $495.89
B37: ACAC10010 | C37: InRow Bridge Partition, Data Cable 600 MM | D37: $592.00 | E37: $585.96
B38: ACAC10011 | C38: "3ft (0.9144m) Stainless Flex Pipe Kit 1" MPT to 1" FPT Union" | D38: $1,330.00 | E38: $1,316.43
B39: ACAC10012 | C39: "6ft (1.828m) Stainless Flex Pipe Kit 1" MPT to 1" FPT Union" | D39: $2,235.00 | E39: $2,212.20
B40: ACAC10013 | C40: "8ft (2.743m) Stainless Flex Pipe Kit 1" MPT to 1" FPT Union" | D40: $2,120.00 | E40: $2,098.38
B41: ACAC10016 | C41: "3ft (0.914m) Stainless Flex Pipe Kit 1.25" MPT to 1.5" NPSM, OFS, Female" | D41: $1,315.00 | E41: $1,301.59
B42: ACAC10017 | C42: "6ft (1.828m) Stainless Flex Pipe Kit 1.25" MPT to 1.5" NPSM, OFS, Female" | D42: $1,850.00 | E42: $1,831.13
B43: ACAC10022 | C43: "Isolation Valve Assemblies, 1/2" ODF" | D43: $249.00 | E43: $246.46
B44: ACAC10029 | C44: Flexible Refrigerant Bronze Hose 0.5 inches diameter x 9 ft long | D44: $3,250.00 | E44: $3,216.85
B45: ACAC10032 | C45: Top Piping Kit - ACRC301S | D45: $727.00 | E45: $719.58
B46: ACAC10033 | C46: Top Piping Kit - ACRC301H | D46: $751.00 | E46: $743.34
B47: ACAC10035 | C47: Compressor Acoustic Hood - RD25kW | D47: $594.00 | E47: $587.94
B48: ACAC10036 | C48: Humidity Sensor - RD25kW | D48: $258.00 | E48: $255.37
B49: ACAC10037 | C49: Ball Valve & Union - RD25kW | D49: $541.00 | E49: $535.48
B50: ACAC10038 | C50: Duplicate PSU (indoor) - RD25kW | D50: $1,355.00 | E50: $1,341.18
B51: ACAC10049 | C51: Winter Accessory Kit - Heaters, Brackets, Wiring | D51: $1,160.00 | E51: $1,148.17
B52: ACAC10051 | C52: Dual feed kit for Hydronic unit 200-240v | D52: $1,830.00 | E52: $1,811.33
B53: ACAC10053 | C53: Heaters for EBOX and VFD box in low ambient | D53: $1,335.00 | E53: $1,321.38
B54: ACAC10057 | C54: Winter Accessory Kit | D54: $1,410.00 | E54: $1,395.62
B55: ACAC10058 | C55: InRow ATS for 48VDC | D55: $2,100.00 | E55: $2,078.58
B56: ACAC10059 | C56: InRow ATS for 100-120v /200-240v | D56: $1,070.00 | E56: $1,059.09
B57: ACAC10060 | C57: Condensing unit ATS, CE/UL | D57: $1,165.00 | E57: $1,153.12
B58: ACAC10061 | C58: Pump - DP Control, 208-230V, 50/60Hz | D58: $6,105.00 | E58: $6,042.73
B59: ACAC10062 | C59: InRow ball valve and union | D59: $360.00 | E59: $356.33
B60: ACAC10063 | C60: Flooded Receiver, 2.2L with 75w heater | D60: $5,885.00 | E60: $5,824.97
B61: ACAC10502 | C61: "Condensate Drain Tubing - PVC Flex 0.25" (1/4") ID, 0.385" (3/8") OD x 50ft L (2 cooling units)" | D61: $74.00 | E61: $73.25
B62: ACAC10503 | C62: "Condensate Drain Tubing - PVC Flex 0.1875" (3/16") ID, 0.3125" (5/16") OD x 50ft L (2 cooling units)" | D62: $72.00 | E62: $71.27
B63: ACAC11008 | C63: InRow OA End Aisle Containment Kit - 42U | D63: $770.00 | E63: $762.15
B64: ACAC11009 | C64: InRow OA End Aisle Containment Kit - 48U | D64: $806.00 | E64: $797.78
B65: ACAC20002 | C65: CDU Flexible Fluid Piping - 300 Feet (91.4 Meters) | D65: $3,585.00 | E65: $3,548.43
B66: ACAC20003 | C66: CDU Flexible Fluid Piping - 100 Feet (30.4 Meters) | D66: $1,375.00 | E66: $1,360.98
B67: ACAC20005 | C67: CDU Flexible Fluid Piping Insulation - 102 Feet (31.0 Meters) | D67: $744.00 | E67: $736.41
B68: ACAC20006 | C68: CDU Flexible Fluid Piping Couplings (4 per pack) | D68: $469.00 | E68: $464.22
B69: ACAC75013 | C69: Flooded Receiver, 20L, 219mm diameter, 640mm length, GB with heater | D69: $3,955.00 | E69: $3,914.66
B70: ACAC75014 | C70: Flooded Receiver, 20L, 219mm diameter, 640mm length, ASME with heater | D70: $4,780.00 | E70: $4,731.24
B71: ACAC75015 | C71: Flooded Receiver, 20L, 219mm diameter, 640mm length, PED with heater | D71: $5,330.00 | E71: $5,275.63
B72: ACAC75016 | C72: Flooded Receiver, 20L, 219mm diameter, 640mm length, ASME with 200w heater | D72: $8,680.00 | E72: $8,591.46
B73: ACCD75228 | C73: Condenser, 38kW, 95F(35C),208-230V/3, 60Hz | D73: $19,460.00 | E73: $19,261.51
B74: ACCD75229 | C74: Condenser, 46kW, 115F(46C),208-230V/3, 60Hz | D74: $24,115.00 | E74: $23,869.03
B75: ACCD75230 | C75: Condenser, 38kW, 95F(35C,460V/3, 60Hz | D75: $18,020.00 | E75: $17,836.20
B76: ACCD75231 | C76: Condenser, 46kW, 115F(46C),460V/3, 60Hz | D76: $20,970.00 | E76: $20,756.11
B77: ACCD75232 | C77: Condenser, 46kw, 95F/115F(35C/46C),230V/1, 50Hz | D77: $10,180.00 | E77: $10,076.16
B78: ACCD75232-C | C78: Condenser, 46kw, 95F/115F(35C/46C),230V/1, 50Hz, with CE | D78: $11,135.00 | E78: $11,021.42
B79: ACCD75233-C | C79: Condenser, 46kw, 95F/115F(35C/46C),230V/1, 60Hz , with CE | D79: $10,560.00 | E79: $10,452.29
B80: ACCD75234 | C80: Condenser 1x1 Build to Order, 38kW, 95F, 208-230V/3, 60Hz (qsce54076) | D80: $16,580.00 | E80: $16,410.88
B81: ACCD75235 | C81: Condenser 1x1 Build to Order, 38kW, 95F, 460V/3, 60Hz (qsce55319) | D81: $18,020.00 | E81: $17,836.20
B82: ACCU100 | C82: Condensing unit, 200-240v, CE/UL | D82: $16,475.00 | E82: $16,306.96
B83: ACCU300 | C83: InRow DX 300mm Condensing Unit, 200-240v, Single Power, UL | D83: $28,235.00 | E83: $27,947.00
B84: ACCU300D | C84: InRow DX 300mm Condensing Unit, 200-240v, Dual Power, UL | D84: $31,260.00 | E84: $30,941.15
B85: ACCU301 | C85: InRow DX 300mm Condensing Unit, 460-480v, Single Power, UL | D85: $28,235.00 | E85: $27,947.00
B86: ACCU301D | C86: InRow DX 300mm Condensing Unit, 460-480v, Dual Power, UL | D86: $31,260.00 | E86: $30,941.15
B87: ACFD12-B | C87: Cooling Distribution Unit 12 Circuit, Bottom/Top Mains, Bottom Distribution Piping | D87: $25,945.00 | E87: $25,680.36
B88: ACFD12-T | C88: Cooling Distribution Unit 12 Circuit, Bottom/Top Mains, Top Distribution Piping | D88: $25,945.00 | E88: $25,680.36
B89: ACHU300 | C89: InRow 300mm Water-Cooled Condensing Unit, 200-240v, UL, ambient above 0C | D89: $21,920.00 | E89: $21,696.42
B90: ACHU300-L | C90: InRow 300mm Water-Cooled Condensing Unit, 200-240v, UL, ambient down to -40C | D90: $23,560.00 | E90: $23,319.69
B91: ACRC301H | C91: InRow RC, 300mm, Chilled Water, 208-230V, 50/60Hz - HT | D91: $23,260.00 | E91: $23,022.75
B92: ACRC301HXW | C92: RC 300mm HT, CW, 208-230V 50/60Hz -White | D92: $25,210.00 | E92: $24,952.86
B93: ACRC301S | C93: InRow RC, 300mm, Chilled Water, 100-240V, 50/60 Hz - ST | D93: $16,630.00 | E93: $16,460.37
B94: ACRC301SX797 | C94: InRow RC, 300mm, Chilled Water, 100-240V, 50/60 Hz - ST w/ gravity drain | D94: $14,680.00 | E94: $14,530.26
B95: ACRC301SXW | C95: InRow RC, 300mm, Chilled Water, 100-240V, 50/60 Hz - ST - RAL 9003 | D95: $17,040.00 | E95: $16,866.19
B96: ACRC600 | C96: InRow RC, 600mm, Chilled Water, 200-240V, 50/60Hz | D96: $35,125.00 | E96: $34,766.73
B97: ACRC600P | C97: InRow RC, 600mm, Chilled Water 200-240V 50/60Hz, w/ humidifier | D97: $37,880.00 | E97: $37,493.62
B98: ACRC601 | C98: InRow RC, 600mm, Chilled Water, 460-480V, 60Hz | D98: $35,220.00 | E98: $34,860.76
B99: ACRC601P | C99: InRow RC, 600mm, Chilled Water 460-480V 60Hz, w/ humidifier | D99: $35,985.00 | E99: $35,617.95
B100: ACRC602 | C100: InRow RC, 600mm, Chilled Water, 380-415V, 50/60Hz | D100: $34,000.00 | E100: $33,653.20
B101: ACRC602P | C101: InRow RC, 600mm, Chilled Water 380-415V 50/60 Hz, w/ humidifier | D101: $34,940.00 | E101: $34,583.61
B102: ACRD100 | C102: InRow RD, 300mm, Air Cooled, 208-230V, 60Hz | D102: $19,960.00 | E102: $19,756.41
B103: ACRD101 | C103: InRow RD, 300mm, Air Cooled, 220-240V, 50Hz | D103: $18,895.00 | E103: $18,702.27
B104: ACRD101D | C104: InRow DX 300mm Indoor Unit, 48VDC, Standard, CE/UL | D104: $19,650.00 | E104: $19,449.57
B105: ACRD101P | C105: InRow DX 300mm Indoor Unit, 200-240v, precision, CE/UL | D105: $26,130.00 | E105: $25,863.47
B106: ACRD101S | C106: InRow DX 300mm Indoor Unit, 100-120v /200-240v, Standard, CE/UL | D106: $20,260.00 | E106: $20,053.35
B107: ACRD200 | C107: InRow RD, 300mm, Fluid Cooled, 208-230V, 60Hz | D107: $22,295.00 | E107: $22,067.59
B108: ACRD201 | C108: InRow RD, 300mm, Fluid Cooled, 220-240V, 50Hz | D108: $21,185.00 | E108: $20,968.91
B109: ACRD301P | C109: InRow DX 300mm 30kW Indoor Unit, 200-240V, Humidifier & Reheat, CE/UL | D109: $22,265.00 | E109: $22,037.90
B110: ACRD301S | C110: InRow DX 300mm 30kW Indoor Unit, 100-120v /200-240v, Standard, CE/UL | D110: $20,615.00 | E110: $20,404.73
B111: ACRD600 | C111: InRow RD, 600mm Air Cooled, 200-240V, 50/60Hz | D111: $36,935.00 | E111: $36,558.26
B112: ACRD600P | C112: InRow RD, 600mm Air Cooled, 200-240V, 50/60Hz, with humidifier | D112: $39,310.00 | E112: $38,909.04
B113: ACRD601 | C113: InRow RD, 600mm Air Cooled, 460-480V, 60Hz | D113: $36,945.00 | E113: $36,568.16
B114: ACRD601P | C114: InRow RD, 600mm Air Cooled, 460-480V, 60Hz, with humidifier | D114: $39,310.00 | E114: $38,909.04
B115: ACRD602 | C115: InRow RD, 600mm Air Cooled, 380-415V, 50/60Hz | D115: $35,500.00 | E115: $35,137.90
B116: ACRD602P | C116: InRow RD, 600mm Air Cooled, 380-415V, 50/60Hz, with humidifier | D116: $40,285.00 | E116: $39,874.09
B117: ACRH301P | C117: InRow Twin Coil 300mm 27kW Indoor Unit, 200-240V, Humidifier & Reheat, CE/UL | D117: $25,360.00 | E117: $25,101.33
B118: ACRH301S | C118: InRow Twin Coil 300mm 27kW Indoor Unit, 200-240V, CE/UL | D118: $24,695.00 | E118: $24,443.11
B119: AP9325 | C119: Leak Sensor - 6.1 m (20 ft) w/ interface cable | D119: $590.00 | E119: $583.98
B120: AP9326 | C120: Leak Sensor - 6.1 m (20 ft) | D120: $446.00 | E120: $441.45
B121: RACSC101 | C121: InRow SC System 1 InRow SC, 1 NetShelter SX Rack 600mm, and Rear Containment | D121: $20,115.00 | E121: $19,909.83
B122: RACSC112 | C122: InRow SC System 1 InRow SC, 1 NetShelter SX Rack 600mm, with Front and Rear Containment | D122: $26,190.00 | E122: $25,922.86
B123: RACSC112E | C123: InRow SC System 1 InRow SC 50Hz 1PH, 1 NetShelter SX Rack 600mm, with Front and Rear Containment | D123: $25,630.00 | E123: $25,368.57
B124: RACSC201 | C124: InRow SC System 2 InRow SC units, 1 NetShelter SX Rack 600mm, and Rear Containment | D124: $34,015.00 | E124: $33,668.05
A125: Containment and Air Distribution >> Cooling | B125: ACAC22005 | C125: Active Flow Controller -125Pa | D125: $404.00 | E125: $399.88
B126: ACAC40000 | C126: NetShelter AV 2U Vent Panel with Temperature Display | D126: $153.00 | E126: $151.44
B127: ACAC40001 | C127: NetShelter AV 2U Vent Panel | D127: $106.00 | E127: $104.92
B128: ACF001 | C128: APC AIR DISTRIBUTION UNIT 2U RM 115V 60HZ | D128: $1,500.00 | E128: $1,484.70
B129: ACF001RF | C129: APC Replacement Filter Air Dist Unit | D129: $111.00 | E129: $109.87
B130: ACF002 | C130: APC AIR DIST UNIT 2U RM 230/208V 50/60HZ | D130: $1,390.00 | E130: $1,375.82
B131: ACF115 | C131: APC Rack Air Removal Unit SX Fan Assembly 100-240V 50/60 Hz | D131: $3,820.00 | E131: $3,781.04
B132: ACF126 | C132: APC Rack Air Removal Unit SX Ducting Kit 24 inch | D132: $366.00 | E132: $362.27
B133: ACF127 | C133: APC Air Removal Unit Ducting Kit 600mm | D133: $356.00 | E133: $352.37
B134: ACF136 | C134: APC Rack Air Removal Unit SX 600mm Wide Frame | D134: $926.00 | E134: $916.55
B135: ACF137 | C135: APC Rack Air Removal Unit SX 750mm Wide Frame | D135: $1,185.00 | E135: $1,172.91
B136: ACF201BLK | C136: Rack Side Air Distribution 2U 115V 60HZ | D136: $1,075.00 | E136: $1,064.04
B137: ACF202BLK | C137: APC SIDE AIR DISTRIBUTION UNIT 2U RM 230/208 50/60HZ | D137: $1,120.00 | E137: $1,108.58
B138: ACF400 | C138: APC Rack Air Removal Unit SX 100-240V 50/60 Hz with 600mm Wide Frame | D138: $4,490.00 | E138: $4,444.20
B139: ACF402 | C139: APC Rack Air Removal Unit SX 100-240V 50/60 Hz with 750mm Wide Frame | D139: $4,675.00 | E139: $4,627.32
B140: ACF501 | C140: Netshelter SX Roof Fan Tray 115 VAC | D140: $569.00 | E140: $563.20
B141: ACF502 | C141: Netshelter SX Roof Fan Tray 208-230 VAC | D141: $555.00 | E141: $549.34
B142: ACF503 | C142: Netshelter SX Roof Fan Tray 115 VAC 750mm | D142: $855.00 | E142: $846.28
B143: ACF504 | C143: Netshelter SX Roof Fan Tray 208-230 VAC 750mm | D143: $855.00 | E143: $846.28
B144: ACF505 | C144: NetShelter AV Roof Fan Tray 825mm 115VAC | D144: $558.00 | E144: $552.31
B145: ACF600 | C145: NetShelter AV 2U Rack Fan Panel | D145: $437.00 | E145: $432.54
B146: ACF601 | C146: NetShelter AV Rack Fan Temperature Controller | D146: $143.00 | E146: $141.54
B147: AR7725 | C147: Side Airflow Duct Kit For Nexus 7009, 750mm Wide Enclosures | D147: $643.00 | E147: $636.44
B148: AR7751 | C148: VED for 600mm Wide Short Range / Vertical Exhaust Duct Kit for SX Enclosure | D148: $1,100.00 | E148: $1,088.78
B149: AR7752 | C149: VED for 600mm Wide Tall Range / Vertical Exhaust Duct Kit for SX Enclosure | D149: $1,240.00 | E149: $1,227.35
B150: AR7752W | C150: VED for 600mm Wide Tall Range / Vertical Exhaust Duct Kit for SX Enclosure White | D150: $1,240.00 | E150: $1,227.35
B151: AR7753 | C151: VED for 750mm Wide Short Range / Vertical Exhaust Duct Kit for SX Enclosure | D151: $1,195.00 | E151: $1,182.81
B152: AR7753W | C152: VED for 750mm Wide Short Range / Vertical Exhaust Duct Kit for SX Enclosure White | D152: $1,310.00 | E152: $1,296.64
B153: AR7754 | C153: VED for 750mm Wide Tall Range / Vertical Exhaust Duct Kit for SX Enclosure | D153: $1,310.00 | E153: $1,296.64
B154: AR7754W | C154: VED for 750mm Wide Tall Range / Vertical Exhaust Duct Kit for SX Enclosure White | D154: $1,435.00 | E154: $1,420.36
B155: AR7755 | C155: Overhead Cable Extension 600mm Wide / Vertical Exhaust Duct Kit for SX Enclosure | D155: $300.00 | E155: $296.94
B156: AR7756 | C156: Overhead Cable Extension 750mm Wide / Vertical Exhaust Duct Kit for SX Enclosure | D156: $328.00 | E156: $324.65
B157: AR8206ABLK | C157: NETSHELTER WX FAN TRAY 120VAC BLACK | D157: $315.00 | E157: $311.79
B158: AR8207BLK | C158: NetShelter WX Fan Tray 230VAC Black | D158: $254.00 | E158: $251.41
B159: AR8213 | C159: NetShelter WX Fan Module | D159: $155.00 | E159: $153.42
A160: Data Center and Facility 3 Phase UPS >> Uninterruptible Power Supply (UPS) | B160: 0G-SY20KF | C160: GENERIC ASSY SYM 20KVA 3PH 208V W/DIST | D160: $29,240.00 | E160: $28,941.75
B161: 0M-G5TB300ADJ | C161: MGE GALAXY 5000 ADJ BAT CABINET TYPE 300 | D161: $7,590.00 | E161: $7,512.58
B162: 0M-G5TB490ADJ | C162: MGE GALAXY 5000 ADJ BAT CABINET TYPE 490 | D162: $11,955.00 | E162: $11,833.06
B163: 0M-G5TBSH01 | C163: MGE GALAXY 5000 BAT SHELF UPS12-300MR 32 | D163: $5,160.00 | E163: $5,107.37
B164: 0M-G5TH100K130GADJ | C164: MGE GALAXY 5000 100-130KVA ADJ MB 480V | D164: $7,675.00 | E164: $7,596.72
B165: 0M-G5THOPT010 | C165: MGE GALAXY 5000 100-130KVA W/LD ISO 208V | D165: $11,195.00 | E165: $11,080.81
B166: 0M-G5TU40K80G | C166: MGE GALAXY 5000 40/80KVA 480V | D166: $31,335.00 | E166: $31,015.38
B167: 0M-G5TU100K130G | C167: MGE GALAXY 5000 100/130KVA 480V | D167: $44,110.00 | E167: $43,660.08
B168: 0M-TMRAB001 | C168: EXTERNAL SYNCHRO BOX | D168: $4,525.00 | E168: $4,478.85
B169: 0M-TMRAB002 | C169: TEMPERATURE MONITOR | D169: $98.00 | E169: $97.00
B170: AP9644 | C170: Network Management Card LCES2 with Modbus, Ethernet, and Aux Sensors | D170: $1,165.00 | E170: $1,153.12
B171: BATTXP12V1800GNB | C171: XP12V1800 Exide 12V VRLA Battery | D171: $316.00 | E171: $312.78
B172: E3SBPAR10K40F | C172: Easy UPS 3S Parallel Maintenance Bypass Panel for 3 UPSs, 10-40kVA 208V | D172: $9,955.00 | E172: $9,853.46
B173: E3SBPSU10K20F | C173: Easy UPS 3S Maintenance Bypass Panel, single unit, 10-20kVA 208V | D173: $4,970.00 | E173: $4,919.31
B174: E3SBPSU30K40F | C174: Easy UPS 3S Maintenance Bypass Panel, single unit, 30-40kVA 208V | D174: $7,470.00 | E174: $7,393.81
B175: E3SFBTH2 | C175: Easy UPS 3S High Capacity Battery String 208V | D175: $1,670.00 | E175: $1,652.97
B176: E3SOPT001 | C176: Network Card for Easy UPS 3S, 3M, 3L and Galaxy PW 2nd Gen UPS | D176: $242.00 | E176: $239.53
B177: E3SOPT002 | C177: Easy UPS 3S Parallel Kit | D177: $585.00 | E177: $579.03
B178: E3SOPT010 | C178: Easy UPS 3S Dry Contact Card | D178: $274.00 | E178: $271.21
B179: E3SOPT014 | C179: Easy UPS 3S Cold Start Kit 10-40 kVA 208V | D179: $223.00 | E179: $220.73
B180: E3SOPT015 | C180: Easy UPS 3S Kirk Key Kit | D180: $1,255.00 | E180: $1,242.20
B181: E3SUPS10KFBS | C181: Easy UPS 3S 10 kVA 208V 3:3 UPS for internal batteries, Start-up 5x8 | D181: $12,220.00 | E181: $12,095.36
B182: E3SUPS15KFBS | C182: Easy UPS 3S 15 kVA 208V 3:3 UPS for internal batteries, Start-up 5x8 | D182: $14,035.00 | E182: $13,891.84
B183: E3SUPS20KFBS | C183: Easy UPS 3S 20 kVA 208V 3:3 UPS for internal batteries, Start-up 5x8 | D183: $15,345.00 | E183: $15,188.48
B184: E3SUPS30KFBS | C184: Easy UPS 3S 30 kVA 208V 3:3 UPS for internal batteries, Start-up 5x8 | D184: $19,340.00 | E184: $19,142.73
B185: E3SUPS40KFBS | C185: Easy UPS 3S 40 kVA 208V 3:3 UPS for internal batteries, Start-up 5x8 | D185: $23,005.00 | E185: $22,770.35
B186: E3SXR7 | C186: Easy UPS 3S Modular Battery Cabinet 208V | D186: $6,095.00 | E186: $6,032.83
B187: GVBEC | C187: Bottom Cable Entry Cabinet, 400 mm wide, for Galaxy VS/VL | D187: $2,980.00 | E187: $2,949.60
B188: GVEAC7 | C188: Galaxy V Series Empty Auxiliary Cabinet | D188: $6,025.00 | E188: $5,963.55
B189: GVL200K500DS | C189: Galaxy VL UPS 200 scalable to 500 kW, 400/480V, Start-up 5x8 | D189: $81,935.00 | E189: $81,099.26
B190: GVL300K500DS | C190: Galaxy VL UPS 300 scalable to 500 kW, 400/480V, Start-up 5x8 | D190: $104,910.00 | E190: $103,839.92
B191: GVL400K500DS | C191: Galaxy VL UPS 400 scalable to 500 kW, 400/480V, Start-up 5x8 | D191: $122,595.00 | E191: $121,344.53
B192: GVL500KDS | C192: Galaxy VL UPS 500 kW, 400/480V, Start-up 5x8 | D192: $139,895.00 | E192: $138,468.07
B193: GVLMBCA200K500G | C193: Galaxy VL Maintenance Bypass Cabinet single unit 200-500 kW 480V, Backfeed | D193: $29,225.00 | E193: $28,926.91
B194: GVLOPT001 | C194: Galaxy VL Performance Air Filter Kit for UPS | D194: $492.00 | E194: $486.98
B195: GVLOPT002 | C195: Galaxy VL Seismic Kit for UPS, Maintenance Bypass and Bottom Cable Entry Cabinet | D195: $1,150.00 | E195: $1,138.27
B196: GVLOPT003 | C196: Galaxy VL Internal Backfeed kit for UL | D196: $11,455.00 | E196: $11,338.16
B197: GVLOPT005 | C197: Galaxy VL Lithium-ion Battery Control Breaker Kit | D197: $849.00 | E197: $840.34
B198: GVLOPT006 | C198: Galaxy VL Parallel Communications Kit Worldwide | D198: $630.00 | E198: $623.57
B199: GVMDFW-KIT | C199: Galaxy VM Dust Filter Kit Wide Power Cabinet | D199: $390.00 | E199: $386.02
B200: GVML2MBCN-KIT | C200: Galaxy VM Level 2 Seismic Kit for Narrow Modular Battery Cabinet | D200: $537.00 | E200: $531.52
... 925 more rows

Sheet Appian
A1: Appian
A2: Description | B2: Manufacturer Part Number | C2: NASPO Price
A3: 100GB of Storage added to an existing Cloud Instance (Price per month; 12 month minimum purchase) | B3: 403-60000 | C3: $100.00
A4: A backup of a single cloud instance taken on demand at a mutually agreed-upon time within a 12 month period and retained for 90 days | B4: 403-74000 | C4: $1,000.00
A5: Additional 4 hour RPO in a second AWS region (Price per month; 12 month minimum purchase) | B5: 403-88000 | C5: $3,000.00
A6: An Enterprise User Cloud License grants the right to use the software to one, specific named user in for the duration of the term. (Price per month; 12 month minimum purchase) | B6: 403-10000 | C6: $200.00
A7: An Enterprise User Term License grants the right to use the software to one, specific named user for the duration of the term. (Price per month; 12 month minimum purchase) | B7: 402-10000 | C7: $200.00
A8: Appian Application User II (Price per month; 12 month minimum purchase) | B8: 403-32200 | C8: $75.00
A9: Appian Awards Management Solution – Large (Cloud) - Solution plus application license (Price per month; 12 month minimum purchase) | B9: 403-25106 | C9: $56,250.00
A10: Appian Awards Management Solution – Medium (Cloud) - Solution plus application license (Price per month; 12 month minimum purchase) | B10: 403-25105 | C10: $37,500.00
A11: Appian Awards Management Solution – Small (Cloud) - Solution plus application license (Price per month; 12 month minimum purchase) | B11: 403-25104 | C11: $18,750.00
A12: Appian Awards Management Solution (Large) - Solution plus application license (Price per month; 12 month minimum purchase) | B12: 402-25106 | C12: $56,250.00
A13: Appian Awards Management Solution (Small) - Solution plus application license (Price per month; 12 month minimum purchase) | B13: 402-25104 | C13: $18,750.00
A14: Appian Awards Management Solutions (Medium) - Solution and application license (Price per month; 12 month minimum purchase) | B14: 402-25105 | C14: $37,500.00
A15: Appian Government Clause Automation Solution (Large,Cloud) - Solution plus application license (Price per month; 12 month minimum purchase) | B15: 403-25403 | C15: $56,250.00
A16: Appian Government Clause Automation Solution (Large,On-Prem) - Solution plus application license (Price per month; 12 month minimum purchase) | B16: 402-25403 | C16: $56,250.00
A17: Appian Government Clause Automation Solution (Medium,Cloud) - Solution plus application license (Price per month; 12 month minimum purchase) | B17: 403-25402 | C17: $37,500.00
A18: Appian Government Clause Automation Solution (Medium,On-Prem) - Solution plus application license (Price per month; 12 month minimum purchase) | B18: 402-25402 | C18: $37,500.00
A19: Appian Government Clause Automation Solution (Small,Cloud) - Solution plus application license (Price per month; 12 month minimum purchase) | B19: 403-25401 | C19: $18,750.00
A20: Appian Government Clause Automation Solution (Small,On-Prem) - Solution plus application license (Price per month; 12 month minimum purchase) | B20: 402-25401 | C20: $18,750.00
A21: Appian Government Contract Writing Solution (Large,Cloud) - Solution plus application license (Price per month; 12 month minimum purchase) | B21: 403-25112 | C21: $125,000.00
A22: Appian Government Contract Writing Solution (Large,On-Prem) - Solution plus application license (Price per month; 12 month minimum purchase) | B22: 402-25112 | C22: $125,000.00
A23: Appian Government Contract Writing Solution (Medium,Cloud) - Solution plus application license (Price per month; 12 month minimum purchase) | B23: 403-25111 | C23: $83,333.33
A24: Appian Government Contract Writing Solution (MediumOn-Prem) - Solution plus application license (Price per month; 12 month minimum purchase) | B24: 402-25111 | C24: $83,333.33
A25: Appian Government Contract Writing Solution (Small,Cloud) - Solution plus application license (Price per month; 12 month minimum purchase) | B25: 403-25110 | C25: $41,666.67
A26: Appian Government Contract Writing Solution (Small,On-Prem) - Solution plus application license (Price per month; 12 month minimum purchase) | B26: 402-25110 | C26: $41,666.67
A27: Appian Government Source Selection Solution (Large,Cloud) - Solution plus application license (Price per month; 12 month minimum purchase) | B27: 403-25303 | C27: $56,250.00
A28: Appian Government Source Selection Solution (Large,On-Prem) - Solution plus application license (Price per month; 12 month minimum purchase) | B28: 402-25303 | C28: $56,250.00
A29: Appian Government Source Selection Solution (Medium,Cloud) - Solution plus application license (Price per month; 12 month minimum purchase) | B29: 403-25302 | C29: $37,500.00
A30: Appian Government Source Selection Solution (Medium,On-Prem) - Solution plus application license (Price per month; 12 month minimum purchase) | B30: 402-25302 | C30: $37,500.00
A31: Appian Government Source Selection Solution (Small,Cloud) - Solution plus application license (Price per month; 12 month minimum purchase) | B31: 403-25301 | C31: $18,750.00
A32: Appian Government Source Selection Solution (Small,On-Prem) - Solution plus application license (Price per month; 12 month minimum purchase) | B32: 402-25301 | C32: $18,750.00
A33: Appian Government Vendor Management Solution (Large,Cloud) - Solution plus application license (Price per month; 12 month minimum purchase) | B33: 403-25412 | C33: $56,250.00
A34: Appian Government Vendor Management Solution (Large,On-Prem) - Solution plus application license (Price per month; 12 month minimum purchase) | B34: 402-25412 | C34: $56,250.00
A35: Appian Government Vendor Management Solution (Medium,Cloud) - Solution plus application license (Price per month; 12 month minimum purchase) | B35: 403-25411 | C35: $37,500.00
A36: Appian Government Vendor Management Solution (Medium,On-Prem) - Solution plus application license (Price per month; 12 month minimum purchase) | B36: 402-25411 | C36: $37,500.00
A37: Appian Government Vendor Management Solution (Small,Cloud) - Solution plus application license (Price per month; 12 month minimum purchase) | B37: 403-25410 | C37: $18,750.00
A38: Appian Government Vendor Management Solution (Small,On-Prem) - Solution plus application license (Price per month; 12 month minimum purchase) | B38: 402-25410 | C38: $18,750.00
A39: Appian IDP Monthly Extraction Block (Price per month; 12 month minimum purchase) | B39: 403-26008 | C39: $2,500.00
A40: Appian Platform User II (Price per month; 12 month minimum purchase) | B40: 403-31002 | C40: $200.00
A41: Appian Process Mining - Included 3 Processes (12 Month) | B41: 403-41200 | C41: $0.00
A42: Appian Process Mining - Included One Process (12 Month) | B42: 403-41201 | C42: $0.00
A43: Appian Process Mining – Per Process (Cloud) (Price per month; 12 month minimum purchase) | B43: 403-41100 | C43: $2,083.33
A44: Appian Process Mining – Per Process (On-Premise) (Price per month; 12 month minimum purchase) | B44: 402-41100 | C44: $2,083.33
A45: Appian Process Mining -- Unlimited (Price per month; 12 month minimum purchase) | B45: 403-41000 | C45: $16,666.67
A46: Appian Process Mining - Unlimited Processes (On-Premise) (Price per month; 12 month minimum purchase) | B46: 402-41005 | C46: $16,666.67
A47: Appian RPA - Included 25 Bots (12 Month) | B47: 403-27004 | C47: $0.00
A48: Appian RPA - Included 5 Bots (12 Month) | B48: 403-27006 | C48: $0.00
A49: Appian RPA - One Appian RPA Bot (Price per month; 12 month minimum purchase) | B49: 403-27003 | C49: $125.00
A50: Appian Unauthenticated Portals - Upgrade (Price per month; 12 month minimum purchase) | B50: 403-35100 | C50: $833.33
A51: Appian Unauthenticated Portals (12 Month) | B51: 403-35000 | C51: $0.00
A52: Appian Unlimited Annual - Application Builder (On Premise) | B52: 402-43001 | C52: $0.00
A53: Appian Unlimited Annual - Usage License (On Premise) (12 Month) | B53: 402-43100 | C53: $868.06
A54: Appian Unlimited II Annual - Application Builder (Cloud) | B54: 403-44001 | C54: $0.00
A55: Appian Unlimited II Annual - Usage Subscription (Cloud) (12 Month) | B55: 403-44000 | C55: $868.06
A56: Appian Unlimited II Monthly - Application Builder (Cloud) Must be purchased with a priced SKU. | B56: 403-44101 | C56: $0.00
A57: Appian Unlimited II Monthly - Usage Subscription (Cloud) (12 Month) | B57: 403-44100 | C57: $1,666.67
A58: Appian Unlimited Monthly - Application Builder (On Premise) | B58: 402-43002 | C58: $0.00
A59: Appian Unlimited Monthly - Usage License (On Premise) (12 Month) | B59: 402-43101 | C59: $1,666.67
A60: Cloud - Available at 18% of the customer’s total current license charges (excludes other recurring charges) and includes High Availability. Minimum charge $2,500 per month per production instance with High Availability. 99.95% SLA. (Price per month; 12 m | B60: 403-83000 | C60: $0.18
A61: Cloud - Available at a charge of 25% of the customer’s total current license charges (excludes other recurring charges). Minimum charge $5,000 per month or 25%, whichever is higher; dedicated Lead Engineer; 99.99% SLA, and more. (Price per month; 12 mont | B61: 403-84000 | C61: $0.25
A62: Cloud - Includes Basic Support features plus phone support, enhanced response times, and 24x5 support for Priority 1 and 2 cases, and is available for all Appian customers at a charge of 12% of the customer’s total current license charges. (Price per mon | B62: 403-37000 | C62: $0.12
A63: Cloud - Includes with the purchase of an Appian software subscription, technical support during local business hours and a 99.8% SLA. | B63: 403-36000 | C63: $0.00
A64: Cloud 12xLarge Instance (RAM: 380 GB; vCPU: 48) (Price per month; 12 month minimum purchase) | B64: 403-54500 | C64: $9,000.00
A65: Cloud 24xLarge Instance (RAM: 760 GB; vCPU: 96) (Price per month; 12 month minimum purchase) | B65: 403-55100 | C65: $14,000.00
A66: Cloud Instance Upgrade - 12XL to 16XL (Price per month; 12 month minimum purchase) | B66: 403-57606 | C66: $2,500.00
A67: Cloud Instance Upgrade - 12XL to 24XL (Price per month; 12 month minimum purchase) | B67: 403-57607 | C67: $5,000.00
A68: Cloud Instance Upgrade - 16XL to 24XL (Price per month; 12 month minimum purchase) | B68: 403-57707 | C68: $2,500.00
A69: Cloud Instance Upgrade - 2XL - 8XL (Price per month; 12 month minimum purchase) | B69: 403-57304 | C69: $3,750.00
A70: Cloud Instance Upgrade - 2XL to 12XL (Price per month; 12 month minimum purchase) | B70: 403-57305 | C70: $5,250.00
A71: Cloud Instance Upgrade - 2XL to 24XL (Price per month; 12 month minimum purchase) | B71: 403-57307 | C71: $10,250.00
A72: Cloud Instance Upgrade - 2XL to 4XL (Price per month; 12 month minimum purchase) | B72: 403-57303 | C72: $1,250.00
A73: Cloud Instance Upgrade - 2XL to vCPU Intensive 18xLarge (Price per month; 12 month minimum purchase) | B73: 403-57309 | C73: $4,750.00
A74: Cloud Instance Upgrade - 2XL to vCPU Intensive 9xLarge (Price per month; 12 month minimum purchase) | B74: 403-57308 | C74: $1,250.00
A75: Cloud Instance Upgrade - 2XL-16XL (Price per month; 12 month minimum purchase) | B75: 403-57306 | C75: $5,250.00
A76: Cloud Instance Upgrade - 4XL to 12XL (Price per month; 12 month minimum purchase) | B76: 403-57405 | C76: $4,000.00
A77: Cloud Instance Upgrade - 4XL to 16XL (Price per month; 12 month minimum purchase) | B77: 403-57406 | C77: $6,500.00
A78: Cloud Instance Upgrade - 4XL to 24XL (Price per month; 12 month minimum purchase) | B78: 403-57407 | C78: $9,000.00
A79: Cloud Instance Upgrade - 4XL to 8XL (Price per month; 12 month minimum purchase) | B79: 403-57404 | C79: $2,500.00
A80: Cloud Instance Upgrade - 4XL to vCPU Intensive 18xLarge (Price per month; 12 month minimum purchase) | B80: 403-57409 | C80: $3,500.00
A81: Cloud Instance Upgrade - 8XL to 12XL (Price per month; 12 month minimum purchase) | B81: 403-57505 | C81: $1,500.00
A82: Cloud Instance Upgrade - 8XL to 16XL (Price per month; 12 month minimum purchase) | B82: 403-57506 | C82: $4,000.00
A83: Cloud Instance Upgrade - 8XL to 24XL (Price per month; 12 month minimum purchase) | B83: 403-57507 | C83: $6,500.00
A84: Cloud Instance Upgrade - 8XL to vCPU Intensive 18xLarge (Price per month; 12 month minimum purchase) | B84: 403-57509 | C84: $1,000.00
A85: Cloud Instance Upgrade - L to 12XL (Price per month; 12 month minimum purchase) | B85: 403-57105 | C85: $6,500.00
A86: Cloud Instance Upgrade - L to 16XL (Price per month; 12 month minimum purchase) | B86: 403-57106 | C86: $9,000.00
A87: Cloud Instance Upgrade - L to 24 XL (Price per month; 12 month minimum purchase) | B87: 403-57107 | C87: $11,500.00
A88: Cloud Instance Upgrade - L to 2XL (Price per month; 12 month minimum purchase) | B88: 403-57102 | C88: $1,250.00
A89: Cloud Instance Upgrade - L to 4XL (Price per month; 12 month minimum purchase) | B89: 403-57103 | C89: $2,500.00
A90: Cloud Instance Upgrade - L to 8XL (Price per month; 12 month minimum purchase) | B90: 403-57104 | C90: $5,000.00
A91: Cloud Instance Upgrade - L to vCPU Intensive 18xLarge (Price per month; 12 month minimum purchase) | B91: 403-57109 | C91: $6,000.00
A92: Cloud Instance Upgrade - L to vCPU Intensive 9xLarge (Price per month; 12 month minimum purchase) | B92: 403-57108 | C92: $2,500.00
A93: Cloud Instance Upgrade - L to XL (Price per month; 12 month minimum purchase) | B93: 403-57101 | C93: $450.00
A94: Cloud Instance Upgrade - XL to 12XL (Price per month; 12 month minimum purchase) | B94: 403-57205 | C94: $6,050.00
A95: Cloud Instance Upgrade - XL to 16XL (Price per month; 12 month minimum purchase) | B95: 403-57206 | C95: $8,550.00
A96: Cloud Instance Upgrade - XL to 24XL (Price per month; 12 month minimum purchase) | B96: 403-57207 | C96: $11,050.00
A97: Cloud Instance Upgrade - XL to 2XL (Price per month; 12 month minimum purchase) | B97: 403-57202 | C97: $800.00
A98: Cloud Instance Upgrade - XL to 4XL (Price per month; 12 month minimum purchase) | B98: 403-57203 | C98: $2,050.00
A99: Cloud Instance Upgrade - XL to 8XL (Price per month; 12 month minimum purchase) | B99: 403-57204 | C99: $4,550.00
A100: Cloud Instance Upgrade - XL to vCPU Intensive 18xLarge (Price per month; 12 month minimum purchase) | B100: 403-57209 | C100: $5,550.00
A101: Cloud Instance Upgrade - XL to vCPU Intensive 9xLarge (Price per month; 12 month minimum purchase) | B101: 403-57208 | C101: $2,050.00
A102: Cloud Instance w/ RAM: 120 GB and vCPU: 16 (Price per month; 12 month minimum purchase) | B102: 403-53000 | C102: $5,000.00
A103: Cloud Instance w/ RAM: 15 GB and vCPU: 2 (Price per month; 12 month minimum purchase) | B103: 403-50000 | C103: $2,500.00
A104: Cloud Instance w/ RAM: 240 GB and vCPU: 32 (Price per month; 12 month minimum purchase) | B104: 403-54000 | C104: $7,500.00
A105: Cloud Instance w/ RAM: 30 GB and vCPU: 4 (Price per month; 12 month minimum purchase) | B105: 403-51000 | C105: $2,950.00
A106: Cloud Instance w/ RAM: 480 GB and vCPU: 64 (Price per month; 12 month minimum purchase) | B106: 403-55000 | C106: $11,500.00
A107: Cloud Instance w/ RAM: 60 GB and vCPU: 8 (Price per month; 12 month minimum purchase) | B107: 403-52000 | C107: $3,750.00
A108: Cloud Software License : (1) Definition of the application (2) a maxium number of users, who are licensed to use the software for that application, and (3) the organization, department or division the license is being granted to. (Price per month; 12 mo | B108: 403-11000 | C108: $75.00
A109: Cloud Subscription - Infrequent User - Platform (3 times per month access) (Price per month; 12 month minimum purchase) | B109: 403-17600 | C109: $9.00
A110: Cloud Subscription - Application Input-Only User (Price per month; 12 month minimum purchase) | B110: 403-12500 | C110: $2.00
A111: Cloud vCPU Intensive 18xLarge Instance (RAM: 140 GB; vCPU: 72) (Price per month; 12 month minimum purchase) | B111: 403-55600 | C111: $8,500.00
A112: Cloud vCPU Intensive 9xLarge Instance (RAM: 70 GB; vCPU: 36) (Price per month; 12 month minimum purchase) | B112: 403-55500 | C112: $5,000.00
A113: High Availability for Non-Production Instance - 12xL (Price per month; 12 month minimum purchase) | B113: 403-54502 | C113: $9,000.00
A114: High Availability for Non-Production Instance - 16xL (Price per month; 12 month minimum purchase) | B114: 403-55002 | C114: $11,500.00
A115: High Availability for Non-Production Instance - 2xL (Price per month; 12 month minimum purchase) | B115: 403-52002 | C115: $3,750.00
A116: High Availability for Non-Production Instance - 4xL (Price per month; 12 month minimum purchase) | B116: 403-53002 | C116: $5,000.00
A117: High Availability for Non-Production Instance - 8xL (Price per month; 12 month minimum purchase) | B117: 403-54002 | C117: $7,500.00
A118: High Availability for Non-Production Instance - L (Price per month; 12 month minimum purchase) | B118: 403-50002 | C118: $2,500.00
A119: High Availability for Non-Production Instance - xL (Price per month; 12 month minimum purchase) | B119: 403-51002 | C119: $2,950.00
A120: HIPAA Compliance (One Time Setup) | B120: 403-73000 | C120: $0.00
A121: Individual Account User Up to 1 Million Users (Price per month; 12 month minimum purchase) | B121: 403-34006 | C121: $25,000.00
A122: Individual Account User Up to 10,000 Users (Price per month; 12 month minimum purchase) | B122: 403-34002 | C122: $4,166.67
A123: Individual Account User Up to 100,000 Users (Price per month; 12 month minimum purchase) | B123: 403-34004 | C123: $10,000.00
A124: Individual Account User Up to 3 Million Users (Price per month; 12 month minimum purchase) | B124: 403-34007 | C124: $33,333.33
A125: Individual Account User Up to 3,000 Users (Price per month; 12 month minimum purchase) | B125: 403-34001 | C125: $2,500.00
A126: Individual Account User Up to 30,000 Users (Price per month; 12 month minimum purchase) | B126: 403-34003 | C126: $7,083.33
A127: Individual Account User Up to 300,000 Users (Price per month; 12 month minimum purchase) | B127: 403-34005 | C127: $14,583.33
A128: Initial Base Non-Production Cloud Large Instance - Large non-production instance of the Cloud Offer | B128: 403-49001 | C128: $0.00
A129: Initial Enterprise Base Non-Production Cloud xLarge Instance - xLarge non-production instance of t | B129: 403-49200 | C129: $0.00
A130: Initial Process Mining Instance | B130: 403-49002 | C130: $0.00
A131: Initial Standard Advanced Production Cloud xLarge Instance - xLarge production instance of the Clou | B131: 403-49100 | C131: $0.00
A132: Initial Standard Base Production Cloud xLarge Instance - xLarge production instance of the Cloud O | B132: 403-49000 | C132: $0.00
A133: Institutional Account User Up to 1,000 Users (Price per month; 12 month minimum purchase) | B133: 403-33000 | C133: $4,166.67
A134: Institutional Account User Up to 10,000 Users (Price per month; 12 month minimum purchase) | B134: 403-33002 | C134: $10,000.00
A135: Institutional Account User Up to 100,000 Users (Price per month; 12 month minimum purchase) | B135: 403-33004 | C135: $25,000.00
A136: Institutional Account User Up to 3,000 Users (Price per month; 12 month minimum purchase) | B136: 403-33001 | C136: $6,666.67
A137: Institutional Account User Up to 30,000 Users (Price per month; 12 month minimum purchase) | B137: 403-33003 | C137: $14,583.33
A138: Institutional Account User Up to 300,000 Users (Price per month; 12 month minimum purchase) | B138: 403-33005 | C138: $33,333.33
A139: On Premises Term License - Infrequent User - Platform (3 times per month access) (Price per month; 12 month minimum purchase) | B139: 402-17600 | C139: $9.00
A140: One-time Setup Charge for Cloud Environment Price per Order (12 Month Access) | B140: 403-30000 | C140: $5,000.00
A141: On-Prem - Available at 18% of the customer’s total current license charges (excludes other recurring charges) and includes High Availability. Minimum charge $2,500 per month per production instance with High Availability. 99.95% SLA. (Price per month; 12 | B141: 413-83000 | C141: $0.18
A142: On-Prem - Available at a charge of 25% of the customer’s total current license charges (excludes other recurring charges). Minimum charge $5,000 per month or 25%, whichever is higher; dedicated Lead Engineer; 99.99% SLA, and more. (Price per month; 12 mo | B142: 413-84000 | C142: $0.25
A143: On-Prem - Includes Basic Support features plus phone support, enhanced response times, and 24x5 support for Priority 1 and 2 cases, and is available for all Appian customers at a charge of 12% of the customer’s total current license charges. (Price per m | B143: 413-37000 | C143: $0.12
A144: On-Prem - Includes with the purchase of an Appian software subscription, technical support during local business hours and a 99.8% SLA. | B144: 413-36000 | C144: $0.00
A145: On-premise Term License - Application Input-Only User (Price per month; 12 month minimum purchase) | B145: 402-12500 | C145: $2.00
A146: On-premise Term Software License: (1) Definition of the application (2) a maximum number of users, who are licensed to use the software for that application, and (3) the organization, department or division the license is being granted to. (Price per mon | B146: 402-11000 | C146: $75.00
A147: PCI Compliance (One Time Setup) (12 Month Access) | B147: 403-71000 | C147: $5,500.00
A148: PCI Compliance for the cloud instance being purchased (Price per month; 12 month minimum purchase) | B148: 403-70000 | C148: $4,500.00
A149: Requirements Management Solution - Large (Cloud) (Price per month; 12 month minimum purchase) | B149: 403-25103 | C149: $56,250.00
A150: Requirements Management Solution - Large (On-premise) (Price per month; 12 month minimum purchase) | B150: 402-25103 | C150: $56,250.00
A151: Requirements Management Solution - Medium (Cloud) (Price per month; 12 month minimum purchase) | B151: 403-25102 | C151: $37,500.00
A152: Requirements Management Solution - Medium (On-premise) (Price per month; 12 month minimum purchase) | B152: 402-25102 | C152: $37,500.00
A153: Requirements Management Solution - Small (Cloud) (Price per month; 12 month minimum purchase) | B153: 403-25101 | C153: $18,750.00
A154: Requirements Management Solution - Small (On-premise) (Price per month; 12 month minimum purchase) | B154: 402-25101 | C154: $18,750.00
A155: Standard Support for Cloud Subscription (currently bundled with cloud subscription fee.) (only to execute established contract options) | B155: 403-85000 | C155: $0.00
A156: Standard Support for On-premise Term Licenses (bundled in the Term License fee) (only to execute established contract options) | B156: 413-35000 | C156: $0.00
A157: The copying of all data & configurations residing on an instance to replace the data & configuration (Price per month; 12 month minimum purchase) | B157: 403-76000 | C157: $5,000.00
A158: The reversion of a cloud instance to an existing Planned Snapshot (Price per month; 12 month minimum purchase) | B158: 403-75000 | C158: $2,500.00

Sheet Armis
A2: Product Name | B2: Product Description | C2: Product Category | D2: Manufacturer Part Number (SKU) | E2: Type of Cloud Service (Ex. XaaS - Anything as a Service) | F2: Unit of Measure | G2: Units Per Unit of Measure | H2: NASPO Price
A3: Armis Elite | B3: Armis Elite - 0-2499 Assets | C3: Cyber Security Software | D3: ARM-ELITE-2499 | E3: SaaS | F3: Assets | G3: 1 | H3: $36,600.04
A4: Armis Elite | B4: Armis Elite - 2500-4999 Assets | C4: Cyber Security Software | D4: ARM-ELITE-4999 | E4: SaaS | F4: Assets | G4: 1 | H4: $60,330.40
A5: Armis Elite | B5: Armis Elite - 5000-9999 Assets | C5: Cyber Security Software | D5: ARM-ELITE-9999 | E5: SaaS | F5: Assets | G5: 1 | H5: $103,866.00
A6: Armis Elite | B6: Armis Elite - 10,000-19,999 Assets | C6: Cyber Security Software | D6: ARM-ELITE-19999 | E6: SaaS | F6: Assets | G6: 1 | H6: $163,218.00
A7: Armis Elite | B7: Armis Elite - 20,000-39,999 Assets | C7: Cyber Security Software | D7: ARM-ELITE-39999 | E7: SaaS | F7: Assets | G7: 1 | H7: $272,030.00
A8: Armis Elite | B8: Armis Elite - 40,000-79,999 Assets | C8: Cyber Security Software | D8: ARM-ELITE-79999 | E8: SaaS | F8: Assets | G8: 1 | H8: $509,438.00
A9: Armis Elite | B9: Armis Elite - 80,000-159,999 Assets | C9: Cyber Security Software | D9: ARM-ELITE-159999 | E9: SaaS | F9: Assets | G9: 1 | H9: $939,740.00
A10: Armis Elite | B10: Armis Elite - 160,000-319,999 Assets | C10: Cyber Security Software | D10: ARM-ELITE-319999 | E10: SaaS | F10: Assets | G10: 1 | H10: $1,780,560.00
A11: Armis Elite | B11: Armis Elite - 320,000-639,999 Assets | C11: Cyber Security Software | D11: ARM-ELITE-639999 | E11: SaaS | F11: Assets | G11: 1 | H11: $3,462,200.00
A12: Armis Elite | B12: Armis Elite - 640,000-999,999 Assets | C12: Cyber Security Software | D12: ARM-ELITE-999999 | E12: SaaS | F12: Assets | G12: 1 | H12: $6,726,560.00
A13: Armis for Healthcare | B13: Armis for Healthcare - Per Site Price - 20,000 Asset Cap | C13: Cyber Security Software | D13: ARM-HEALTHCARE-SITE-20000ASSET | E13: SaaS | F13: Sites | G13: 1 | H13: $173,110.00
A14: Armis for Healthcare | B14: Armis for Healthcare - Per Site Price - 50,000 Asset Cap | C14: Cyber Security Software | D14: ARM-HEALTHCARE-SITE-50000ASSET | E14: SaaS | F14: Sites | G14: 1 | H14: $395,680.00
A15: MTM | B15: Managed Threat Services | C15: Cyber Security Software | D15: ARM-MTS-39999 | E15: SaaS | F15: Assets | G15: 1 | H15: $257,192.00
A16: Platinum Support | B16: Platinum Support - Tier 1 - Standard | C16: Software Support | D16: ARM-PLAT-T1-STD | E16: SaaS | F16: Tier | G16: 1 | H16: $173,110.00
A17: Network Ports - 1-50 Tier | B17: Additional Network Ports to supplement the customers requirement | C17: Network Ports | D17: ARM-NP-AB-Tier1 | F17: Per Port | H17: $3,462.20
A18: Network Ports - 51-100 Tier | B18: Additional Network Ports to supplement the customers requirement | C18: Network Ports | D18: ARM-NP-AB-Tier2 | F18: Per Port | H18: $3,264.36
A19: Network Ports - 100+ Tier | B19: Additional Network Ports to supplement the customers requirement | C19: Network Ports | D19: ARM-NP-AB-Tier3 | F19: Per Port | H19: $3,066.52
A20: Armis Asset Management- 500-1499 Assets, 1 Network Port | B20: Armis for Asset Management consolidates asset data into one complete, de-duplicated and authoritative asset map. Creates a complete asset inventory of all asset types from the ground to the cloud ensuring the entire attack surface is both defended and managed in real time. Complete visibility into assets behaviors and risk management based on business context, threat and vulnerability insights and the collective intelligence of billions of assets monitored by the Armis Asset Intelligence Engine. | C20: Armis Asset Management and Security | D20: ARM-AM-AB-1499 | F20: Asset Block | H20: $25,719.20
A21: Armis Asset Management- 1500-2499 Assets, 1 Network Port | B21: Armis for Asset Management consolidates asset data into one complete, de-duplicated and authoritative asset map. Creates a complete asset inventory of all asset types from the ground to the cloud ensuring the entire attack surface is both defended and managed in real time. Complete visibility into assets behaviors and risk management based on business context, threat and vulnerability insights and the collective intelligence of billions of assets monitored by the Armis Asset Intelligence Engine. | C21: Armis Asset Management and Security | D21: ARM-AM-AB-2499 | F21: Asset Block | H21: $34,622.00
A22: Armis Asset Management- 2500-9999 Assets, 1 Network Port | B22: Armis for Asset Management consolidates asset data into one complete, de-duplicated and authoritative asset map. Creates a complete asset inventory of all asset types from the ground to the cloud ensuring the entire attack surface is both defended and managed in real time. Complete visibility into assets behaviors and risk management based on business context, threat and vulnerability insights and the collective intelligence of billions of assets monitored by the Armis Asset Intelligence Engine. | C22: Armis Asset Management and Security | D22: ARM-AM-AB-9999 | F22: Asset Block | H22: $49,460.00
A23: Armis Asset Management- 10000-14999 Assets, 1 - 5 Network Ports | B23: Armis for Asset Management consolidates asset data into one complete, de-duplicated and authoritative asset map. Creates a complete asset inventory of all asset types from the ground to the cloud ensuring the entire attack surface is both defended and managed in real time. Complete visibility into assets behaviors and risk management based on business context, threat and vulnerability insights and the collective intelligence of billions of assets monitored by the Armis Asset Intelligence Engine. | C23: Armis Asset Management and Security | D23: ARM-AM-AB-14999 | F23: Asset Block | H23: $91,995.60
A24: Armis Asset Management- 15000-24999 Assets, 1 - 8 Network Ports | B24: Armis for Asset Management consolidates asset data into one complete, de-duplicated and authoritative asset map. Creates a complete asset inventory of all asset types from the ground to the cloud ensuring the entire attack surface is both defended and managed in real time. Complete visibility into assets behaviors and risk management based on business context, threat and vulnerability insights and the collective intelligence of billions of assets monitored by the Armis Asset Intelligence Engine. | C24: Armis Asset Management and Security | D24: ARM-AM-AB-24999 | F24: Asset Block | H24: $125,133.80
A25: Armis Asset Management- 25000-49999 Assets, 1 - 12 Network Ports | B25: Armis for Asset Management consolidates asset data into one complete, de-duplicated and authoritative asset map. Creates a complete asset inventory of all asset types from the ground to the cloud ensuring the entire attack surface is both defended and managed in real time. Complete visibility into assets behaviors and risk management based on business context, threat and vulnerability insights and the collective intelligence of billions of assets monitored by the Armis Asset Intelligence Engine. | C25: Armis Asset Management and Security | D25: ARM-AM-AB-49999 | F25: Asset Block | H25: $168,164.64
A26: Armis Asset Management- 50000-99999 Assets, 1 - 15 Network Ports | B26: Armis for Asset Management consolidates asset data into one complete, de-duplicated and authoritative asset map. Creates a complete asset inventory of all asset types from the ground to the cloud ensuring the entire attack surface is both defended and managed in real time. Complete visibility into assets behaviors and risk management based on business context, threat and vulnerability insights and the collective intelligence of billions of assets monitored by the Armis Asset Intelligence Engine. | C26: Armis Asset Management and Security | D26: ARM-AM-AB-99999 | F26: Asset Block | H26: $252,246.00
A27: Armis Asset Management- 100000-199999 Assets, 1 - 15 Network Ports | B27: Armis for Asset Management consolidates asset data into one complete, de-duplicated and authoritative asset map. Creates a complete asset inventory of all asset types from the ground to the cloud ensuring the entire attack surface is both defended and managed in real time. Complete visibility into assets behaviors and risk management based on business context, threat and vulnerability insights and the collective intelligence of billions of assets monitored by the Armis Asset Intelligence Engine. | C27: Armis Asset Management and Security | D27: ARM-AM-AB-199999 | F27: Asset Block | H27: $375,896.00
A28: Armis Asset Management- 200000-399999 Assets, 1 - 15 Network Ports | B28: Armis for Asset Management consolidates asset data into one complete, de-duplicated and authoritative asset map. Creates a complete asset inventory of all asset types from the ground to the cloud ensuring the entire attack surface is both defended and managed in real time. Complete visibility into assets behaviors and risk management based on business context, threat and vulnerability insights and the collective intelligence of billions of assets monitored by the Armis Asset Intelligence Engine. | C28: Armis Asset Management and Security | D28: ARM-AM-AB-399999 | F28: Asset Block | H28: $583,628.00
A29: Armis Asset Management- 400000-699999 Assets, 1 - 20 Network Ports | B29: Armis for Asset Management consolidates asset data into one complete, de-duplicated and authoritative asset map. Creates a complete asset inventory of all asset types from the ground to the cloud ensuring the entire attack surface is both defended and managed in real time. Complete visibility into assets behaviors and risk management based on business context, threat and vulnerability insights and the collective intelligence of billions of assets monitored by the Armis Asset Intelligence Engine. | C29: Armis Asset Management and Security | D29: ARM-AM-AB-699999 | F29: Asset Block | H29: $835,871.00
A30: Armis Asset Management- 700000-999999 Assets, 1 - 20 Network Ports | B30: Armis for Asset Management consolidates asset data into one complete, de-duplicated and authoritative asset map. Creates a complete asset inventory of all asset types from the ground to the cloud allowing a complete, real time, visibility into the attack surface. Complete visibility into assets behaviors, vulnerabilities and risks based on business context, threat and vulnerability insights and the collective intelligence of billions of assets monitored by Armis Intelligence Engine. | C30: Armis Asset Management and Security | D30: ARM-AM-AB-999999 | F30: Asset Block | H30: $1,038,660.00
A31: Armis Asset Management- 1000000-1299999 Assets, 1 - 20 Network Ports | B31: Armis for Asset Management consolidates asset data into one complete, de-duplicated and authoritative asset map. Creates a complete asset inventory of all asset types from the ground to the cloud ensuring the entire attack surface is both defended and managed in real time. Complete visibility into assets behaviors and risk management based on business context, threat and vulnerability insights and the collective intelligence of billions of assets monitored by the Armis Asset Intelligence Engine. | C31: Armis Asset Management and Security | D31: ARM-AM-AB-1299999 | F31: Asset Block | H31: $1,167,256.00
A32: Armis Asset Management- 1300000+ Assets | B32: Armis for Asset Management consolidates asset data into one complete, de-duplicated and authoritative asset map. Creates a complete asset inventory of all asset types from the ground to the cloud ensuring the entire attack surface is both defended and managed in real time. Complete visibility into assets behaviors and risk management based on business context, threat and vulnerability insights and the collective intelligence of billions of assets monitored by the Armis Asset Intelligence Engine. | C32: Armis Asset Management and Security | D32: ARM-AM-AB-130000 | F32: Asset Block | H32: Please work with Presidio for custom pricing
A33: Armis OT/IOT - XS Site- 1-50 Site Tier | B33: See and secure IOT/OT environments, stay ahead of risks and build an effective and comprehensive security strategy. Secure cyber-physical assets by achieving full visibility across OT, IoT and BMS assets while bridging the IT/OT gap. Control, monitor and protect critical OT assets such as industrial controls, BMS and critical infrastructure using the industry's most advanced cyber exposure platform. Up to 1 Network Port included, Asset cap of 100 assets | C33: Armis OT/IOT Device Security | D33: ARM-OT-XS-T1 | F33: Site | H33: $3,462.20
A34: Armis OT/IOT - XS Site- 51-100 Site Tier | B34: See and secure IOT/OT environments, stay ahead of risks and build an effective and comprehensive security strategy. Secure cyber-physical assets by achieving full visibility across OT, IoT and BMS assets while bridging the IT/OT gap. Control, monitor and protect critical OT assets such as industrial controls, BMS and critical infrastructure using the industry's most advanced cyber exposure platform. Up to 1 Network Port included, Asset cap of 100 assets | C34: Armis OT/IOT Device Security | D34: ARM-OT-XS-T2 | F34: Site | H34: $3,264.36
A35: Armis OT/IOT - XS Site- 101+ Site Tier | B35: See and secure IOT/OT environments, stay ahead of risks and build an effective and comprehensive security strategy. Secure cyber-physical assets by achieving full visibility across OT, IoT and BMS assets while bridging the IT/OT gap. Control, monitor and protect critical OT assets such as industrial controls, BMS and critical infrastructure using the industry's most advanced cyber exposure platform. Up to 1 Network Port included, Asset cap of 100 assets | C35: Armis OT/IOT Device Security | D35: ARM-OT-XS-T3 | F35: Site | H35: $3,066.52
A36: Armis OT/IOT - Small Site- 1-50 Site Tier | B36: See and secure IOT/OT environments, stay ahead of risks and build an effective and comprehensive security strategy. Secure cyber-physical assets by achieving full visibility across OT, IoT and BMS assets while bridging the IT/OT gap. Control, monitor and protect critical OT assets such as industrial controls, BMS and critical infrastructure using the industry's most advanced cyber exposure platform. Up to 2 Network Ports included, Asset cap of 500 assets | C36: Armis OT/IOT Device Security | D36: ARM-OT-S-T1 | F36: Site | H36: $7,419.00
A37: Armis OT/IOT - Small Site- 51-100 Site Tier | B37: See and secure IOT/OT environments, stay ahead of risks and build an effective and comprehensive security strategy. Secure cyber-physical assets by achieving full visibility across OT, IoT and BMS assets while bridging the IT/OT gap. Control, monitor and protect critical OT assets such as industrial controls, BMS and critical infrastructure using the industry's most advanced cyber exposure platform. Up to 2 Network Ports included, Asset cap of 500 assets | C37: Armis OT/IOT Device Security | D37: ARM-OT-S-T2 | F37: Site | H37: $7,023.32
A38: Armis OT/IOT - Small Site- 101+ Site Tier | B38: See and secure IOT/OT environments, stay ahead of risks and build an effective and comprehensive security strategy. Secure cyber-physical assets by achieving full visibility across OT, IoT and BMS assets while bridging the IT/OT gap. Control, monitor and protect critical OT assets such as industrial controls, BMS and critical infrastructure using the industry's most advanced cyber exposure platform. Up to 2 Network Ports included, Asset cap of 500 assets | C38: Armis OT/IOT Device Security | D38: ARM-OT-S-T3 | F38: Site | H38: $6,627.64
A39: Armis OT/IOT - Med Site- 1-50 Site Tier | B39: See and secure IOT/OT environments, stay ahead of risks and build an effective and comprehensive security strategy. Secure cyber-physical assets by achieving full visibility across OT, IoT and BMS assets while bridging the IT/OT gap. Control, monitor and protect critical OT assets such as industrial controls, BMS and critical infrastructure using the industry's most advanced cyber exposure platform. Up to 5 Network Ports included, Asset cap of 2,625 assets | C39: Armis OT/IOT Device Security | D39: ARM-OT-M-T1 | F39: Site | H39: $24,730.00
A40: Armis OT/IOT - Med Site- 51-100 Site Tier | B40: See and secure IOT/OT environments, stay ahead of risks and build an effective and comprehensive security strategy. Secure cyber-physical assets by achieving full visibility across OT, IoT and BMS assets while bridging the IT/OT gap. Control, monitor and protect critical OT assets such as industrial controls, BMS and critical infrastructure using the industry's most advanced cyber exposure platform. Up to 5 Network Ports included, Asset cap of 2,625 assets | C40: Armis OT/IOT Device Security | D40: ARM-OT-M-T2 | F40: Site | H40: $23,542.96
A41: Armis OT/IOT - Med Site- 101+ Site Tier | B41: See and secure IOT/OT environments, stay ahead of risks and build an effective and comprehensive security strategy. Secure cyber-physical assets by achieving full visibility across OT, IoT and BMS assets while bridging the IT/OT gap. Control, monitor and protect critical OT assets such as industrial controls, BMS and critical infrastructure using the industry's most advanced cyber exposure platform. Up to 5 Network Ports included, Asset cap of 2,625 assets | C41: Armis OT/IOT Device Security | D41: ARM-OT-M-T3 | F41: Site | H41: $22,355.92
A42: Armis OT/IOT - Large Site- 1-50 Site Tier | B42: See and secure IOT/OT environments, stay ahead of risks and build an effective and comprehensive security strategy. Secure cyber-physical assets by achieving full visibility across OT, IoT and BMS assets while bridging the IT/OT gap. Control, monitor and protect critical OT assets such as industrial controls, BMS and critical infrastructure using the industry's most advanced cyber exposure platform. Up to 12 Network Ports included, Asset cap of 42,500 assets | C42: Armis OT/IOT Device Security | D42: ARM-OT-L-T1 | F42: Site | H42: $56,384.40
A43: Armis OT/IOT - Large Site- 51-100 Site Tier | B43: See and secure IOT/OT environments, stay ahead of risks and build an effective and comprehensive security strategy. Secure cyber-physical assets by achieving full visibility across OT, IoT and BMS assets while bridging the IT/OT gap. Control, monitor and protect critical OT assets such as industrial controls, BMS and critical infrastructure using the industry's most advanced cyber exposure platform. Up to 12 Network Ports included, Asset cap of 42,500 assets | C43: Armis OT/IOT Device Security | D43: ARM-OT-L-T2 | F43: Site | H43: $53,614.64
A44: Armis OT/IOT - Large Site- 101+ Site Tier | B44: See and secure IOT/OT environments, stay ahead of risks and build an effective and comprehensive security strategy. Secure cyber-physical assets by achieving full visibility across OT, IoT and BMS assets while bridging the IT/OT gap. Control, monitor and protect critical OT assets such as industrial controls, BMS and critical infrastructure using the industry's most advanced cyber exposure platform. Up to 12 Network Ports included, Asset cap of 42,500 assets | C44: Armis OT/IOT Device Security | D44: ARM-OT-L-T3 | F44: Site | H44: $50,943.80
A45: Armis OT/IOT - XL Site- 1-50 Site Tier | B45: See and secure IOT/OT environments, stay ahead of risks and build an effective and comprehensive security strategy. Secure cyber-physical assets by achieving full visibility across OT, IoT and BMS assets while bridging the IT/OT gap. Control, monitor and protect critical OT assets such as industrial controls, BMS and critical infrastructure using the industry's most advanced cyber exposure platform. Up to 16 Network Ports included, Asset cap of 140,000 assets | C45: Armis OT/IOT Device Security | D45: ARM-OT-XL-T1 | F45: Site | H45: $75,179.20
A46: Armis OT/IOT - XL Site- 51-100 Site Tier | B46: See and secure IOT/OT environments, stay ahead of risks and build an effective and comprehensive security strategy. Secure cyber-physical assets by achieving full visibility across OT, IoT and BMS assets while bridging the IT/OT gap. Control, monitor and protect critical OT assets such as industrial controls, BMS and critical infrastructure using the industry's most advanced cyber exposure platform. Up to 16 Network Ports included, Asset cap of 140,000 assets | C46: Armis OT/IOT Device Security | D46: ARM-OT-XL-T2 | F46: Site | H46: $71,420.24
A47: Armis OT/IOT - XL Site- 101+ Site Tier | B47: See and secure IOT/OT environments, stay ahead of risks and build an effective and comprehensive security strategy. Secure cyber-physical assets by achieving full visibility across OT, IoT and BMS assets while bridging the IT/OT gap. Control, monitor and protect critical OT assets such as industrial controls, BMS and critical infrastructure using the industry's most advanced cyber exposure platform. Up to 16 Network Ports included, Asset cap of 140,000 assets | C47: Armis OT/IOT Device Security | D47: ARM-OT-XL-T3 | F47: Site | H47: $67,859.12
A48: Armis MDS - X-Small Facility, Up to 50 Facilities Tier | B48: Complete visibility and maximize security across all medical devices, clinical assets and the entire healthcare device ecosystem - with zero disruption to patient care. Includes complete visibility and security across all medical and clinical assets, analysis of the network for smart segmentation, monitor asset behavior and assess device MDS2 properties and FDA compliance, protect patient safety and ensure privacy. Up to 1 Network Port included. Asset cap of 780 assets. | C48: Armis Medical Device Security | D48: ARM-MDS-XS-T1 | F48: Site | H48: $9,892.00
A49: Armis MDS - X-Small Facility, 51 - 100 Facilities Tier | B49: Complete visibility and maximize security across all medical devices, clinical assets and the entire healthcare device ecosystem - with zero disruption to patient care. Includes complete visibility and security across all medical and clinical assets, analysis of the network for smart segmentation, monitor asset behavior and assess device MDS2 properties and FDA compliance, protect patient safety and ensure privacy. Up to 1 Network Port included. Asset cap of 780 assets. | C49: Armis Medical Device Security | D49: ARM-MDS-XS-T2 | F49: Site | H49: $9,397.40
A50: Armis MDS - X-Small Facility - 101+ Facilities Tier | B50: Complete visibility and maximize security across all medical devices, clinical assets and the entire healthcare device ecosystem - with zero disruption to patient care. Includes complete visibility and security across all medical and clinical assets, analysis of the network for smart segmentation, monitor asset behavior and assess device MDS2 properties and FDA compliance, protect patient safety and ensure privacy. Up to 1 Network Port included. Asset cap of 780 assets. | C50: Armis Medical Device Security | D50: ARM-MDS-XS-T3 | F50: Site | H50: $8,902.80
A51: Armis MDS - Small Facility, Up to 50 Facilities Tier | B51: Complete visibility and maximize security across all medical devices, clinical assets and the entire healthcare device ecosystem - with zero disruption to patient care. Includes complete visibility and security across all medical and clinical assets, analysis of the network for smart segmentation, monitor asset behavior and assess device MDS2 properties and FDA compliance, protect patient safety and ensure privacy. Up to 3 Network Ports included. Asset cap of 3,000 assets. | C51: Armis Medical Device Security | D51: ARM-MDS-S-T1 | F51: Site | H51: $28,192.20
A52: Armis MDS - Small Facility, 51 - 100 Facilities Tier | B52: Complete visibility and maximize security across all medical devices, clinical assets and the entire healthcare device ecosystem - with zero disruption to patient care. Includes complete visibility and security across all medical and clinical assets, analysis of the network for smart segmentation, monitor asset behavior and assess device MDS2 properties and FDA compliance, protect patient safety and ensure privacy. Up to 3 Network Ports included. Asset cap of 3,000 assets. | C52: Armis Medical Device Security | D52: ARM-MDS-S-T2 | F52: Site | H52: $26,807.32
A53: Armis MDS - Small Facility - 101+ Facilities Tier | B53: Complete visibility and maximize security across all medical devices, clinical assets and the entire healthcare device ecosystem - with zero disruption to patient care. Includes complete visibility and security across all medical and clinical assets, analysis of the network for smart segmentation, monitor asset behavior and assess device MDS2 properties and FDA compliance, protect patient safety and ensure privacy. Up to 3 Network Ports included. Asset cap of 3,000 assets. | C53: Armis Medical Device Security | D53: ARM-MDS-S-T3 | F53: Site | H53: $25,422.44
A54: Armis MDS - Medium Facility, Up to 50 Facilities Tier | B54: Complete visibility and maximize security across all medical devices, clinical assets and the entire healthcare device ecosystem - with zero disruption to patient care. Includes complete visibility and security across all medical and clinical assets, analysis of the network for smart segmentation, monitor asset behavior and assess device MDS2 properties and FDA compliance, protect patient safety and ensure privacy. Up to 5 Network Ports included. Asset cap of 15,000 assets. | C54: Armis Medical Device Security | D54: ARM-MDS-M-T1 | F54: Site | H54: $42,041.00
A55: Armis MDS - Medium Facility, 51 - 100 Facilities Tier | B55: Complete visibility and maximize security across all medical devices, clinical assets and the entire healthcare device ecosystem - with zero disruption to patient care. Includes complete visibility and security across all medical and clinical assets, analysis of the network for smart segmentation, monitor asset behavior and assess device MDS2 properties and FDA compliance, protect patient safety and ensure privacy. Up to 5 Network Ports included. Asset cap of 15,000 assets. | C55: Armis Medical Device Security | D55: ARM-MDS-M-T2 | F55: Site | H55: $39,963.68
A56: Armis MDS - Medium Facility - 101+ Facilities Tier | B56: Complete visibility and maximize security across all medical devices, clinical assets and the entire healthcare device ecosystem - with zero disruption to patient care. Includes complete visibility and security across all medical and clinical assets, analysis of the network for smart segmentation, monitor asset behavior and assess device MDS2 properties and FDA compliance, protect patient safety and ensure privacy. Up to 5 Network Ports included. Asset cap of 15,000 assets. | C56: Armis Medical Device Security | D56: ARM-MDS-M-T3 | F56: Site | H56: $37,985.28
A57: Armis MDS - Large Facility, Up to 50 Facilities Tier | B57: Complete visibility and maximize security across all medical devices, clinical assets and the entire healthcare device ecosystem - with zero disruption to patient care. Includes complete visibility and security across all medical and clinical assets, analysis of the network for smart segmentation, monitor asset behavior and assess device MDS2 properties and FDA compliance, protect patient safety and ensure privacy. Up to 8 Network Ports included. Asset cap of 30,000 assets. | C57: Armis Medical Device Security | D57: ARM-MDS-L-T1 | F57: Site | H57: $64,298.00
A58: Armis MDS - Large Facility, 51 - 100 Facilities Tier | B58: Complete visibility and maximize security across all medical devices, clinical assets and the entire healthcare device ecosystem - with zero disruption to patient care. Includes complete visibility and security across all medical and clinical assets, analysis of the network for smart segmentation, monitor asset behavior and assess device MDS2 properties and FDA compliance, protect patient safety and ensure privacy. Up to 8 Network Ports included. Asset cap of 30,000 assets. | C58: Armis Medical Device Security | D58: ARM-MDS-L-T2 | F58: Site | H58: $61,132.56
A59: Armis MDS - Large Facility - 101+ Facilities Tier | B59: Complete visibility and maximize security across all medical devices, clinical assets and the entire healthcare device ecosystem - with zero disruption to patient care. Includes complete visibility and security across all medical and clinical assets, analysis of the network for smart segmentation, monitor asset behavior and assess device MDS2 properties and FDA compliance, protect patient safety and ensure privacy. Up to 8 Network Ports included. Asset cap of 30,000 assets. | C59: Armis Medical Device Security | D59: ARM-MDS-L-T3 | F59: Site | H59: $58,066.04
A60: Armis MDS - X-Large Facilities | B60: Complete visibility and maximize security across all medical devices, clinical assets and the entire healthcare device ecosystem - with zero disruption to patient care. Includes complete visibility and security across all medical and clinical assets, analysis of the network for smart segmentation, monitor asset behavior and assess device MDS2 properties and FDA compliance, protect patient safety and ensure privacy | C60: Armis Medical Device Security | D60: ARM-MDS-XL-T1 | F60: Site | H60: Please work with Presidio for custom pricing
A61: Managed Threat Services (500-14999 Assets) | B61: Armis Managed Threat Services for customers with up to 14,999 assets. Key features include, alerts enrichment and weekly tuning of the policies, dashboards, reports and development. Threat Hunting on a continuous basis and regular operational meetings, as well as, required adhoc meetings with a named Armis Threat Services Analyst. Armis Asset Management and Security or Armis OT Security is required. | C61: MTS | D61: ARM-MTS-14999 | F61: Asset Block | H61: $166,185.60
A62: Managed Threat Services (15000-24999 Assets) | B62: Armis Managed Threat Services for customers with up to 24,999 assets. Key features include, alerts enrichment and weekly tuning of the policies, dashboards, reports and development. Threat Hunting on a continuous basis and regular operational meetings, as well as, required adhoc meetings with a named Armis Threat Services Analyst. Armis Asset Management and Security or Armis OT Security is required. | C62: MTS | D62: ARM-MTS-24999 | F62: Asset Block | H62: $195,861.63
A63: Managed Threat Services (25000-49999 Assets) | B63: Armis Managed Threat Services for customers with up to 49,999 assets. Key features include, alerts enrichment and weekly tuning of the policies, dashboards, reports and development. Threat Hunting on a continuous basis and regular operational meetings, as well as, required adhoc meetings with a named Armis Threat Services Analyst. Armis Asset Management and Security or Armis OT Security is required. | C63: MTS | D63: ARM-MTS-49999 | F63: Asset Block | H63: $356,112.00
A64: Managed Threat Services (50000-99999 Assets) | B64: Armis Managed Threat Services for customers with up to 99,999 assets. Key features include, alerts enrichment and weekly tuning of the policies, dashboards, reports and development. Threat Hunting on a continuous basis and regular operational meetings, as well as, required adhoc meetings with a named Armis Threat Services Analyst. Armis Asset Management and Security or Armis OT Security is required. | C64: MTS | D64: ARM-MTS-99999 | F64: Asset Block | H64: $664,742.40
A65: Managed Threat Services (100000-199999 Assets) | B65: Armis Managed Threat Services for customers with up to 199,999 assets. Key features include, alerts enrichment and weekly tuning of the policies, dashboards, reports and development. Threat Hunting on a continuous basis and regular operational meetings, as well as, required adhoc meetings with a named Armis Threat Services Analyst. Armis Asset Management and Security or Armis OT Security is required. | C65: MTS | D65: ARM-MTS-199999 | F65: Asset Block | H65: $1,187,040.00
A66: Managed Threat Services (200000+ Assets) | B66: Armis Managed Threat Services for customers with up to 200,000+ assets. Key features include, alerts enrichment and weekly tuning of the policies, dashboards, reports and development. Threat Hunting on a continuous basis and regular operational meetings, as well as, required adhoc meetings with a named Armis Threat Services Analyst. Armis Asset Management and Security or Armis OT Security is required. | C66: MTS | D66: ARM-MTS-200000+ | F66: Asset Block | H66: Please work with Presidio for custom pricing
A67: Resident Engineer - Onsite | B67: 1-Year full-time onsite Armis Resident Engineer or Resident Architect. Services may commence up to 6 months after an initial purchase of the Armis platform. As per customer needs, this resource will fit either an Architect or Engineer profile at Customer's discretion. Resident Engineer will augment the customer engineering team in complex environments to successfully deploy, operate and maintain the Armis platform by providing knowledge and hands-on capabilities of both the Armis platform as well as relevant customer technologies (networking, security, and other relevant domains). Resident Architect will apply a combination of leadership skill, operational vision, understanding of unique customer needs, as well as deep knowledge of Armis technologies and capabilities towards the end-goal of accelerating adoption of the Armis platform in complex accounts. | C67: Services | D67: ARM-ONSITE-ENGR | F67: FTE | H67: $568,790.00
A68: Resident Engineer - Remote | B68: 1-Year full-time remote Armis Resident Engineer or Resident Architect. Services may commence up to 6 months after an initial purchase of the Armis platform. As per customer needs, this resource will fit either an Architect or Engineer profile at Customer's discretion. Resident Engineer will augment the customer engineering team in complex environments to successfully deploy, operate and maintain the Armis platform by providing knowledge and hands-on capabilities of both the Armis platform as well as relevant customer technologies (networking, security, and other relevant domains). Resident Architect will apply a combination of leadership skill, operational vision, understanding of unique customer needs, as well as deep knowledge of Armis technologies and capabilities towards the end-goal of accelerating adoption of the Armis platform in complex accounts. | C68: Services | D68: ARM-REMOTE-ENGR | F68: FTE | H68: $474,816.00
A69: Platinum Support | B69: Armis Platinum Services delivers advanced services capabilities for scaled deployments. Services include: Designated Technical Account Manager (TAM), Private / Dedicated Training Classes, Implementation Design & Optimization, Periodical Policies Tuning Assistance, Product Management Roadmap Visibility, Quarterly Executive Reviews (QBRs), Priority Exec Escalation Path, Proactive Emergency Notifications, Proactive Technical Health Monitoring and Tuning | C69: Services | D69: ARM-PLAT | F69: Customer | H69: $0.00
A70: Premium to Platinum Support Upgrade | B70: Armis Platinum Services delivers advanced services capabilities for scaled deployments. Services include: Designated Technical Account Manager (TAM), Private / Dedicated Training Classes, Implementation Design & Optimization, Periodical Policies Tuning Assistance, Product Management Roadmap Visibility, Quarterly Executive Reviews (QBRs), Priority Exec Escalation Path, Proactive Emergency Notifications, Proactive Technical Health Monitoring and Tuning | C70: Services | D70: ARM-PLAT-UPGR | F70: Customer | H70: $74,190.00
A71: Premium Support | B71: 24x7x365 access to Armis Enterprise Technical Support. Onboarding & Deployment Assistance. Access to Armis University with on demand and public remote instructor led training. | C71: Services | D71: ARM-PREM-50PLUS | F71: Customer | H71: $0.00
A72: Standard to Premium Support Upgrade | B72: 24x7x365 access to Armis Enterprise Technical Support. Onboarding & Deployment Assistance. Access to Armis University with on demand and public remote instructor led training. | C72: Services | D72: ARM-PREM | F72: Customer | H72: $19,784.00
A73: Torq - SMB | B73: Enterprise Workflow Automation for Less than 10k employees +. 30 workflows included, 3 Tenants, 4 Weeks Onboarding, Torq Standard Support Level | C73: EWA | D73: TQ-A-SMB | F73: Work Flow Band | H73: $148,380.00
A74: Torq - 10000-49999 Employees | B74: Enterprise Workflow Automation for 10000-49999 employees +. 60 workflows included, 5 Tenants, 4 Weeks Onboarding, Torq Priority Support Level | C74: EWA | D74: TQ-A-ENT | F74: Work Flow Band | H74: $296,760.00
A75: Torq - 50,000+ Employees | B75: Enterprise Workflow Automation for 50k employees +. 100 workflows included, 10 Tenants, 8 Weeks Onboarding, Torq Priority Support Level | C75: EWA | D75: TQ-A-ENT+ | F75: Work Flow Band | H75: $494,600.00
A76: Torq - Workflow - SMB | B76: EWA SMB Add On | C76: EWA | D76: TQ-A-WF-SMB | F76: Add On | H76: $4,946.00
A77: Torq - Workflow - ENT | B77: EWA ENT Add On | C77: EWA | D77: TQ-A-WF-ENT | F77: Add On | H77: $4,986.00
A78: Torq - Workflow - ENT+ | B78: EWA ENT+ Add On | C78: EWA | D78: TQ-A-WF-ENT+ | F78: Add On | H78: $4,946.00
A79: Armis Vulnerability Prioritization and Remediation for 500 - 1499 Assets. | B79: Armis VIPR enables vulnerability managers to consolidate all vulnerabilities, prioritize based on business and technical context, vulnerability criticality and business risk, manage the appropriate assignments and workflows through tight integrations with operational platforms, and accelerate remediation and mitigation-based improvements overall. | C79: VIPR | D79: ARM-VIPR-AB-1499 | F79: Asset Block | H79: $25,719.20
A80: Armis Vulnerability Prioritization and Remediation for 1500 - 2499 Assets. | B80: Armis VIPR enables vulnerability managers to consolidate all vulnerabilities, prioritize based on business and technical context, vulnerability criticality and business risk, manage the appropriate assignments and workflows through tight integrations with operational platforms, and accelerate remediation and mitigation-based improvements overall. | C80: VIPR | D80: ARM-VIPR-AB-2499 | F80: Asset Block | H80: $345,622.00
A81: Armis Vulnerability Prioritization and Remediation for 2500 - 9999 Assets. | B81: Armis VIPR enables vulnerability managers to consolidate all vulnerabilities, prioritize based on business and technical context, vulnerability criticality and business risk, manage the appropriate assignments and workflows through tight integrations with operational platforms, and accelerate remediation and mitigation-based improvements overall. | C81: VIPR | D81: ARM-VIPR-AB-9999 | F81: Asset Block | H81: $49,460.00
A82: Armis Vulnerability Prioritization and Remediation for 10000 - 14999 Assets. | B82: Armis VIPR enables vulnerability managers to consolidate all vulnerabilities, prioritize based on business and technical context, vulnerability criticality and business risk, manage the appropriate assignments and workflows through tight integrations with operational platforms, and accelerate remediation and mitigation-based improvements overall. | C82: VIPR | D82: ARM-VIPR-AB-14999 | F82: Asset Block | H82: $91,995.60
A83: Armis Vulnerability Prioritization and Remediation for 15000 - 24999 Assets. | B83: Armis VIPR enables vulnerability managers to consolidate all vulnerabilities, prioritize based on business and technical context, vulnerability criticality and business risk, manage the appropriate assignments and workflows through tight integrations with operational platforms, and accelerate remediation and mitigation-based improvements overall. | C83: VIPR | D83: ARM-VIPR-AB-24999 | F83: Asset Block | H83: $125,133.80
A84: Armis Vulnerability Prioritization and Remediation for 25000 - 49999 Assets. | B84: Armis VIPR enables vulnerability managers to consolidate all vulnerabilities, prioritize based on business and technical context, vulnerability criticality and business risk, manage the appropriate assignments and workflows through tight integrations with operational platforms, and accelerate remediation and mitigation-based improvements overall. | C84: VIPR | D84: ARM-VIPR-AB-49999 | F84: Asset Block | H84: $168,164.64
A85: Armis Vulnerability Prioritization and Remediation for 50000 - 99999 Assets. | B85: Armis VIPR enables vulnerability managers to consolidate all vulnerabilities, prioritize based on business and technical context, vulnerability criticality and business risk, manage the appropriate assignments and workflows through tight integrations with operational platforms, and accelerate remediation and mitigation-based improvements overall. | C85: VIPR | D85: ARM-VIPR-AB-99999 | F85: Asset Block | H85: $252,246.00
A86: Armis Vulnerability Prioritization and Remediation for 100000 - 199999 Assets. | B86: Armis VIPR enables vulnerability managers to consolidate all vulnerabilities, prioritize based on business and technical context, vulnerability criticality and business risk, manage the appropriate assignments and workflows through tight integrations with operational platforms, and accelerate remediation and mitigation-based improvements overall. | C86: VIPR | D86: ARM-VIPR-AB-199999 | F86: Asset Block | H86: $375,896.00
A87: Armis Vulnerability Prioritization and Remediation for 200000 - 399999 Assets | B87: Armis VIPR enables vulnerability managers to consolidate all vulnerabilities, prioritize based on business and technical context, vulnerability criticality and business risk, manage the appropriate assignments and workflows through tight integrations with operational platforms, and accelerate remediation and mitigation-based improvements overall. | C87: VIPR | D87: ARM-VIPR-AB-399999 | F87: Asset Block | H87: $583,628.00
A88: Armis Vulnerability Prioritization and Remediation for 400000 - 699999 Assets. | B88: Armis VIPR enables vulnerability managers to consolidate all vulnerabilities, prioritize based on business and technical context, vulnerability criticality and business risk, manage the appropriate assignments and workflows through tight integrations with operational platforms, and accelerate remediation and mitigation-based improvements overall. | C88: VIPR | D88: ARM-VIPR-AB-699999 | F88: Asset Block | H88: $835,874.00
A89: Armis Vulnerability Prioritization and Remediation for 700000 - 999999 Assets. | B89: Armis VIPR enables vulnerability managers to consolidate all vulnerabilities, prioritize based on business and technical context, vulnerability criticality and business risk, manage the appropriate assignments and workflows through tight integrations with operational platforms, and accelerate remediation and mitigation-based improvements overall. | C89: VIPR | D89: ARM-VIPR-AB-999999 | F89: Asset Block | H89: $1,038,660.00
A90: Armis Vulnerability Prioritization and Remediation for 1000000 - 1299999 Assets. | B90: Armis VIPR enables vulnerability managers to consolidate all vulnerabilities, prioritize based on business and technical context, vulnerability criticality and business risk, manage the appropriate assignments and workflows through tight integrations with operational platforms, and accelerate remediation and mitigation-based improvements overall. | C90: VIPR | D90: ARM-VIPR-AB-1299999 | F90: Asset Block | H90: $1,167,256.00
A91: Armis Vulnerability Prioritization and Remediation for 1300000+ Assets. | B91: Armis VIPR enables vulnerability managers to consolidate all vulnerabilities, prioritize based on business and technical context, vulnerability criticality and business risk, manage the appropriate assignments and workflows through tight integrations with operational platforms, and accelerate remediation and mitigation-based improvements overall. | C91: VIPR | D91: ARM-VIPR-AB-1300000 | F91: Asset Block | H91: Please work with Presidio for custom pricing
A92: Managed Threat Service - Security Assessment & Recommendations | B92: Armis MTS - Security Assessment & Recommendations are delivered for (1) identified physical location. Key features include (1) detailed security (active threat identification, significant risks, security exposures and program gaps, noted compliance violations) assessment for (1) identified physical site, with (1) detailed findings and recommendations report, (1) live discussion session for the assessment results and (3) units of project management. Must be used within 12 months of purchase. | C92: MTS | D92: ARM-MTS-FSA | F92: Per Site | H92: $42,733.44
A93: Managed Threat Service - Policy Tuning | B93: Armis MTS - Policy Tuning includes policy tuning within the Armis plaform for any size customer. Key features include (3) (1 hour) live policy tuning sessions with recommendations based on the customer's industry and operations and (3) units of project management. Must be used within 12 months of purchase. | C93: MTS | D93: ARM-MTS-TUNE | F93: 3 Pack | H93: $21,366.72
A94: Managed Threat Service - Foundations | B94: Foundational elements of Armis Managed Threat Services for MidMarket customers with up to 100k assets. Key features include monthly policy tuning with recommendations, scoped monthly threat hunting, MTS dashboards and monthly insights with recommendations. | C94: MTS | D94: ARM-MTS-FDN | F94: 1 Year | H94: $48,668.64
A95: Managed Threat Service - Foundations - ELA | B95: Quarterly based foundational elements of Armis Managed Threat Services for any size of entity. Key features include quarterly policy tuning for up to 40 entities with recommendations, scoped quarterly threat hunting, MTS dashboards and quarterly insights with recommendations. FLDS defines the 40 agencies for scope. Limited to 10 hours per entity per quarter. Bi-annual foundational elements of Armis Managed Threat Services for any size of customer. Key features include twice yearly policy tuning for up to 47 entities with recommendations, scoped twice yearly threat hunting, MTS dashboards and twice yearly insights with recommendations. | C95: MTS | D95: ARM-MTS-ELA-491 | F95: 1 Year | H95: Please work with Presidio for custom pricing
A96: TrueFort Fundamentals | B96: Discover and understand workload behavior, mapping it to applications. Baseline behavior and alert anomalous activities. Up to 1,000 Agents. | C96: TrueFort | F96: Agent | H96: $267.08
A97: TrueFort Fundamentals | B97: Discover and understand workload behavior, mapping it to applications. Baseline behavior and alert anomalous activities. Up to 2,500 Agents. | C97: TrueFort | F97: Agent | H97: $138.49
A98: TrueFort Fundamentals | B98: Discover and understand workload behavior, mapping it to applications. Baseline behavior and alert anomalous activities. Up to 5,000 Agents. | C98: TrueFort | F98: Agent | H98: $118.70
A99: TrueFort Fundamentals | B99: Discover and understand workload behavior, mapping it to applications. Baseline behavior and alert anomalous activities. Up to 8,000 Agents. | C99: TrueFort | F99: Agent | H99: $108.81
A100: TrueFort Fundamentals | B100: Discover and understand workload behavior, mapping it to applications. Baseline behavior and alert anomalous activities. Over 8,001 Agents. | C100: TrueFort | F100: Agent | H100: Custom/ELA
A101: TrueFort Fundamentals Container | B101: Discover and understand workload behavior, mapping it to applications. Baseline behavior and alert anomalous activities. | C101: TrueFort | F101: Node | H101: Custom/ELA
A102: TrueFort Control | B102: Enforce microsegmentation to protect applications, set policy, and kill anomalous processes. Plus Fundamentals. Up to 1,000 Agents. | C102: TrueFort | F102: Agent | H102: $371.00
A103: TrueFort Control | B103: Enforce microsegmentation to protect applications, set policy, and kill anomalous processes. Plus Fundamentals. Up to 2,500 Agents. | C103: TrueFort | F103: Agent | H103: $217.62
A104: TrueFort Control | B104: Enforce microsegmentation to protect applications, set policy, and kill anomalous processes. Plus Fundamentals. Up to 5,000 Agents. | C104: TrueFort | F104: Agent | H104: $183.00
A105: TrueFort Control | B105: Enforce microsegmentation to protect applications, set policy, and kill anomalous processes. Plus Fundamentals. Up to 8,000 Agents. | C105: TrueFort | F105: Agent | H105: $163.22
A106: TrueFort Control | B106: Enforce microsegmentation to protect applications, set policy, and kill anomalous processes. Plus Fundamentals. Over 8,001 Agents. | C106: TrueFort | F106: Agent | H106: Custom/ELA
A107: TrueFort Control Container | B107: Enforce microsegmentation to protect applications, set policy, and kill anomalous processes. Plus Fundamentals. | C107: TrueFort | F107: Node | H107: Custom/ELA
A108: TrueFort Enterprise | B108: Full application protection by providing workload behavior mapping, understanding of the environment and workload hardening. Includes: Fundamentals, Controls, File Integrity Monitoring (FIM) & CIS Benchmarking. Up to 1,000 agents. | C108: TrueFort | F108: Agent | H108: $395.68
A109: TrueFort Enterprise | B109: Full application protection by providing workload behavior mapping, understanding of the environment and workload hardening. Includes: Fundamentals, Controls, File Integrity Monitoring (FIM) & CIS Benchmarking. Up to 2,500 agents. | C109: TrueFort | F109: Agent | H109: $237.41
A110: TrueFort Enterprise | B110: Full application protection by providing workload behavior mapping, understanding of the environment and workload hardening. Includes: Fundamentals, Controls, File Integrity Monitoring (FIM) & CIS Benchmarking. Up to 5,000 agents. | C110: TrueFort | F110: Agent | H110: $202.79
A111: TrueFort Enterprise | B111: Full application protection by providing workload behavior mapping, understanding of the environment and workload hardening. Includes: Fundamentals, Controls, File Integrity Monitoring (FIM) & CIS Benchmarking. Up to 8,000 agents. | C111: TrueFort | F111: Agent | H111: $178.06
A112: TrueFort Enterprise | B112: Full application protection by providing workload behavior mapping, understanding of the environment and workload hardening. Includes: Fundamentals, Controls, File Integrity Monitoring (FIM) & CIS Benchmarking. Over 8,001 agents. | C112: TrueFort | F112: Agent | H112: Custom/ELA
A113: TrueFort Enterprise Container | B113: Full application protection by providing workload behavior mapping, understanding of the environment and workload hardening. Includes: Fundamentals, Controls, File Integrity Monitoring (FIM) & CIS Benchmarking. | C113: TrueFort | F113: Node | H113: Custom/ELA

Sheet Aruba
A1: Aruba
A2: Product Number | B2: Pricing Model(MG1) | C2: Pricing Model (MG1) Description | D2: PL | E2: PL Description | F2: Short Description | G2: List Price Effective Date | H2: Model | I2: PLC Status | J2: PLC Effective Date | K2: List Price | L2: NAPO Price
A3: HU0R6A | B3: LR6 | C3: HPE ANW security OEM- ALE -Col 5 | D3: L3 | E3: Security Products | F3: ALE Aruba ClearPass C3010DL360 G10HW App | G3: 2019-08-05 | H3: 22E67 | I3: ES | J3: 2024-12-31 | K3: 35000.00 | L3: $34,622.00
A4: HU0T4A | B4: JE0 | C4: HPE Aruba OEM Private - ALE-Stock-Col 5 | D4: VL | E4: WLAN HW | F4: OAW-4104 (EG) Branch Gateway | G4: 2022-11-01 | H4: 22G87 | I4: ES | J4: 2024-12-31 | K4: 1831.00 | L4: $1,811.23
A5: HU0T5A | B5: JE0 | C5: HPE Aruba OEM Private - ALE-Stock-Col 5 | D5: VL | E5: WLAN HW | F5: OAW-4104 (IS) Branch Gateway | G5: 2022-11-01 | H5: 22G87 | I5: ES | J5: 2024-12-31 | K5: 1831.00 | L5: $1,811.23
A6: HU0T6A | B6: JE0 | C6: HPE Aruba OEM Private - ALE-Stock-Col 5 | D6: VL | E6: WLAN HW | F6: OAW-4104 (JP) Branch Gateway | G6: 2022-11-01 | H6: 22G87 | I6: ES | J6: 2024-12-31 | K6: 1831.00 | L6: $1,811.23
A7: HU0T7A | B7: JE0 | C7: HPE Aruba OEM Private - ALE-Stock-Col 5 | D7: VL | E7: WLAN HW | F7: OAW-9004 (RW) Branch Gateway | G7: 2022-11-01 | H7: 22G87 | I7: ES | J7: 2024-12-31 | K7: 1831.00 | L7: $1,811.23
A8: HU0T8A | B8: JE0 | C8: HPE Aruba OEM Private - ALE-Stock-Col 5 | D8: VL | E8: WLAN HW | F8: OAW-9004 (US) Branch Gateway | G8: 2022-11-01 | H8: 22G87 | I8: ES | J8: 2024-12-31 | K8: 1831.00 | L8: $1,811.23
A9: J9562AR#ABG | B9: 8W3 | C9: RMKT - Aruba Switch 2xxx/3xxx | D9: 35 | E9: Legacy Campus Access | F9: Australia - English localization | G9: 2020-11-09 | H9: 22GFG | I9: GA | J9: 2012-09-01 | K9: 0.00 | L9: 0
A10: J9562AR#ACD | B10: 8W3 | C10: RMKT - Aruba Switch 2xxx/3xxx | D10: 35 | E10: Legacy Campus Access | F10: Switzerland - English localization | G10: 2020-11-09 | H10: 22GFG | I10: GA | J10: 2012-01-13 | K10: 0.00 | L10: 0
A11: J9562AR#ACF | B11: 8W3 | C11: RMKT - Aruba Switch 2xxx/3xxx | D11: 35 | E11: Legacy Campus Access | F11: Japan - English localization | G11: 2020-11-09 | H11: 22GFG | I11: GA | J11: 2012-02-13 | K11: 0.00 | L11: 0
A12: J9727AR#ABG | B12: 8W3 | C12: RMKT - Aruba Switch 2xxx/3xxx | D12: 35 | E12: Legacy Campus Access | F12: Australia - English localization | G12: 2013-05-01 | H12: 22GFH | I12: GA | J12: 2013-05-01 | K12: 0.00 | L12: 0
A13: J9727AR#ACD | B13: 8W3 | C13: RMKT - Aruba Switch 2xxx/3xxx | D13: 35 | E13: Legacy Campus Access | F13: Switzerland - English localization | G13: 2014-07-14 | H13: 22GFH | I13: GA | J13: 2014-07-14 | K13: 0.00 | L13: 0
A14: J9772AR | B14: 8W3 | C14: RMKT - Aruba Switch 2xxx/3xxx | D14: 35 | E14: Legacy Campus Access | F14: Aruba 2530-48G-PoE+ Reman Switch | G14: 2023-02-01 | H14: 22GFD | I14: GA | J14: 2013-01-01 | K14: 2719.00 | L14: $2,689.63
A15: J9772AR#ABA | B15: 8W3 | C15: RMKT - Aruba Switch 2xxx/3xxx | D15: 35 | E15: Legacy Campus Access | F15: Aruba 2530 48G PoE+ Reman Switch:US-en | G15: 2021-05-01 | H15: 22GFD | I15: GA | J15: 2014-03-01 | K15: 0.00 | L15: 0
A16: J9772AR#ABB | B16: 8W3 | C16: RMKT - Aruba Switch 2xxx/3xxx | D16: 35 | E16: Legacy Campus Access | F16: Aruba 2530 48G PoE+ Reman Switch:EU-en | G16: 2021-05-01 | H16: 22GFD | I16: GA | J16: 2013-03-01 | K16: 0.00 | L16: 0
A17: J9772AR#ABG | B17: 8W3 | C17: RMKT - Aruba Switch 2xxx/3xxx | D17: 35 | E17: Legacy Campus Access | F17: Aruba 2530 48G PoE+ Reman Switch:AU-en | G17: 2021-05-01 | H17: 22GFD | I17: GA | J17: 2013-05-01 | K17: 0.00 | L17: 0
A18: J9772AR#AC6 | B18: 8W3 | C18: RMKT - Aruba Switch 2xxx/3xxx | D18: 35 | E18: Legacy Campus Access | F18: Aruba 2530 48G PoE+ Reman Switch:KR-en | G18: 2021-05-01 | H18: 22GFD | I18: GA | J18: 2014-10-01 | K18: 0.00 | L18: 0
A19: J9772AR#ACC | B19: 8W3 | C19: RMKT - Aruba Switch 2xxx/3xxx | D19: 35 | E19: Legacy Campus Access | F19: Aruba 2530 48G PoE+ Reman Switch:UK en | G19: 2021-05-01 | H19: 22GFD | I19: GA | J19: 2014-10-13 | K19: 0.00 | L19: 0
A20: J9772AR#ACF | B20: 8W3 | C20: RMKT - Aruba Switch 2xxx/3xxx | D20: 35 | E20: Legacy Campus Access | F20: Aruba 2530 48G PoE+ Reman Switch:JP-en | G20: 2021-05-01 | H20: 22GFD | I20: GA | J20: 2013-05-01 | K20: 0.00 | L20: 0
A21: J9772AR#AKL | B21: 8W3 | C21: RMKT - Aruba Switch 2xxx/3xxx | D21: 35 | E21: Legacy Campus Access | F21: Aruba 2530 48G PoE+ Reman Switch:TH-en | G21: 2021-05-01 | H21: 22GFD | I21: GA | J21: 2014-10-13 | K21: 0.00 | L21: 0
A22: J9772AR#ARB | B22: 8W3 | C22: RMKT - Aruba Switch 2xxx/3xxx | D22: 35 | E22: Legacy Campus Access | F22: Aruba 2530 48G PoE+ Reman Switch:TW-en | G22: 2021-05-01 | H22: 22GFD | I22: GA | J22: 2014-10-13 | K22: 0.00 | L22: 0
A23: J9772AR#ARE | B23: 8W3 | C23: RMKT - Aruba Switch 2xxx/3xxx | D23: 35 | E23: Legacy Campus Access | F23: Aruba 2530 48G PoE+ Reman Switch:MY-en | G23: 2021-05-01 | H23: 22GFD | I23: GA | J23: 2014-10-13 | K23: 0.00 | L23: 0
A24: J9772AR#B8X | B24: 8W3 | C24: RMKT - Aruba Switch 2xxx/3xxx | D24: 35 | E24: Legacy Campus Access | F24: Aruba 2530 48G PoE+ Reman Switch | G24: 2021-05-01 | H24: 22GFD | I24: GA | J24: 2014-03-01 | K24: 0.00 | L24: 0
A25: J9773AR | B25: 8W3 | C25: RMKT - Aruba Switch 2xxx/3xxx | D25: 35 | E25: Legacy Campus Access | F25: Aruba 2530-24G-PoE+ Reman Switch | G25: 2023-02-01 | H25: 22GFD | I25: GA | J25: 2013-01-01 | K25: 1699.00 | L25: $1,680.65
A26: J9773AR#ABA | B26: 8W3 | C26: RMKT - Aruba Switch 2xxx/3xxx | D26: 35 | E26: Legacy Campus Access | F26: Aruba 2530 24G PoE+ Reman Switch:US-en | G26: 2021-05-01 | H26: 22GFD | I26: GA | J26: 2014-03-01 | K26: 0.00 | L26: 0
A27: J9773AR#ABB | B27: 8W3 | C27: RMKT - Aruba Switch 2xxx/3xxx | D27: 35 | E27: Legacy Campus Access | F27: Aruba 2530 24G PoE+ Reman Switch:EU-en | G27: 2021-05-01 | H27: 22GFD | I27: GA | J27: 2013-01-25 | K27: 0.00 | L27: 0
A28: J9773AR#AC6 | B28: 8W3 | C28: RMKT - Aruba Switch 2xxx/3xxx | D28: 35 | E28: Legacy Campus Access | F28: Aruba 2530 24G PoE+ Reman Switch:KR-en | G28: 2021-05-01 | H28: 22GFD | I28: GA | J28: 2014-08-11 | K28: 0.00 | L28: 0
A29: J9773AR#ACC | B29: 8W3 | C29: RMKT - Aruba Switch 2xxx/3xxx | D29: 35 | E29: Legacy Campus Access | F29: Aruba 2530 24G PoE+ Reman Switch:UK-en | G29: 2021-05-01 | H29: 22GFD | I29: GA | J29: 2013-02-11 | K29: 0.00 | L29: 0
A30: J9773AR#ACD | B30: 8W3 | C30: RMKT - Aruba Switch 2xxx/3xxx | D30: 35 | E30: Legacy Campus Access | F30: Aruba 2530-24G-PoE+ Reman Switch:CH-en | G30: 2021-05-01 | H30: 22GFD | I30: GA | J30: 2018-08-22 | K30: 0.00 | L30: 0
A31: J9773AR#ACF | B31: 8W3 | C31: RMKT - Aruba Switch 2xxx/3xxx | D31: 35 | E31: Legacy Campus Access | F31: Aruba 2530 24G PoE+ Reman Switch:JP-en | G31: 2021-05-01 | H31: 22GFD | I31: GA | J31: 2013-05-01 | K31: 0.00 | L31: 0
A32: J9773AR#AKL | B32: 8W3 | C32: RMKT - Aruba Switch 2xxx/3xxx | D32: 35 | E32: Legacy Campus Access | F32: Aruba 2530 24G PoE+ Reman Switch:TH-en | G32: 2021-05-01 | H32: 22GFD | I32: GA | J32: 2014-08-11 | K32: 0.00 | L32: 0
A33: J9773AR#ARB | B33: 8W3 | C33: RMKT - Aruba Switch 2xxx/3xxx | D33: 35 | E33: Legacy Campus Access | F33: Aruba 2530 24G PoE+ Reman Switch:TW-en | G33: 2021-05-01 | H33: 22GFD | I33: GA | J33: 2014-08-11 | K33: 0.00 | L33: 0
A34: J9773AR#ARE | B34: 8W3 | C34: RMKT - Aruba Switch 2xxx/3xxx | D34: 35 | E34: Legacy Campus Access | F34: Aruba 2530 24G PoE+ Reman Switch:MY-en | G34: 2021-05-01 | H34: 22GFD | I34: GA | J34: 2014-08-11 | K34: 0.00 | L34: 0
A35: J9773AR#B8X | B35: 8W3 | C35: RMKT - Aruba Switch 2xxx/3xxx | D35: 35 | E35: Legacy Campus Access | F35: Aruba 2530 24G PoE+ Reman Switch | G35: 2021-05-01 | H35: 22GFD | I35: GA | J35: 2014-03-01 | K35: 0.00 | L35: 0
A36: J9774AR | B36: 8W3 | C36: RMKT - Aruba Switch 2xxx/3xxx | D36: 35 | E36: Legacy Campus Access | F36: Aruba 2530-8G-PoE+ Reman Switch | G36: 2023-02-01 | H36: 22GFD | I36: GA | J36: 2013-10-04 | K36: 620.00 | L36: $613.30
A37: J9774AR#ABA | B37: 8W3 | C37: RMKT - Aruba Switch 2xxx/3xxx | D37: 35 | E37: Legacy Campus Access | F37: Aruba 2530 8G PoE+ Reman Switch:US-en | G37: 2021-05-01 | H37: 22GFD | I37: GA | J37: 2014-10-01 | K37: 0.00 | L37: 0
A38: J9774AR#ABB | B38: 8W3 | C38: RMKT - Aruba Switch 2xxx/3xxx | D38: 35 | E38: Legacy Campus Access | F38: Aruba 2530 8G PoE+ Reman Switch:EU-en | G38: 2021-05-01 | H38: 22GFD | I38: GA | J38: 2013-10-04 | K38: 0.00 | L38: 0
A39: J9774AR#AC6 | B39: 8W3 | C39: RMKT - Aruba Switch 2xxx/3xxx | D39: 35 | E39: Legacy Campus Access | F39: Aruba 2530 8G PoE+ Reman Switch:KR-en | G39: 2021-05-01 | H39: 22GFD | I39: GA | J39: 2014-10-01 | K39: 0.00 | L39: 0
A40: J9774AR#ACC | B40: 8W3 | C40: RMKT - Aruba Switch 2xxx/3xxx | D40: 35 | E40: Legacy Campus Access | F40: Aruba 2530 8G PoE+ Reman Switch:UK-en | G40: 2021-05-01 | H40: 22GFD | I40: GA | J40: 2014-10-13 | K40: 0.00 | L40: 0
A41: J9774AR#ACF | B41: 8W3 | C41: RMKT - Aruba Switch 2xxx/3xxx | D41: 35 | E41: Legacy Campus Access | F41: Aruba 2530 8G PoE+ Reman Switch:JP-en | G41: 2021-05-01 | H41: 22GFD | I41: GA | J41: 2013-11-01 | K41: 0.00 | L41: 0
A42: J9774AR#AKL | B42: 8W3 | C42: RMKT - Aruba Switch 2xxx/3xxx | D42: 35 | E42: Legacy Campus Access | F42: Aruba 2530 8G PoE+ Reman Switch:TH-en | G42: 2021-05-01 | H42: 22GFD | I42: GA | J42: 2014-10-13 | K42: 0.00 | L42: 0
A43: J9774AR#ARB | B43: 8W3 | C43: RMKT - Aruba Switch 2xxx/3xxx | D43: 35 | E43: Legacy Campus Access | F43: Aruba 2530 8G PoE+ Reman Switch:TW-en | G43: 2021-05-01 | H43: 22GFD | I43: GA | J43: 2014-10-13 | K43: 0.00 | L43: 0
A44: J9774AR#ARE | B44: 8W3 | C44: RMKT - Aruba Switch 2xxx/3xxx | D44: 35 | E44: Legacy Campus Access | F44: Aruba 2530 8G PoE+ Reman Switch:MY-en | G44: 2021-05-01 | H44: 22GFD | I44: GA | J44: 2014-10-13 | K44: 0.00 | L44: 0
A45: J9774AR#B8X | B45: 8W3 | C45: RMKT - Aruba Switch 2xxx/3xxx | D45: 35 | E45: Legacy Campus Access | F45: Aruba 2530 8G PoE+ Reman Switch | G45: 2021-05-01 | H45: 22GFD | I45: GA | J45: 2014-04-01 | K45: 0.00 | L45: 0
A46: J9775AR | B46: 8W3 | C46: RMKT - Aruba Switch 2xxx/3xxx | D46: 35 | E46: Legacy Campus Access | F46: Aruba 2530-48G Reman Switch | G46: 2023-02-01 | H46: 22GFD | I46: GA | J46: 2013-01-01 | K46: 1699.00 | L46: $1,680.65
A47: J9775AR#0D1 | B47: 8W3 | C47: RMKT - Aruba Switch 2xxx/3xxx | D47: 35 | E47: Legacy Campus Access | F47: Aruba 2530 48G Reman Switch:FIO | G47: 2021-05-01 | H47: 22GFD | I47: GA | J47: 2018-08-22 | K47: 0.00 | L47: 0
A48: J9775AR#ABA | B48: 8W3 | C48: RMKT - Aruba Switch 2xxx/3xxx | D48: 35 | E48: Legacy Campus Access | F48: Aruba 2530 48G Reman Switch:US-en | G48: 2021-05-01 | H48: 22GFD | I48: GA | J48: 2014-03-01 | K48: 0.00 | L48: 0
A49: J9775AR#ABB | B49: 8W3 | C49: RMKT - Aruba Switch 2xxx/3xxx | D49: 35 | E49: Legacy Campus Access | F49: Aruba 2530 48G Reman Switch:EU-en | G49: 2021-05-01 | H49: 22GFD | I49: GA | J49: 2013-04-01 | K49: 0.00 | L49: 0
A50: J9775AR#ABG | B50: 8W3 | C50: RMKT - Aruba Switch 2xxx/3xxx | D50: 35 | E50: Legacy Campus Access | F50: Aruba 2530 48G Reman Switch:AU-en | G50: 2021-05-01 | H50: 22GFD | I50: GA | J50: 2014-10-13 | K50: 0.00 | L50: 0
A51: J9775AR#AC6 | B51: 8W3 | C51: RMKT - Aruba Switch 2xxx/3xxx | D51: 35 | E51: Legacy Campus Access | F51: Aruba 2530 48G Reman Switch:KR-en | G51: 2021-05-01 | H51: 22GFD | I51: GA | J51: 2014-10-01 | K51: 0.00 | L51: 0
A52: J9775AR#ACC | B52: 8W3 | C52: RMKT - Aruba Switch 2xxx/3xxx | D52: 35 | E52: Legacy Campus Access | F52: Aruba 2530 48G Reman Switch:UK-en | G52: 2021-05-01 | H52: 22GFD | I52: GA | J52: 2013-11-01 | K52: 0.00 | L52: 0
A53: J9775AR#ACF | B53: 8W3 | C53: RMKT - Aruba Switch 2xxx/3xxx | D53: 35 | E53: Legacy Campus Access | F53: Aruba 2530 48G Reman Switch:JP-en | G53: 2021-05-01 | H53: 22GFD | I53: GA | J53: 2013-05-01 | K53: 0.00 | L53: 0
A54: J9775AR#AKL | B54: 8W3 | C54: RMKT - Aruba Switch 2xxx/3xxx | D54: 35 | E54: Legacy Campus Access | F54: Aruba 2530 48G Reman Switch:TH-en | G54: 2021-05-01 | H54: 22GFD | I54: GA | J54: 2014-10-13 | K54: 0.00 | L54: 0
A55: J9775AR#ARB | B55: 8W3 | C55: RMKT - Aruba Switch 2xxx/3xxx | D55: 35 | E55: Legacy Campus Access | F55: Aruba 2530 48G Reman Switch:TW-en | G55: 2021-05-01 | H55: 22GFD | I55: GA | J55: 2014-10-13 | K55: 0.00 | L55: 0
A56: J9775AR#ARE | B56: 8W3 | C56: RMKT - Aruba Switch 2xxx/3xxx | D56: 35 | E56: Legacy Campus Access | F56: Aruba 2530 48G Reman Switch:MY-en | G56: 2021-05-01 | H56: 22GFD | I56: GA | J56: 2014-10-13 | K56: 0.00 | L56: 0
A57: J9775AR#B8X | B57: 8W3 | C57: RMKT - Aruba Switch 2xxx/3xxx | D57: 35 | E57: Legacy Campus Access | F57: Aruba 2530 48G Reman Switch | G57: 2021-05-01 | H57: 22GFD | I57: GA | J57: 2014-03-01 | K57: 0.00 | L57: 0
A58: J9776AR | B58: 8W3 | C58: RMKT - Aruba Switch 2xxx/3xxx | D58: 35 | E58: Legacy Campus Access | F58: Aruba 2530-24G Reman Switch | G58: 2023-02-01 | H58: 22GFD | I58: GA | J58: 2013-01-01 | K58: 934.00 | L58: $923.91
A59: J9776AR#0D1 | B59: 8W3 | C59: RMKT - Aruba Switch 2xxx/3xxx | D59: 35 | E59: Legacy Campus Access | F59: Aruba 2530 24G Reman Switch:FIO | G59: 2021-05-01 | H59: 22GFD | I59: GA | J59: 2018-08-22 | K59: 0.00 | L59: 0
A60: J9776AR#ABA | B60: 8W3 | C60: RMKT - Aruba Switch 2xxx/3xxx | D60: 35 | E60: Legacy Campus Access | F60: Aruba 2530 24G Reman Switch:US-en | G60: 2021-05-01 | H60: 22GFD | I60: GA | J60: 2014-03-01 | K60: 0.00 | L60: 0
A61: J9776AR#ABB | B61: 8W3 | C61: RMKT - Aruba Switch 2xxx/3xxx | D61: 35 | E61: Legacy Campus Access | F61: Aruba 2530 24G Reman Switch:EU-en | G61: 2021-05-01 | H61: 22GFD | I61: GA | J61: 2013-01-14 | K61: 0.00 | L61: 0
A62: J9776AR#ABG | B62: 8W3 | C62: RMKT - Aruba Switch 2xxx/3xxx | D62: 35 | E62: Legacy Campus Access | F62: Aruba 2530 24G Reman Switch:AU-en | G62: 2021-05-01 | H62: 22GFD | I62: GA | J62: 2013-08-12 | K62: 0.00 | L62: 0
A63: J9776AR#AC6 | B63: 8W3 | C63: RMKT - Aruba Switch 2xxx/3xxx | D63: 35 | E63: Legacy Campus Access | F63: Aruba 2530 24G Reman Switch:KR-en | G63: 2021-05-01 | H63: 22GFD | I63: GA | J63: 2014-10-01 | K63: 0.00 | L63: 0
A64: J9776AR#ACC | B64: 8W3 | C64: RMKT - Aruba Switch 2xxx/3xxx | D64: 35 | E64: Legacy Campus Access | F64: Aruba 2530 24G Reman Switch:UK-en | G64: 2021-05-01 | H64: 22GFD | I64: GA | J64: 2014-10-13 | K64: 0.00 | L64: 0
A65: J9776AR#ACF | B65: 8W3 | C65: RMKT - Aruba Switch 2xxx/3xxx | D65: 35 | E65: Legacy Campus Access | F65: Aruba 2530 24G Reman Switch:JP-en | G65: 2021-05-01 | H65: 22GFD | I65: GA | J65: 2013-05-01 | K65: 0.00 | L65: 0
A66: J9776AR#AKL | B66: 8W3 | C66: RMKT - Aruba Switch 2xxx/3xxx | D66: 35 | E66: Legacy Campus Access | F66: Aruba 2530 24G Reman Switch:TH-en | G66: 2021-05-01 | H66: 22GFD | I66: GA | J66: 2014-10-13 | K66: 0.00 | L66: 0
A67: J9776AR#ARB | B67: 8W3 | C67: RMKT - Aruba Switch 2xxx/3xxx | D67: 35 | E67: Legacy Campus Access | F67: Aruba 2530 24G Reman Switch:TW-en | G67: 2021-05-01 | H67: 22GFD | I67: GA | J67: 2014-10-13 | K67: 0.00 | L67: 0
A68: J9776AR#ARE | B68: 8W3 | C68: RMKT - Aruba Switch 2xxx/3xxx | D68: 35 | E68: Legacy Campus Access | F68: Aruba 2530 24G Reman Switch:MY-en | G68: 2021-05-01 | H68: 22GFD | I68: GA | J68: 2014-10-13 | K68: 0.00 | L68: 0
A69: J9776AR#B8X | B69: 8W3 | C69: RMKT - Aruba Switch 2xxx/3xxx | D69: 35 | E69: Legacy Campus Access | F69: Aruba 2530 24G Reman Switch | G69: 2021-05-01 | H69: 22GFD | I69: GA | J69: 2014-03-01 | K69: 0.00 | L69: 0
A70: J9777AR | B70: 8W3 | C70: RMKT - Aruba Switch 2xxx/3xxx | D70: 35 | E70: Legacy Campus Access | F70: Aruba 2530-8G Reman Switch | G70: 2023-02-01 | H70: 22GFD | I70: GA | J70: 2013-11-01 | K70: 577.00 | L70: $570.77
A71: J9777AR#ABA | B71: 8W3 | C71: RMKT - Aruba Switch 2xxx/3xxx | D71: 35 | E71: Legacy Campus Access | F71: Aruba 2530 8G Reman Switch:US-en | G71: 2021-05-01 | H71: 22GFD | I71: GA | J71: 2014-02-17 | K71: 0.00 | L71: 0
A72: J9777AR#ABB | B72: 8W3 | C72: RMKT - Aruba Switch 2xxx/3xxx | D72: 35 | E72: Legacy Campus Access | F72: Aruba 2530 8G Reman Switch:EU-en | G72: 2021-05-01 | H72: 22GFD | I72: GA | J72: 2013-10-14 | K72: 0.00 | L72: 0
A73: J9777AR#AC6 | B73: 8W3 | C73: RMKT - Aruba Switch 2xxx/3xxx | D73: 35 | E73: Legacy Campus Access | F73: Aruba 2530 8G Reman Switch:KR-en | G73: 2021-05-01 | H73: 22GFD | I73: GA | J73: 2014-10-01 | K73: 0.00 | L73: 0
A74: J9777AR#ACC | B74: 8W3 | C74: RMKT - Aruba Switch 2xxx/3xxx | D74: 35 | E74: Legacy Campus Access | F74: Aruba 2530 8G Reman Switch:UK-en | G74: 2021-05-01 | H74: 22GFD | I74: GA | J74: 2014-08-11 | K74: 0.00 | L74: 0
A75: J9777AR#ACF | B75: 8W3 | C75: RMKT - Aruba Switch 2xxx/3xxx | D75: 35 | E75: Legacy Campus Access | F75: Aruba 2530 8G Reman Switch:JP-en | G75: 2021-05-01 | H75: 22GFD | I75: GA | J75: 2013-11-01 | K75: 0.00 | L75: 0
A76: J9777AR#AKL | B76: 8W3 | C76: RMKT - Aruba Switch 2xxx/3xxx | D76: 35 | E76: Legacy Campus Access | F76: Aruba 2530 8G Reman Switch:TH-en | G76: 2021-05-01 | H76: 22GFD | I76: GA | J76: 2014-10-13 | K76: 0.00 | L76: 0
A77: J9777AR#AKM | B77: 8W3 | C77: RMKT - Aruba Switch 2xxx/3xxx | D77: 35 | E77: Legacy Campus Access | F77: Aruba 2530 8G Reman Switch:CN-en | G77: 2022-05-01 | H77: 22GFD | I77: GA | J77: 2022-05-01 | K77: 0.00 | L77: 0
A78: J9777AR#ARB | B78: 8W3 | C78: RMKT - Aruba Switch 2xxx/3xxx | D78: 35 | E78: Legacy Campus Access | F78: Aruba 2530 8G Reman Switch:TW-en | G78: 2021-05-01 | H78: 22GFD | I78: GA | J78: 2014-10-13 | K78: 0.00 | L78: 0
A79: J9777AR#ARE | B79: 8W3 | C79: RMKT - Aruba Switch 2xxx/3xxx | D79: 35 | E79: Legacy Campus Access | F79: Aruba 2530 8G Reman Switch:MY-en | G79: 2021-05-01 | H79: 22GFD | I79: GA | J79: 2014-10-13 | K79: 0.00 | L79: 0
A80: J9777AR#B8X | B80: 8W3 | C80: RMKT - Aruba Switch 2xxx/3xxx | D80: 35 | E80: Legacy Campus Access | F80: Aruba 2530 8G Reman Switch | G80: 2021-05-01 | H80: 22GFD | I80: GA | J80: 2014-04-01 | K80: 0.00 | L80: 0
A81: J9778AR | B81: 8W3 | C81: RMKT - Aruba Switch 2xxx/3xxx | D81: 35 | E81: Legacy Campus Access | F81: Aruba 2530-48-PoE+ Reman Switch | G81: 2021-11-15 | H81: 22GFD | I81: GA | J81: 2013-10-14 | K81: 2122.00 | L81: $2,099.08
A82: J9778AR#ABA | B82: 8W3 | C82: RMKT - Aruba Switch 2xxx/3xxx | D82: 35 | E82: Legacy Campus Access | F82: Aruba 2530 48 PoE+ Reman Switch:US-en | G82: 2021-05-01 | H82: 22GFD | I82: GA | J82: 2014-10-01 | K82: 0.00 | L82: 0
A83: J9778AR#ABB | B83: 8W3 | C83: RMKT - Aruba Switch 2xxx/3xxx | D83: 35 | E83: Legacy Campus Access | F83: Aruba 2530 48 PoE+ Reman Switch:EU-en | G83: 2021-05-01 | H83: 22GFD | I83: GA | J83: 2014-06-01 | K83: 0.00 | L83: 0
A84: J9778AR#ABG | B84: 8W3 | C84: RMKT - Aruba Switch 2xxx/3xxx | D84: 35 | E84: Legacy Campus Access | F84: Aruba 2530 48 PoE+ Reman Switch:AU-en | G84: 2021-05-01 | H84: 22GFD | I84: GA | J84: 2014-10-13 | K84: 0.00 | L84: 0
A85: J9778AR#AC6 | B85: 8W3 | C85: RMKT - Aruba Switch 2xxx/3xxx | D85: 35 | E85: Legacy Campus Access | F85: Aruba 2530 48 PoE+ Reman Switch:KR-en | G85: 2021-05-01 | H85: 22GFD | I85: GA | J85: 2014-10-01 | K85: 0.00 | L85: 0
A86: J9778AR#ACC | B86: 8W3 | C86: RMKT - Aruba Switch 2xxx/3xxx | D86: 35 | E86: Legacy Campus Access | F86: Aruba 2530 48 PoE+ Reman Switch:UK-en | G86: 2021-05-01 | H86: 22GFD | I86: GA | J86: 2013-11-01 | K86: 0.00 | L86: 0
A87: J9778AR#ACF | B87: 8W3 | C87: RMKT - Aruba Switch 2xxx/3xxx | D87: 35 | E87: Legacy Campus Access | F87: Aruba 2530 48 PoE+ Reman Switch:JP-en | G87: 2021-05-01 | H87: 22GFD | I87: GA | J87: 2014-10-01 | K87: 0.00 | L87: 0
A88: J9778AR#ARB | B88: 8W3 | C88: RMKT - Aruba Switch 2xxx/3xxx | D88: 35 | E88: Legacy Campus Access | F88: Aruba 2530 48 PoE+ Reman Switch:TW-en | G88: 2021-05-01 | H88: 22GFD | I88: GA | J88: 2014-10-13 | K88: 0.00 | L88: 0
A89: J9778AR#ARE | B89: 8W3 | C89: RMKT - Aruba Switch 2xxx/3xxx | D89: 35 | E89: Legacy Campus Access | F89: Aruba 2530 48 PoE+ Reman Switch:MY-en | G89: 2021-05-01 | H89: 22GFD | I89: GA | J89: 2014-10-13 | K89: 0.00 | L89: 0
A90: J9778AR#B8X | B90: 8W3 | C90: RMKT - Aruba Switch 2xxx/3xxx | D90: 35 | E90: Legacy Campus Access | F90: Aruba 2530 48 PoE+ Reman Switch | G90: 2021-05-01 | H90: 22GFD | I90: GA | J90: 2014-04-01 | K90: 0.00 | L90: 0
A91: J9779AR | B91: 8W3 | C91: RMKT - Aruba Switch 2xxx/3xxx | D91: 35 | E91: Legacy Campus Access | F91: Aruba 2530-24-PoE+ Reman Switch | G91: 2024-02-01 | H91: 22GFD | I91: GA | J91: 2013-11-16 | K91: 1351.00 | L91: $1,336.41
A92: J9779AR#ABA | B92: 8W3 | C92: RMKT - Aruba Switch 2xxx/3xxx | D92: 35 | E92: Legacy Campus Access | F92: Aruba 2530 24 PoE+ Reman Switch:US-en | G92: 2021-05-01 | H92: 22GFD | I92: GA | J92: 2014-10-13 | K92: 0.00 | L92: 0
A93: J9779AR#ABB | B93: 8W3 | C93: RMKT - Aruba Switch 2xxx/3xxx | D93: 35 | E93: Legacy Campus Access | F93: Aruba 2530 24 PoE+ Reman Switch:EU-en | G93: 2021-05-01 | H93: 22GFD | I93: GA | J93: 2013-11-16 | K93: 0.00 | L93: 0
A94: J9779AR#ABG | B94: 8W3 | C94: RMKT - Aruba Switch 2xxx/3xxx | D94: 35 | E94: Legacy Campus Access | F94: Aruba 2530 24 PoE+ Reman Switch:AU-en | G94: 2021-05-01 | H94: 22GFD | I94: GA | J94: 2014-10-13 | K94: 0.00 | L94: 0
A95: J9779AR#ACC | B95: 8W3 | C95: RMKT - Aruba Switch 2xxx/3xxx | D95: 35 | E95: Legacy Campus Access | F95: Aruba 2530 24 PoE+ Reman Switch:UK-en | G95: 2021-05-01 | H95: 22GFD | I95: GA | J95: 2014-06-01 | K95: 0.00 | L95: 0
A96: J9779AR#ACD | B96: 8W3 | C96: RMKT - Aruba Switch 2xxx/3xxx | D96: 35 | E96: Legacy Campus Access | F96: Aruba 2530-24-PoE+ Reman Switch:CH-en | G96: 2021-05-01 | H96: 22GFD | I96: GA | J96: 2018-04-01 | K96: 0.00 | L96: 0
A97: J9779AR#ACF | B97: 8W3 | C97: RMKT - Aruba Switch 2xxx/3xxx | D97: 35 | E97: Legacy Campus Access | F97: Aruba 2530 24 PoE+ Reman Switch:JP-en | G97: 2021-05-01 | H97: 22GFD | I97: GA | J97: 2014-10-01 | K97: 0.00 | L97: 0
A98: J9779AR#AKL | B98: 8W3 | C98: RMKT - Aruba Switch 2xxx/3xxx | D98: 35 | E98: Legacy Campus Access | F98: Aruba 2530 24 PoE+ Reman Switch:TH-en | G98: 2021-05-01 | H98: 22GFD | I98: GA | J98: 2014-10-13 | K98: 0.00 | L98: 0
A99: J9779AR#ARB | B99: 8W3 | C99: RMKT - Aruba Switch 2xxx/3xxx | D99: 35 | E99: Legacy Campus Access | F99: Aruba 2530 24 PoE+ Reman Switch:TW-en | G99: 2021-05-01 | H99: 22GFD | I99: GA | J99: 2014-10-13 | K99: 0.00 | L99: 0
A100: J9779AR#ARE | B100: 8W3 | C100: RMKT - Aruba Switch 2xxx/3xxx | D100: 35 | E100: Legacy Campus Access | F100: Aruba 2530 24 PoE+ Reman Switch:MY-en | G100: 2021-05-01 | H100: 22GFD | I100: GA | J100: 2014-10-13 | K100: 0.00 | L100: 0
A101: J9779AR#B8X | B101: 8W3 | C101: RMKT - Aruba Switch 2xxx/3xxx | D101: 35 | E101: Legacy Campus Access | F101: Aruba 2530 24 PoE+ Reman Switch | G101: 2021-05-01 | H101: 22GFD | I101: GA | J101: 2014-04-01 | K101: 0.00 | L101: 0
A102: J9780AR | B102: 8W3 | C102: RMKT - Aruba Switch 2xxx/3xxx | D102: 35 | E102: Legacy Campus Access | F102: Aruba 2530-8-PoE+ Reman Switch | G102: 2021-11-15 | H102: 22GFD | I102: GA | J102: 2014-02-01 | K102: 584.00 | L102: $577.69
A103: J9780AR#ABA | B103: 8W3 | C103: RMKT - Aruba Switch 2xxx/3xxx | D103: 35 | E103: Legacy Campus Access | F103: Aruba 2530 8 PoE+ Reman Switch:US-en | G103: 2021-05-01 | H103: 22GFD | I103: GA | J103: 2014-07-01 | K103: 0.00 | L103: 0
A104: J9780AR#ABB | B104: 8W3 | C104: RMKT - Aruba Switch 2xxx/3xxx | D104: 35 | E104: Legacy Campus Access | F104: Aruba 2530 8 PoE+ Reman Switch:EU-en | G104: 2021-05-01 | H104: 22GFD | I104: GA | J104: 2014-03-02 | K104: 0.00 | L104: 0
A105: J9780AR#ABG | B105: 8W3 | C105: RMKT - Aruba Switch 2xxx/3xxx | D105: 35 | E105: Legacy Campus Access | F105: Aruba 2530 8 PoE+ Reman Switch:AU-en | G105: 2021-05-01 | H105: 22GFD | I105: GA | J105: 2014-10-13 | K105: 0.00 | L105: 0
A106: J9780AR#AC6 | B106: 8W3 | C106: RMKT - Aruba Switch 2xxx/3xxx | D106: 35 | E106: Legacy Campus Access | F106: Aruba 2530 8 PoE+ Reman Switch:KR-en | G106: 2021-05-01 | H106: 22GFD | I106: GA | J106: 2014-10-01 | K106: 0.00 | L106: 0
A107: J9780AR#ACC | B107: 8W3 | C107: RMKT - Aruba Switch 2xxx/3xxx | D107: 35 | E107: Legacy Campus Access | F107: Aruba 2530 8 PoE+ Reman Switch:UK-en | G107: 2021-05-01 | H107: 22GFD | I107: GA | J107: 2014-09-15 | K107: 0.00 | L107: 0
A108: J9780AR#ACD | B108: 8W3 | C108: RMKT - Aruba Switch 2xxx/3xxx | D108: 35 | E108: Legacy Campus Access | F108: Aruba 2530-8-PoE+ Reman Switch:CH-en | G108: 2021-05-01 | H108: 22GFD | I108: GA | J108: 2018-04-01 | K108: 0.00 | L108: 0
A109: J9780AR#ACF | B109: 8W3 | C109: RMKT - Aruba Switch 2xxx/3xxx | D109: 35 | E109: Legacy Campus Access | F109: Aruba 2530 8 PoE+ Reman Switch:JP-en | G109: 2021-05-01 | H109: 22GFD | I109: GA | J109: 2014-10-01 | K109: 0.00 | L109: 0
A110: J9780AR#AKL | B110: 8W3 | C110: RMKT - Aruba Switch 2xxx/3xxx | D110: 35 | E110: Legacy Campus Access | F110: Aruba 2530 8 PoE+ Reman Switch:TH-en | G110: 2021-05-01 | H110: 22GFD | I110: GA | J110: 2014-10-13 | K110: 0.00 | L110: 0
A111: J9780AR#ARB | B111: 8W3 | C111: RMKT - Aruba Switch 2xxx/3xxx | D111: 35 | E111: Legacy Campus Access | F111: Aruba 2530 8 PoE+ Reman Switch:TW-en | G111: 2021-05-01 | H111: 22GFD | I111: GA | J111: 2014-10-13 | K111: 0.00 | L111: 0
A112: J9780AR#ARE | B112: 8W3 | C112: RMKT - Aruba Switch 2xxx/3xxx | D112: 35 | E112: Legacy Campus Access | F112: Aruba 2530 8 PoE+ Reman Switch:MY-en | G112: 2021-05-01 | H112: 22GFD | I112: GA | J112: 2014-10-13 | K112: 0.00 | L112: 0
A113: J9781AR | B113: 8W3 | C113: RMKT - Aruba Switch 2xxx/3xxx | D113: 35 | E113: Legacy Campus Access | F113: Aruba 2530-48 Reman Switch | G113: 2024-02-01 | H113: 22GFD | I113: GA | J113: 2013-11-11 | K113: 1104.00 | L113: $1,092.08
A114: J9781AR#ABA | B114: 8W3 | C114: RMKT - Aruba Switch 2xxx/3xxx | D114: 35 | E114: Legacy Campus Access | F114: Aruba 2530 48 Reman Switch:US-en | G114: 2021-05-01 | H114: 22GFD | I114: GA | J114: 2014-10-01 | K114: 0.00 | L114: 0
A115: J9781AR#ABB | B115: 8W3 | C115: RMKT - Aruba Switch 2xxx/3xxx | D115: 35 | E115: Legacy Campus Access | F115: Aruba 2530 48 Reman Switch:EU-en | G115: 2021-05-01 | H115: 22GFD | I115: GA | J115: 2014-09-15 | K115: 0.00 | L115: 0
A116: J9781AR#ABG | B116: 8W3 | C116: RMKT - Aruba Switch 2xxx/3xxx | D116: 35 | E116: Legacy Campus Access | F116: Aruba 2530 48 Reman Switch:AU-en | G116: 2021-05-01 | H116: 22GFD | I116: GA | J116: 2014-10-13 | K116: 0.00 | L116: 0
A117: J9781AR#AC6 | B117: 8W3 | C117: RMKT - Aruba Switch 2xxx/3xxx | D117: 35 | E117: Legacy Campus Access | F117: Aruba 2530 48 Reman Switch:KR-en | G117: 2021-05-01 | H117: 22GFD | I117: GA | J117: 2014-10-01 | K117: 0.00 | L117: 0
A118: J9781AR#ACC | B118: 8W3 | C118: RMKT - Aruba Switch 2xxx/3xxx | D118: 35 | E118: Legacy Campus Access | F118: Aruba 2530 48 Reman Switch:UK-en | G118: 2021-05-01 | H118: 22GFD | I118: GA | J118: 2014-09-15 | K118: 0.00 | L118: 0
A119: J9781AR#ACF | B119: 8W3 | C119: RMKT - Aruba Switch 2xxx/3xxx | D119: 35 | E119: Legacy Campus Access | F119: Aruba 2530 48 Reman Switch:JP-en | G119: 2021-05-01 | H119: 22GFD | I119: GA | J119: 2014-10-01 | K119: 0.00 | L119: 0
A120: J9781AR#AKL | B120: 8W3 | C120: RMKT - Aruba Switch 2xxx/3xxx | D120: 35 | E120: Legacy Campus Access | F120: Aruba 2530 48 Reman Switch:TH-en | G120: 2021-05-01 | H120: 22GFD | I120: GA | J120: 2014-10-13 | K120: 0.00 | L120: 0
A121: J9781AR#ARB | B121: 8W3 | C121: RMKT - Aruba Switch 2xxx/3xxx | D121: 35 | E121: Legacy Campus Access | F121: Aruba 2530 48 Reman Switch:TW-en | G121: 2021-05-01 | H121: 22GFD | I121: GA | J121: 2014-10-13 | K121: 0.00 | L121: 0
A122: J9781AR#ARE | B122: 8W3 | C122: RMKT - Aruba Switch 2xxx/3xxx | D122: 35 | E122: Legacy Campus Access | F122: Aruba 2530 48 Reman Switch:MY-en | G122: 2021-05-01 | H122: 22GFD | I122: GA | J122: 2014-10-13 | K122: 0.00 | L122: 0
A123: J9781AR#B2C | B123: 8W3 | C123: RMKT - Aruba Switch 2xxx/3xxx | D123: 35 | E123: Legacy Campus Access | F123: Aruba 2530 48 Reman Switch PDU | G123: 2021-05-01 | H123: 22GFD | I123: GA | J123: 2014-04-01 | K123: 0.00 | L123: 0
A124: J9781AR#B8X | B124: 8W3 | C124: RMKT - Aruba Switch 2xxx/3xxx | D124: 35 | E124: Legacy Campus Access | F124: Aruba 2530 48 Reman Switch | G124: 2021-05-01 | H124: 22GFD | I124: GA | J124: 2014-04-01 | K124: 0.00 | L124: 0
A125: J9782AR | B125: 8W3 | C125: RMKT - Aruba Switch 2xxx/3xxx | D125: 35 | E125: Legacy Campus Access | F125: Aruba 2530-24 Reman Switch | G125: 2021-11-15 | H125: 22GFD | I125: GA | J125: 2013-10-04 | K125: 584.00 | L125: $577.69
A126: J9782AR#0D1 | B126: 8W3 | C126: RMKT - Aruba Switch 2xxx/3xxx | D126: 35 | E126: Legacy Campus Access | F126: Aruba 2530 24 Reman Switch:FIO | G126: 2021-05-01 | H126: 22GFD | I126: GA | J126: 2014-04-01 | K126: 0.00 | L126: 0
A127: J9782AR#ABA | B127: 8W3 | C127: RMKT - Aruba Switch 2xxx/3xxx | D127: 35 | E127: Legacy Campus Access | F127: Aruba 2530 24 Reman Switch:US-en | G127: 2021-05-01 | H127: 22GFD | I127: GA | J127: 2014-10-01 | K127: 0.00 | L127: 0
A128: J9782AR#ABB | B128: 8W3 | C128: RMKT - Aruba Switch 2xxx/3xxx | D128: 35 | E128: Legacy Campus Access | F128: Aruba 2530 24 Reman Switch:EU-en | G128: 2021-05-01 | H128: 22GFD | I128: GA | J128: 2013-10-04 | K128: 0.00 | L128: 0
A129: J9782AR#ABG | B129: 8W3 | C129: RMKT - Aruba Switch 2xxx/3xxx | D129: 35 | E129: Legacy Campus Access | F129: Aruba 2530 24 Reman Switch:AU-en | G129: 2021-05-01 | H129: 22GFD | I129: GA | J129: 2014-10-13 | K129: 0.00 | L129: 0
A130: J9782AR#AC6 | B130: 8W3 | C130: RMKT - Aruba Switch 2xxx/3xxx | D130: 35 | E130: Legacy Campus Access | F130: Aruba 2530 24 Reman Switch:KR-en | G130: 2021-05-01 | H130: 22GFD | I130: GA | J130: 2014-10-01 | K130: 0.00 | L130: 0
A131: J9782AR#ACC | B131: 8W3 | C131: RMKT - Aruba Switch 2xxx/3xxx | D131: 35 | E131: Legacy Campus Access | F131: Aruba 2530 24 Reman Switch:UK-en | G131: 2021-05-01 | H131: 22GFD | I131: GA | J131: 2014-09-15 | K131: 0.00 | L131: 0
A132: J9782AR#ACF | B132: 8W3 | C132: RMKT - Aruba Switch 2xxx/3xxx | D132: 35 | E132: Legacy Campus Access | F132: Aruba 2530 24 Reman Switch:JP-en | G132: 2021-05-01 | H132: 22GFD | I132: GA | J132: 2013-11-01 | K132: 0.00 | L132: 0
A133: J9782AR#AKL | B133: 8W3 | C133: RMKT - Aruba Switch 2xxx/3xxx | D133: 35 | E133: Legacy Campus Access | F133: Aruba 2530 24 Reman Switch:TH-en | G133: 2021-05-01 | H133: 22GFD | I133: GA | J133: 2014-10-13 | K133: 0.00 | L133: 0
A134: J9782AR#ARB | B134: 8W3 | C134: RMKT - Aruba Switch 2xxx/3xxx | D134: 35 | E134: Legacy Campus Access | F134: Aruba 2530 24 Reman Switch:TW-en | G134: 2021-05-01 | H134: 22GFD | I134: GA | J134: 2014-10-13 | K134: 0.00 | L134: 0
A135: J9782AR#ARE | B135: 8W3 | C135: RMKT - Aruba Switch 2xxx/3xxx | D135: 35 | E135: Legacy Campus Access | F135: Aruba 2530 24 Reman Switch:MY-en | G135: 2021-05-01 | H135: 22GFD | I135: GA | J135: 2014-10-13 | K135: 0.00 | L135: 0
A136: J9782AR#B8X | B136: 8W3 | C136: RMKT - Aruba Switch 2xxx/3xxx | D136: 35 | E136: Legacy Campus Access | F136: Aruba 2530 24 Reman Switch | G136: 2021-05-01 | H136: 22GFD | I136: GA | J136: 2014-04-01 | K136: 0.00 | L136: 0
A137: J9783AR | B137: 8W3 | C137: RMKT - Aruba Switch 2xxx/3xxx | D137: 35 | E137: Legacy Campus Access | F137: Aruba 2530-8 Reman Switch | G137: 2021-11-15 | H137: 22GFD | I137: GA | J137: 2013-10-14 | K137: 442.00 | L137: $437.23
A138: J9783AR#ABA | B138: 8W3 | C138: RMKT - Aruba Switch 2xxx/3xxx | D138: 35 | E138: Legacy Campus Access | F138: Aruba 2530 8 Reman Switch:US-en | G138: 2021-05-01 | H138: 22GFD | I138: GA | J138: 2014-10-01 | K138: 0.00 | L138: 0
A139: J9783AR#ABB | B139: 8W3 | C139: RMKT - Aruba Switch 2xxx/3xxx | D139: 35 | E139: Legacy Campus Access | F139: Aruba 2530 8 Reman Switch:EU-en | G139: 2021-05-01 | H139: 22GFD | I139: GA | J139: 2014-09-15 | K139: 0.00 | L139: 0
A140: J9783AR#ABG | B140: 8W3 | C140: RMKT - Aruba Switch 2xxx/3xxx | D140: 35 | E140: Legacy Campus Access | F140: Aruba 2530 8 Reman Switch:AU-en | G140: 2021-05-01 | H140: 22GFD | I140: GA | J140: 2014-10-13 | K140: 0.00 | L140: 0
A141: J9783AR#ACC | B141: 8W3 | C141: RMKT - Aruba Switch 2xxx/3xxx | D141: 35 | E141: Legacy Campus Access | F141: Aruba 2530 8 Reman Switch:UK-en | G141: 2021-05-01 | H141: 22GFD | I141: GA | J141: 2014-09-15 | K141: 0.00 | L141: 0
A142: J9783AR#ACF | B142: 8W3 | C142: RMKT - Aruba Switch 2xxx/3xxx | D142: 35 | E142: Legacy Campus Access | F142: Aruba 2530 8 Reman Switch:JP-en | G142: 2021-05-01 | H142: 22GFD | I142: GA | J142: 2013-11-01 | K142: 0.00 | L142: 0
A143: J9783AR#AKL | B143: 8W3 | C143: RMKT - Aruba Switch 2xxx/3xxx | D143: 35 | E143: Legacy Campus Access | F143: Aruba 2530 8 Reman Switch:TH-en | G143: 2021-05-01 | H143: 22GFD | I143: GA | J143: 2014-10-13 | K143: 0.00 | L143: 0
A144: J9783AR#ARB | B144: 8W3 | C144: RMKT - Aruba Switch 2xxx/3xxx | D144: 35 | E144: Legacy Campus Access | F144: Aruba 2530 8 Reman Switch:TW-en | G144: 2021-05-01 | H144: 22GFD | I144: GA | J144: 2014-10-13 | K144: 0.00 | L144: 0
A145: J9783AR#ARE | B145: 8W3 | C145: RMKT - Aruba Switch 2xxx/3xxx | D145: 35 | E145: Legacy Campus Access | F145: Aruba 2530 8 Reman Switch:MY-en | G145: 2021-05-01 | H145: 22GFD | I145: GA | J145: 2014-10-13 | K145: 0.00 | L145: 0
A146: J9783AR#B8X | B146: 8W3 | C146: RMKT - Aruba Switch 2xxx/3xxx | D146: 35 | E146: Legacy Campus Access | F146: Aruba 2530 8 Reman Switch | G146: 2021-05-01 | H146: 22GFD | I146: GA | J146: 2014-04-01 | K146: 0.00 | L146: 0
A147: J9821A | B147: BQL | C147: HPE ANW Campus 54xxR Switch | D147: 35 | E147: Legacy Campus Access | F147: Aruba 5406R zl2 Switch | G147: 2022-11-01 | H147: 19465 | I147: GA | J147: 2014-06-10 | K147: 3429.00 | L147: $3,391.97
A148: J9821A#0D1 | B148: BQL | C148: HPE ANW Campus 54xxR Switch | D148: 35 | E148: Legacy Campus Access | F148: Aruba 5406R zl2 Switch | G148: 2014-05-23 | H148: 19465 | I148: GA | J148: 2014-06-10 | K148: 0.00 | L148: 0
A149: J9821A#B8X | B149: BQL | C149: HPE ANW Campus 54xxR Switch | D149: 35 | E149: Legacy Campus Access | F149: Aruba 5406R zl2 Switch | G149: 2017-11-06 | H149: 19465 | I149: GA | J149: 2017-11-06 | K149: 0.00 | L149: 0
A150: J9821AR | B150: B01 | C150: RMKT - Aruba Switch Midrange 4xxx-6xxx | D150: 35 | E150: Legacy Campus Access | F150: Aruba 5406R zl2 Reman Switch | G150: 2022-11-01 | H150: 19465 | I150: GA | J150: 2014-07-01 | K150: 2572.00 | L150: $2,544.22
A151: J9822A | B151: BQL | C151: HPE ANW Campus 54xxR Switch | D151: 35 | E151: Legacy Campus Access | F151: Aruba 5412R zl2 Switch | G151: 2022-11-01 | H151: 19467 | I151: GA | J151: 2014-06-10 | K151: 6529.00 | L151: $6,458.49
A152: J9822A#0D1 | B152: BQL | C152: HPE ANW Campus 54xxR Switch | D152: 35 | E152: Legacy Campus Access | F152: Aruba 5412R zl2 Switch | G152: 2014-05-23 | H152: 19467 | I152: GA | J152: 2014-06-10 | K152: 0.00 | L152: 0
A153: J9822A#B8X | B153: BQL | C153: HPE ANW Campus 54xxR Switch | D153: 35 | E153: Legacy Campus Access | F153: Aruba 5412R zl2 Switch | G153: 2017-11-06 | H153: 19467 | I153: GA | J153: 2017-11-06 | K153: 0.00 | L153: 0
A154: J9822AR | B154: B01 | C154: RMKT - Aruba Switch Midrange 4xxx-6xxx | D154: 35 | E154: Legacy Campus Access | F154: Aruba 5412R zl2 Reman Switch | G154: 2022-11-01 | H154: 19467 | I154: GA | J154: 2014-07-01 | K154: 4897.00 | L154: $4,844.11
A155: JL001A | B155: BPK | C155: HPE ANW Campus 54xxR V3 Zl2 Swch | D155: 35 | E155: Legacy Campus Access | F155: Aruba 5412R 92GT PoE+/4SFP+ v3 zl2 Swch | G155: 2022-11-01 | H155: 19467 | I155: GA | J155: 2015-05-01 | K155: 22639.00 | L155: $22,394.50
A156: JL001A#0D1 | B156: BPK | C156: HPE ANW Campus 54xxR V3 Zl2 Swch | D156: 35 | E156: Legacy Campus Access | F156: Aruba 5412R 92GT PoE+/4SFP+ v3 zl2 Swch | G156: 2015-04-13 | H156: 19467 | I156: GA | J156: 2015-05-01 | K156: 0.00 | L156: 0
A157: JL001A#B8X | B157: BPK | C157: HPE ANW Campus 54xxR V3 Zl2 Swch | D157: 35 | E157: Legacy Campus Access | F157: Aruba 5412R 92GT PoE+/4SFP+ v3 zl2 Swch | G157: 2017-11-06 | H157: 19467 | I157: GA | J157: 2017-11-06 | K157: 0.00 | L157: 0
A158: JL001AR | B158: B01 | C158: RMKT - Aruba Switch Midrange 4xxx-6xxx | D158: 35 | E158: Legacy Campus Access | F158: Aruba 5412R 92GT PoE+ / 4SFP+ Reman Swch | G158: 2022-11-01 | H158: 19467 | I158: GA | J158: 2015-07-01 | K158: 16979.00 | L158: $16,795.63
A159: JL001AR#0D1 | B159: B01 | C159: RMKT - Aruba Switch Midrange 4xxx-6xxx | D159: 35 | E159: Legacy Campus Access | F159: Aruba 5412R 92GT PoE+4SFP Reman Swch:FIO | G159: 2021-11-15 | H159: 19467 | I159: GA | J159: 2021-11-15 | K159: 0.00 | L159: 0
A160: JL002A | B160: BPK | C160: HPE ANW Campus 54xxR V3 Zl2 Swch | D160: 35 | E160: Legacy Campus Access | F160: Aruba 5406R 8XGT PoE+/8SFP+ v3 zl2 Swch | G160: 2022-11-01 | H160: 19465 | I160: GA | J160: 2015-05-01 | K160: 13619.00 | L160: $13,471.91
A161: JL002A#0D1 | B161: BPK | C161: HPE ANW Campus 54xxR V3 Zl2 Swch | D161: 35 | E161: Legacy Campus Access | F161: Aruba 5406R 8XGT PoE+/8SFP+ v3 zl2 Swch | G161: 2015-04-13 | H161: 19465 | I161: GA | J161: 2015-05-01 | K161: 0.00 | L161: 0
A162: JL002A#B8X | B162: BPK | C162: HPE ANW Campus 54xxR V3 Zl2 Swch | D162: 35 | E162: Legacy Campus Access | F162: Aruba 5406R 8XGT PoE+/8SFP+ v3 zl2 Swch | G162: 2017-11-06 | H162: 19465 | I162: GA | J162: 2017-11-06 | K162: 0.00 | L162: 0
A163: JL002AR | B163: B01 | C163: RMKT - Aruba Switch Midrange 4xxx-6xxx | D163: 35 | E163: Legacy Campus Access | F163: Aruba 5406R 8XGT PoE+ / 8SFP+ Reman Swch | G163: 2022-11-01 | H163: 19465 | I163: GA | J163: 2015-07-01 | K163: 10214.00 | L163: $10,103.69
A164: JL002AR#0D1 | B164: B01 | C164: RMKT - Aruba Switch Midrange 4xxx-6xxx | D164: 35 | E164: Legacy Campus Access | F164: Aruba 5406R 8XGT PoE 8SFP Reman Swch:FIO | G164: 2021-11-15 | H164: 19465 | I164: GA | J164: 2021-11-15 | K164: 0.00 | L164: 0
A165: JL003A | B165: BPK | C165: HPE ANW Campus 54xxR V3 Zl2 Swch | D165: 35 | E165: Legacy Campus Access | F165: Aruba 5406R 44GT PoE+/4SFP+ v3 zl2 Swch | G165: 2022-11-01 | H165: 19465 | I165: GA | J165: 2015-05-01 | K165: 12909.00 | L165: $12,769.58
A166: JL003A#0D1 | B166: BPK | C166: HPE ANW Campus 54xxR V3 Zl2 Swch | D166: 35 | E166: Legacy Campus Access | F166: Aruba 5406R 44GT PoE+/4SFP+ v3 zl2 Swch | G166: 2015-04-13 | H166: 19465 | I166: GA | J166: 2015-05-01 | K166: 0.00 | L166: 0
A167: JL003A#B8X | B167: BPK | C167: HPE ANW Campus 54xxR V3 Zl2 Swch | D167: 35 | E167: Legacy Campus Access | F167: Aruba 5406R 44GT PoE+/4SFP+ v3 zl2 Swch | G167: 2017-11-06 | H167: 19465 | I167: GA | J167: 2017-11-06 | K167: 0.00 | L167: 0
A168: JL003AR | B168: B01 | C168: RMKT - Aruba Switch Midrange 4xxx-6xxx | D168: 35 | E168: Legacy Campus Access | F168: Aruba 5406R 44GT PoE+ / 4SFP+ Reman Swch | G168: 2022-11-01 | H168: 19465 | I168: GA | J168: 2015-07-01 | K168: 9682.00 | L168: $9,577.43
A169: JL003AR#0D1 | B169: B01 | C169: RMKT - Aruba Switch Midrange 4xxx-6xxx | D169: 35 | E169: Legacy Campus Access | F169: Aruba 5406R 44GT PoE/4SFP Reman Swch:FIO | G169: 2021-11-15 | H169: 19465 | I169: GA | J169: 2021-11-15 | K169: 0.00 | L169: 0
A170: JL070AR | B170: 8W3 | C170: RMKT - Aruba Switch 2xxx/3xxx | D170: 35 | E170: Legacy Campus Access | F170: Aruba 2530-8-PoE+ Internal PS Reman Swch | G170: 2021-11-15 | H170: 22GFD | I170: GA | J170: 2015-05-01 | K170: 659.00 | L170: $651.88
A171: JL070AR#ABA | B171: 8W3 | C171: RMKT - Aruba Switch 2xxx/3xxx | D171: 35 | E171: Legacy Campus Access | F171: HPE 2530-8-PoE+Int PS Reman Switch:US-en | G171: 2021-05-01 | H171: 22GFD | I171: GA | J171: 2015-05-01 | K171: 0.00 | L171: 0
A172: JL070AR#ABB | B172: 8W3 | C172: RMKT - Aruba Switch 2xxx/3xxx | D172: 35 | E172: Legacy Campus Access | F172: HPE 2530-8-PoE+ Int PS Reman Swch:EU-en | G172: 2021-05-01 | H172: 22GFD | I172: GA | J172: 2016-04-01 | K172: 0.00 | L172: 0
A173: JL070AR#ACC | B173: 8W3 | C173: RMKT - Aruba Switch 2xxx/3xxx | D173: 35 | E173: Legacy Campus Access | F173: Aruba 2530 8 PoE+ Intnl Reman Swch:UK-en | G173: 2021-05-01 | H173: 22GFD | I173: GA | J173: 2021-03-15 | K173: 0.00 | L173: 0
A174: JL070AR#B2C | B174: 8W3 | C174: RMKT - Aruba Switch 2xxx/3xxx | D174: 35 | E174: Legacy Campus Access | F174: Aruba 2530 8 PoE+ Intnl Reman Swch PDU | G174: 2021-05-01 | H174: 22GFD | I174: GA | J174: 2021-03-15 | K174: 0.00 | L174: 0
A175: JL071A | B175: 9TG | C175: HPE ANW Campus 38xx Switch | D175: 35 | E175: Legacy Campus Access | F175: Aruba 3810M 24G 1-slot Swch | G175: 2022-11-01 | H175: 22GFL | I175: ES | J175: 2025-01-31 | K175: 5579.00 | L175: $5,518.75
A176: JL071A#0D1 | B176: 9TG | C176: HPE ANW Campus 38xx Switch | D176: 35 | E176: Legacy Campus Access | F176: Aruba 3810M 24G 1-slot Swch | G176: 2015-11-02 | H176: 22GFL | I176: ES | J176: 2025-01-31 | K176: 0.00 | L176: 0
A177: JL072A | B177: 9TG | C177: HPE ANW Campus 38xx Switch | D177: 35 | E177: Legacy Campus Access | F177: Aruba 3810M 48G 1-slot Swch | G177: 2022-11-01 | H177: 22GFL | I177: ES | J177: 2025-01-31 | K177: 8139.00 | L177: $8,051.10
A178: JL072A#0D1 | B178: 9TG | C178: HPE ANW Campus 38xx Switch | D178: 35 | E178: Legacy Campus Access | F178: Aruba 3810M 48G 1-slot Swch | G178: 2015-11-02 | H178: 22GFL | I178: ES | J178: 2025-01-31 | K178: 0.00 | L178: 0
A179: JL073A | B179: 9TG | C179: HPE ANW Campus 38xx Switch | D179: 35 | E179: Legacy Campus Access | F179: Aruba 3810M 24G PoE+ 1-slot Swch | G179: 2022-11-01 | H179: 22GFL | I179: ES | J179: 2025-01-31 | K179: 6049.00 | L179: $5,983.67
A180: JL074A#0D1 | B180: 9TG | C180: HPE ANW Campus 38xx Switch | D180: 35 | E180: Legacy Campus Access | F180: Aruba 3810M 48G PoE+ 1-slot Swch | G180: 2015-11-02 | H180: 22GFL | I180: ES | J180: 2025-01-31 | K180: 0.00 | L180: 0
A181: JL074AR | B181: 8W3 | C181: RMKT - Aruba Switch 2xxx/3xxx | D181: 35 | E181: Legacy Campus Access | F181: HPE Aruba 3810M 48G PoE+ 1-sl Reman Swch | G181: 2022-04-18 | H181: 22GFL | I181: GA | J181: 2016-12-10 | K181: 6914.00 | L181: $6,839.33
A182: JL075A | B182: 9TG | C182: HPE ANW Campus 38xx Switch | D182: 35 | E182: Legacy Campus Access | F182: Aruba 3810M 16SFP+ 2-slot Swch | G182: 2022-11-01 | H182: 22GFL | I182: ES | J182: 2025-01-31 | K182: 14959.00 | L182: $14,797.44
A183: JL075A#0D1 | B183: 9TG | C183: HPE ANW Campus 38xx Switch | D183: 35 | E183: Legacy Campus Access | F183: Aruba 3810M 16SFP+ 2-slot Swch | G183: 2015-11-02 | H183: 22GFL | I183: ES | J183: 2025-01-31 | K183: 0.00 | L183: 0
A184: JL076A | B184: 9TG | C184: HPE ANW Campus 38xx Switch | D184: 35 | E184: Legacy Campus Access | F184: Aruba 3810M 40G 8SR PoE+ 1-slot Swch | G184: 2022-11-01 | H184: 22GFL | I184: ES | J184: 2025-01-31 | K184: 13429.00 | L184: $13,283.97
A185: JL084A | B185: C2E | C185: HPE ANW Campus stackable SW Module | D185: 35 | E185: Legacy Campus Access | F185: Aruba 3810M 4-port Stacking Module | G185: 2022-11-01 | H185: 22GD8 | I185: GA | J185: 2015-12-01 | K185: 1439.00 | L185: $1,423.46
A186: JL084A#0D1 | B186: C2E | C186: HPE ANW Campus stackable SW Module | D186: 35 | E186: Legacy Campus Access | F186: Aruba 3810M 4-port Stacking Module | G186: 2015-11-02 | H186: 22GDC | I186: GA | J186: 2015-12-01 | K186: 0.00 | L186: 0
A187: JL095A | B187: BPK | C187: HPE ANW Campus 54xxR V3 Zl2 Swch | D187: 35 | E187: Legacy Campus Access | F187: Aruba 5406R 16SFP+ v3 zl2 Swch | G187: 2022-11-01 | H187: 19465 | I187: GA | J187: 2015-05-01 | K187: 13619.00 | L187: $13,471.91
A188: JL095A#0D1 | B188: BPK | C188: HPE ANW Campus 54xxR V3 Zl2 Swch | D188: 35 | E188: Legacy Campus Access | F188: Aruba 5406R 16SFP+ v3 zl2 Swch | G188: 2015-04-13 | H188: 19465 | I188: GA | J188: 2015-05-01 | K188: 0.00 | L188: 0
A189: JL095A#B8X | B189: BPK | C189: HPE ANW Campus 54xxR V3 Zl2 Swch | D189: 35 | E189: Legacy Campus Access | F189: Aruba 5406R 16SFP+ v3 zl2 Swch | G189: 2017-11-06 | H189: 19465 | I189: GA | J189: 2017-11-06 | K189: 0.00 | L189: 0
A190: JL095AR | B190: B01 | C190: RMKT - Aruba Switch Midrange 4xxx-6xxx | D190: 35 | E190: Legacy Campus Access | F190: Aruba 5406R 16SFP+ v3 zl2 Reman Swch | G190: 2022-11-01 | H190: 19465 | I190: GA | J190: 2015-07-01 | K190: 10214.00 | L190: $10,103.69
A191: JL095AR#0D1 | B191: B01 | C191: RMKT - Aruba Switch Midrange 4xxx-6xxx | D191: 35 | E191: Legacy Campus Access | F191: Aruba 5406R 16SFP+ v3 zl2 Reman Swch:FIO | G191: 2021-11-15 | H191: 19465 | I191: GA | J191: 2021-11-15 | K191: 0.00 | L191: 0
A192: JL253A | B192: CI6 | C192: HPE ANW 2930F Campus switch | D192: 35 | E192: Legacy Campus Access | F192: Aruba 2930F 24G 4SFP+ Swch | G192: 2022-11-01 | H192: 22GFI | I192: GA | J192: 2016-06-27 | K192: 4979.00 | L192: $4,925.23
A193: JL253A#0D1 | B193: CI6 | C193: HPE ANW 2930F Campus switch | D193: 35 | E193: Legacy Campus Access | F193: Aruba 2930F 24G 4SFP+ Swch | G193: 2016-06-02 | H193: 22GFI | I193: GA | J193: 2016-06-27 | K193: 0.00 | L193: 0
A194: JL253A#A1X | B194: CI6 | C194: HPE ANW 2930F Campus switch | D194: 35 | E194: Legacy Campus Access | F194: Aruba 2930F 24G 4SFP+ Swch CL en | G194: 2016-06-02 | H194: 22GFI | I194: GA | J194: 2016-06-27 | K194: 0.00 | L194: 0
A195: JL253A#ABA | B195: CI6 | C195: HPE ANW 2930F Campus switch | D195: 35 | E195: Legacy Campus Access | F195: Aruba 2930F 24G 4SFP+ Swch US en | G195: 2016-06-02 | H195: 22GFI | I195: GA | J195: 2016-06-27 | K195: 0.00 | L195: 0
A196: JL253A#ABB | B196: CI6 | C196: HPE ANW 2930F Campus switch | D196: 35 | E196: Legacy Campus Access | F196: Aruba 2930F 24G 4SFP+ Swch EU en | G196: 2016-06-02 | H196: 22GFI | I196: GA | J196: 2016-06-27 | K196: 0.00 | L196: 0
A197: JL253A#ABG | B197: CI6 | C197: HPE ANW 2930F Campus switch | D197: 35 | E197: Legacy Campus Access | F197: Aruba 2930F 24G 4SFP+ Swch AU en | G197: 2016-06-02 | H197: 22GFI | I197: GA | J197: 2016-06-27 | K197: 0.00 | L197: 0
A198: JL253A#AC3 | B198: CI6 | C198: HPE ANW 2930F Campus switch | D198: 35 | E198: Legacy Campus Access | F198: Aruba 2930F 24G 4SFP+ Swch | G198: 2016-06-02 | H198: 22GFI | I198: GA | J198: 2016-06-27 | K198: 0.00 | L198: 0
A199: JL253A#AC4 | B199: CI6 | C199: HPE ANW 2930F Campus switch | D199: 35 | E199: Legacy Campus Access | F199: Aruba 2930F 24G 4SFP+ Swch BR en | G199: 2016-06-02 | H199: 22GFI | I199: GA | J199: 2016-06-27 | K199: 0.00 | L199: 0
A200: JL253A#AC6 | B200: CI6 | C200: HPE ANW 2930F Campus switch | D200: 35 | E200: Legacy Campus Access | F200: Aruba 2930F 24G 4SFP+ Swch KR en | G200: 2016-06-02 | H200: 22GFI | I200: GA | J200: 2016-06-27 | K200: 0.00 | L200: 0
... 925 more rows

Sheet Atlas
C2: Splunk Solutions Practice Price list 8/28/2025 (version 1-50828)
B3: P/N | C3: Description | D3: Unit of measure | E3: List Price | F3: Contract Discount | G3: Contract Price
B4: Atlas Foundations Suite - Seat Base License
B5: SSP-SW-ATLASF-BASE-1M | C5: Atlas Foundations Suite Software | Seat Base License | One Month Term | D5: Each | E5: $1,095.00 | F5: 3% | G5: =SUM(E5-(E5*F5)) -> $1,062.15
B6: SSP-SW-ATLASF-BASE-3M | C6: Atlas Foundations Suite Software | Seat Base License | Three Month Term | D6: Each | E6: $3,285.00 | F6: 3% | G6: =SUM(E6-(E6*F6)) -> $3,186.45
B7: SSP-SW-ATLASF-BASE-1Y | C7: Atlas Foundations Suite Software | Seat Base License | One Year Term | D7: Each | E7: $10,950.00 | F7: 3% | G7: $10,621.50
B9: Atlas Foundations Suite - Additional Seat License(s)
B10: SSP-SW-ATLASF-SEAT-1M | C10: Atlas Foundations Suite Software | Seat Add License | One Month Term | D10: Each | E10: $995.00 | F10: 3% | G10: =E10-(E10*F10) -> $965.15
B11: SSP-SW-ATLASF-SEAT-3M | C11: Atlas Foundations Suite Software | Seat Add License | Three Month Term | D11: Each | E11: $2,985.00 | F11: 3% | G11: =E11-(E11*F11) -> $2,895.45
B12: SSP-SW-ATLASF-SEAT-1Y | C12: Atlas Foundations Suite Software | Seat Add License | One Year Term | D12: Each | E12: $9,950.00 | F12: 3% | G12: $9,651.50
B14: Atlas Foundations Suite + Atlas STIG Compliance - Seat Base License
B15: SSP-SW-ATLASC-BASE-1M | C15: Atlas Foundations Suite + STIG Compliance Software | Seat Base License | One Month Term | D15: Each | E15: $1,595.00 | F15: 3% | G15: $1,547.15
B16: SSP-SW-ATLASC-BASE-3M | C16: Atlas Foundations Suite + STIG Compliance Software | Seat Base License | Three Month Term | D16: Each | E16: $4,785.00 | F16: 3% | G16: $4,641.45
B17: SSP-SW-ATLASC-BASE-1Y | C17: Atlas Foundations Suite + STIG Compliance Software | Seat Base License | One Year Term | D17: Each | E17: $15,950.00 | F17: 3% | G17: $15,471.50
B19: Atlas Foundations Suite + Atlas STIG Compliance - Additional Seat License(s)
B20: SSP-SW-ATLASC-SEAT-1M | C20: Atlas Foundations Suite + STIG Compliance Software | Seat Add License | One Month Term | D20: Each | E20: $1,495.00 | F20: 3% | G20: $1,450.15
B21: SSP-SW-ATLASC-SEAT-3M | C21: Atlas Foundations Suite + STIG Compliance Software | Seat Add License | Three Month Term | D21: Each | E21: $4,485.00 | F21: 3% | G21: $4,350.45
B22: SSP-SW-ATLASC-SEAT-1Y | C22: Atlas Foundations Suite + STIG Compliance Software | Seat Add License | One Year Term | D22: Each | E22: $14,950.00 | F22: 3% | G22: $14,501.50
B24: Atlas Foundations Suite Subscriptions - Enterprise License
B25: SSP-SW-ATLASF-EL-1Y | C25: Atlas Foundations Suite Enterprise | EOD L1 | One year | Unlimited Users | D25: Each | E25: Atlas ELA Pricing | F25: 3% | G25: per calculator
B26: SSP-SW-ATLASC-EL-1Y | C26: Atlas Foundations Suite Enterprise + STIG Compliance | EOD L1 | One year | Unlimited Users | D26: Each | E26: Atlas ELA Pricing | F26: 3% | G26: per calculator
B28: Atlas Expertise-on-Demand for Splunk Add-on Subscriptions
B29: MS-SSP-SPLK-EOD-4H-1M | C29: Atlas Expertise-on-Demand for Splunk (EOD) Subscription | Four (4) Hours per Month | One Month Term | D29: Each | E29: $1,200.00 | F29: 3% | G29: $1,164.00
B30: MS-SSP-SPLK-EOD-8H-1M | C30: Atlas Expertise-on-Demand for Splunk (EOD) Subscription | Eight (8) Hours per Month | One Month Term | D30: Each | E30: $2,280.00 | F30: 3% | G30: $2,211.60
B31: MS-SSP-SPLK-EOD-16H-1M | C31: Atlas Expertise-on-Demand for Splunk (EOD) Subscription | Sixteen (16) Hours per Month | One Month Term | D31: Each | E31: $4,320.00 | F31: 3% | G31: $4,190.40
B32: MS-SSP-SPLK-EOD-32H-1M | C32: Atlas Expertise-on-Demand for Splunk (EOD) Subscription | Thirty-two (32) Hours per Month | One Month Term | D32: Each | E32: $7,680.00 | F32: 3% | G32: $7,449.60
B33: MS-SSP-SPLK-EOD-4H-3M | C33: Atlas Expertise-on-Demand for Splunk (EOD) Subscription | Four (4) Hours per Month | Three Month Term | D33: Each | E33: $3,600.00 | F33: 3% | G33: $3,492.00
B34: MS-SSP-SPLK-EOD-8H-3M | C34: Atlas Expertise-on-Demand for Splunk (EOD) Subscription | Eight (8) Hours per Month | Three Month Term | D34: Each | E34: $6,840.00 | F34: 3% | G34: $6,634.80
B35: MS-SSP-SPLK-EOD-16H-3M | C35: Atlas Expertise-on-Demand for Splunk (EOD) Subscription | Sixteen (16) Hours per Month | Three Month Term | D35: Each | E35: $12,960.00 | F35: 3% | G35: $12,571.20
B36: MS-SSP-SPLK-EOD-32H-3M | C36: Atlas Expertise-on-Demand for Splunk (EOD) Subscription | Thirty-two (32) Hours per Month | Three Month Term | D36: Each | E36: $23,040.00 | F36: 3% | G36: $22,348.80
B37: MS-SSP-SPLK-EOD-4H-1Y | C37: Atlas Expertise-on-Demand for Splunk (EOD) Subscription | Four (4) Hours per Month | One Year Term | D37: Each | E37: $12,000.00 | F37: 3% | G37: $11,640.00
B38: MS-SSP-SPLK-EOD-8H-1Y | C38: Atlas Expertise-on-Demand for Splunk (EOD) Subscription | Eight (8) Hours per Month | One Year Term | D38: Each | E38: $22,800.00 | F38: 3% | G38: $22,116.00
B39: MS-SSP-SPLK-EOD-16-H1Y | C39: Atlas Expertise-on-Demand for Splunk (EOD) Subscription | Sixteen (16) Hours per Month | One Year Term | D39: Each | E39: $43,200.00 | F39: 3% | G39: $41,904.00
B40: MS-SSP-SPLK-EOD-32H-1Y | C40: Atlas Expertise-on-Demand for Splunk (EOD) Subscription | Thirty-two (32) Hours per Month | One Year Term | D40: Each | E40: $76,800.00 | F40: 3% | G40: $74,496.00
B42: Atlas Power Packs (Customers must have an EOD subscription to have access to Atlas PowerPacks
B43: MS-SSP-PWRP-24 | C43: Atlas PowerPack (24 Hours) | D43: Each | E43: $5,760.00 | F43: 3% | G43: $5,587.20
B44: MS-SSP-PWRP-48 | C44: Atlas PowerPack (48 Hours) | D44: Each | E44: $11,232.00 | F44: 3% | G44: $10,895.04
B45: MS-SSP-PWRP-80 | C45: Atlas PowerPack (80 Hours) | D45: Each | E45: $18,240.00 | F45: 3% | G45: $17,692.80
B46: MS-SSP-PWRP-160 | C46: Atlas PowerPack (160 Hours) | D46: Each | E46: $34,560.00 | F46: 3% | G46: $33,523.20
B48: Professional Services
B49: PS-RES-SPLK-PM | C49: Splunk Project Manager | D49: Hour | E49: $160.00 | F49: 3% | G49: =E49-(E49*F49) -> $155.20
B50: PS-RES-SPLK-CX | C50: Splunk Customer Experience Engineer | D50: Hour | E50: $200.00 | F50: 3% | G50: =E50-(E50*F50) -> $194.00
B51: PS-RES-SPLK-SRCX | C51: Senior Splunk Customer Experience Engineer | D51: Hour | E51: $235.00 | F51: 3% | G51: $227.95
B52: PS-RES-SPLK-ENG | C52: Splunk Engineer | D52: Hour | E52: $275.00 | F52: 3% | G52: $266.75
B53: PS-RES-SPLK-SRENG | C53: Senior Splunk Engineer | D53: Hour | E53: $325.00 | F53: 3% | G53: $315.25
B54: PS-RES-SPLK-CON | C54: Principal Splunk Consultant | D54: Hour | E54: $375.00 | F54: 3% | G54: $363.75
B55: PS-RES-SPLK-MC | C55: Managing Consultant | D55: Hour | E55: $425.00 | F55: 3% | G55: $412.25
B56: Professional Services - Cribl
B57: PS-RES-SPLK-CRBL-PM | C57: Senior Project Manager Cribl | D57: Hour | E57: $160.00 | F57: 3% | G57: =E57-(E57*F57) -> $155.20
B58: PS-RES-SPLK-CRBL-ENG | C58: Engineer Cribl | D58: Hour | E58: $275.00 | F58: 3% | G58: =E58-(E58*F58) -> $266.75
B59: PS-RES-SPLK-CRBL-SRENG | C59: Senior Engineer Cribl | D59: Hour | E59: $325.00 | F59: 3% | G59: $315.25
B60: Professional Services - App Dynamics
B61: PS-RES-SPLK-APPD-PM | C61: Senior Project Manager AppD | D61: Hour | E61: $160.00 | F61: 3% | G61: =E61-(E61*F61) -> $155.20
B62: PS-RES-SPLK-APPD-ENG | C62: Engineer AppD | D62: Hour | E62: $275.00 | F62: 3% | G62: =E62-(E62*F62) -> $266.75
B63: PS-RES-SPLK-APPD-SRENG | C63: Senior Engineer AppD | D63: Hour | E63: $325.00 | F63: 3% | G63: $315.25
B64: Professional Services - General
B65: PS-RES-SPLK-PWRUSR | C65: Splunk Power User | D65: Hour | E65: $200.00 | F65: 3% | G65: =E65-(E65*F65) -> $194.00
B66: PS-RES-SPLK-ADMIN | C66: Splunk Admin | D66: Hour | E66: $235.00 | F66: 3% | G66: =E66-(E66*F66) -> $227.95
B68: Splunk Packaged Services
B69: PS-SVC-SSP-ENTAO-STD-BASE | C69: Splunk Enterprise Assessment and Optimization - Standard | D69: Each | E69: $37,000.00 | F69: 3% | G69: =E69-(E69*F69) -> $35,890.00
B70: PS-SVC-SSP-ENTAO-ADV-BASE | C70: Splunk Enterprise Assessment and Optimization - Advanced | D70: Each | E70: $53,000.00 | F70: 3% | G70: =E70-(E70*F70) -> $51,410.00
B71: PS-SVC-SSP-CLDAO-STD-BASE | C71: Splunk Cloud Assessment and Optimization | D71: Each | E71: $37,000.00 | F71: 3% | G71: $35,890.00
B72: PS-SVC-SSP-ESECAO-STD-BASE | C72: Splunk Entererprise Security Assessment and Optimization | D72: Each | E72: $37,000.00 | F72: 3% | G72: $35,890.00

Sheet Audio Codes
A1: Product Group | B1: Product | C1: Category | D1: CPN | E1: Short Description | F1: MSRP USD | H1: NASPO Price
A2: Analog VoIP Gateway | B2: MediaPack 5xx | C2: MediaPack 5xx Voice Gateway | D2: MP504/2S/SIP | E2: MediaPack 5xx analog VoIP gateway with 2 FXS Voice Interfaces with software upgradable option to 4 FXS | F2: $ 348.00 | G2: 1.08% | H2: =F2*(1-G2) -> $344.24
A3: Analog VoIP Gateway | B3: MediaPack 5xx | C3: MediaPack 5xx Voice Gateway | D3: MP504/4S/SIP | E3: MediaPack 5xx analog VoIP gateway with 4 FXS Voice Interfaces | F3: $ 412.00 | G3: 1.08% | H3: =F3*(1-G3) -> $407.55
A4: Analog VoIP Gateway | B4: MediaPack 5xx | C4: MediaPack 5xx Voice Gateway | D4: MP508/8S/SIP | E4: MediaPack 5xx analog VoIP gateway with 8 FXS Voice Interfaces | F4: $ 736.00 | G4: 1.08% | H4: $728.05
A5: Analog VoIP Gateway | B5: MediaPack 5xx | C5: MediaPack 5xx Voice Gateway | D5: MP508/4S4O/SIP | E5: MediaPack 5xx analog VoIP gateway with 4FXS and 4 FXO Voice Interfaces | F5: $ 1,103.00 | G5: 1.08% | H5: $1,091.09
A6: Analog VoIP Gateway | B6: MediaPack 5xx | C6: MediaPack 5xx Voice Gateway | D6: MP524/24S/SIP/D-SUB | E6: MediaPack 5xx analog VoIP gateway with 24 FXS Voice Interfaces via D-SUB (50 pin) connector | F6: $ 1,921.00 | G6: 1.08% | H6: $1,900.25
A7: Analog VoIP Gateway | B7: MediaPack 5xx | C7: MediaPack 5xx Voice Gateway | D7: MP532/32S/SIP/D-SUB | E7: MediaPack 5xx analog VoIP gateway with 32 FXS Voice Interfaces via 2 D-SUB (50 pin) connectors | F7: $ 2,400.00 | G7: 1.08% | H7: $2,374.08
A8: Analog VoIP Gateway | B8: MediaPack 5xx | C8: MediaPack 5xx Voice Gateway with redirect service | D8: MP504/2S/SIP/RS | E8: MediaPack 5xx analog VoIP gateway with 2 FXS Voice Interfaces with software upgradable option to 4 FXS, redirect service enabled | F8: $ 348.00 | G8: 1.08% | H8: $344.24
A9: Analog VoIP Gateway | B9: MediaPack 5xx | C9: MediaPack 5xx Voice Gateway with redirect service | D9: MP504/4S/SIP/RS | E9: MediaPack 5xx analog VoIP gateway with 4 FXS Voice Interfaces, redirect service enabled | F9: $ 412.00 | G9: 1.08% | H9: $407.55
A10: Analog VoIP Gateway | B10: MediaPack 5xx | C10: MediaPack 5xx Voice Gateway with redirect service | D10: MP508/8S/SIP/RS | E10: MediaPack 5xx analog VoIP gateway with 8 FXS Voice Interfaces, redirect service enabled | F10: $ 736.00 | G10: 1.08% | H10: $728.05
A11: Analog VoIP Gateway | B11: MediaPack 5xx | C11: TAA Compliant | D11: MP504/2S/SIP/TAA | E11: MediaPack 5xx analog VoIP gateway with 2 FXS Voice Interfaces with software upgradable option to 4 FXS, TAA compliant | F11: $ 435.00 | G11: 1.08% | H11: $430.30
A12: Analog VoIP Gateway | B12: MediaPack 5xx | C12: TAA Compliant | D12: MP504/4S/SIP/TAA | E12: MediaPack 5xx analog VoIP gateway with 4 FXS Voice Interfaces, TAA compliant | F12: $ 515.00 | G12: 1.08% | H12: $509.44
A13: Analog VoIP Gateway | B13: MediaPack 5xx | C13: TAA Compliant | D13: MP508/8S/SIP/TAA | E13: MediaPack 5xx analog VoIP gateway with 8 FXS Voice Interfaces, TAA compliant | F13: $ 920.00 | G13: 1.08% | H13: $910.06
A14: Analog VoIP Gateway | B14: MediaPack 5xx | C14: MediaPack 5xx Voice Gateway | D14: SW/MP5XX/UP-2FXS | E14: MediaPack 5xx Upgrade License from 2 FXS to 4 FXS | F14: $ 94.50 | G14: 1.08% | H14: $93.48
A15: Analog VoIP Gateway | B15: MediaPack 5xx | C15: One Voice Operations Center Software Option | D15: SW/MP5XX/OVOC | E15: OVOC license for MediaPack 5xx | F15: $ 52.50 | G15: 1.08% | H15: $51.93
A16: Analog VoIP Gateway | B16: MediaPack 5xx | C16: Cloud Resilience Package Software Options | D16: SW/MP5XX/CRP/5 | E16: Cloud Resilience Package license for 5 registered users | F16: $ 94.50 | G16: 1.08% | H16: $93.48
A17: Analog VoIP Gateway | B17: MediaPack 5xx | C17: Cloud Resilience Package Software Options | D17: SW/MP5XX/CRP/25 | E17: Cloud Resilience Package license for 25 registered users | F17: $ 284.00 | G17: 1.08% | H17: $280.93
A18: Analog VoIP Gateway | B18: MediaPack 5xx | C18: Cloud Resilience Package Software Options | D18: SW/MP5XX/CRP/50 | E18: Cloud Resilience Package license for 50 registered users | F18: $ 368.00 | G18: 1.08% | H18: $364.03
A19: Analog VoIP Gateway | B19: MediaPack 5xx | C19: Cloud Resilience Package Software Options | D19: SW/MP5XX/CRP/100 | E19: Cloud Resilience Package license for 100 registered users | F19: $ 525.00 | G19: 1.08% | H19: $519.33
A20: Analog VoIP Gateway | B20: MediaPack 5xx | C20: MediaPack 5xx Accessories | D20: MP5XX-PS-3A-US-KIT | E20: Power Supply US/Canada kit, including US/Canada plug; Kit includes 10 units. | F20: $ 441.00 | G20: 1.08% | H20: $436.24
A21: Analog VoIP Gateway | B21: MediaPack 5xx | C21: MediaPack 5xx Accessories | D21: MP5XX-PS-3A-UK-KIT | E21: Power Supply UK kit, including UK plug; Kit includes 10 units. | F21: $ 441.00 | G21: 1.08% | H21: $436.24
A22: Analog VoIP Gateway | B22: MediaPack 5xx | C22: MediaPack 5xx Accessories | D22: MP5XX-PS-3A-AUST-KIT | E22: Power Supply Australia kit, including Australia plug; Kit includes 10 units. | F22: $ 441.00 | G22: 1.08% | H22: $436.24
A23: Analog VoIP Gateway | B23: MediaPack 5xx | C23: MediaPack 5xx Accessories | D23: MP5XX-PS-3A-JPN-KIT | E23: Power Supply Japan kit, including Japan plug; Kit includes 10 units. | F23: $ 441.00 | G23: 1.08% | H23: $436.24
A24: Analog VoIP Gateway | B24: MediaPack 5xx | C24: MediaPack 5xx Accessories | D24: MP5XX-PS-3A-EU-KIT | E24: Power Supply Europe kit, including Europe plug; Kit includes 10 units. | F24: $ 441.00 | G24: 1.08% | H24: $436.24
A25: Analog VoIP Gateway | B25: MediaPack 5xx | C25: MediaPack 5xx Accessories | D25: FRU/MP5XX/RMK | E25: MediaPack 5xx spare part - rack mount kit ​ | F25: $ 120.00 | G25: 1.08% | H25: $118.70
A26: Analog VoIP Gateway | B26: MediaPack 5xx | C26: MediaPack 5xx Accessories | D26: MP5XX-RACK-SHELF-KIT | E26: MediaPack 5xx rack shelf mount kit (5 sets). | F26: $ 276.00 | G26: 1.08% | H26: $273.02
A27: Analog VoIP Gateway | B27: MediaPack 5xx | C27: MediaPack 5xx Accessories | D27: MP532-PATCH-PNL-KIT | E27: Two 24-ports patch panels units | F27: $ 970.00 | G27: 1.08% | H27: $959.52
A28: Analog VoIP Gateway | B28: MediaPack 5xx | C28: MediaPack 5xx Accessories | D28: MP524-PATCH-PANEL | E28: 24-ports FXS patch panel | F28: $ 485.00 | G28: 1.08% | H28: $479.76
A29: Analog VoIP Gateway | B29: MediaPack 1xx | C29: Hardware Configuration Base with a Certificate | D29: MP112/2S/SIP/CER | E29: MediaPack 112 analog VoIP gateway with 2 FXS ports, includes a signed certificate. | F29: $ 212.00 | G29: 1.08% | H29: $209.71
A30: Analog VoIP Gateway | B30: MediaPack 1xx | C30: Hardware Configuration Base with a Certificate | D30: MP114/4O/SIP/CER | E30: MediaPack 114 analog VoIP gateway with 4 FXO ports, includes a signed certificate. | F30: $ 636.00 | G30: 1.08% | H30: $629.13
A31: Analog VoIP Gateway | B31: MediaPack 1xx | C31: Hardware Configuration Base with a Certificate | D31: MP114/2S/2O/SIP/CER | E31: MediaPack 114 analog VoIP gateway with 2 FXS and 2 FXO ports, includes a signed certificate. | F31: $ 607.00 | G31: 1.08% | H31: $600.44
A32: Analog VoIP Gateway | B32: MediaPack 1xx | C32: Hardware Configuration Base with a Certificate | D32: MP118/8O/SIP/CER | E32: MediaPack 118 analog VoIP gateway with 8 FXO ports, includes a signed certificate. | F32: $ 1,126.00 | G32: 1.08% | H32: $1,113.84
A33: Analog VoIP Gateway | B33: MediaPack 1xx | C33: Hardware Configuration Base with a Certificate | D33: MP118/4S/4O/SIP/CER | E33: MediaPack 118 analog VoIP gateway with 4 FXS and 4 FXO ports, includes a signed certificate. | F33: $ 1,077.00 | G33: 1.08% | H33: $1,065.37
A34: Analog VoIP Gateway | B34: MediaPack 1xx | C34: Hardware Configuration Base with a Certificate | D34: MP124/16S/AC/SIP | E34: MediaPack 124 analog VoIP gateway with 16 FXS ports | F34: $ 1,312.00 | G34: 1.08% | H34: $1,297.83
A35: Analog VoIP Gateway | B35: MediaPack 1xx | C35: Hardware Configuration Base with a Certificate | D35: MP124/24S/DC/SIP | E35: MediaPack 124 analog VoIP gateway with 24 FXS ports, DC-powered | F35: $ 1,621.00 | G35: 1.08% | H35: $1,603.49
A36: Analog VoIP Gateway | B36: MediaPack 1xx | C36: Hardware Configuration Base with a Certificate | D36: MP124/24S/AC/SIP | E36: MediaPack 124 analog VoIP gateway with 24 FXS ports | F36: $ 1,621.00 | G36: 1.08% | H36: $1,603.49
A37: Analog VoIP Gateway | B37: MediaPack 1xx | C37: Hardware Configuration Base with DHCP enabled by default | D37: MP112/2S/SIP/D | E37: MediaPack 112 analog VoIP gateway with 2 FXS ports, DHCP enabled by default. | F37: $ 212.00 | G37: 1.08% | H37: $209.71
A38: Analog VoIP Gateway | B38: MediaPack 1xx | C38: Hardware Configuration Base with DHCP enabled by default | D38: MP124/24S/AC/SIP/D | E38: MediaPack 124 analog VoIP gateway with 24 FXS ports, DHCP enabled by default. | F38: $ 1,621.00 | G38: 1.08% | H38: $1,603.49
A39: Analog VoIP Gateway | B39: MediaPack 1xx | C39: Hardware Configuration Base with DHCP enabled by default | D39: MP114/4O/SIP/D | E39: MediaPack 114 analog VoIP gateway with 4 FXO ports, DHCP enabled by default. | F39: $ 636.00 | G39: 1.08% | H39: $629.13
A40: Analog VoIP Gateway | B40: MediaPack 1xx | C40: Hardware Configuration Base with DHCP enabled by default | D40: MP118/8O/SIP/D | E40: MediaPack 118 analog VoIP gateway with 8 FXO ports, DHCP enabled by default. | F40: $ 1,126.00 | G40: 1.08% | H40: $1,113.84
A41: Analog VoIP Gateway | B41: MediaPack 1xx | C41: Hardware Configuration Base with DHCP enabled by default | D41: MP114/2S/2O/SIP/D | E41: MediaPack 114 analog VoIP gateway with 2 FXS and 2 FXO ports, DHCP enabled by default. | F41: $ 607.00 | G41: 1.08% | H41: $600.44
A42: Analog VoIP Gateway | B42: MediaPack 1xx | C42: Hardware Configuration Base with DHCP enabled by default | D42: MP118/4S/4O/SIP/D | E42: MediaPack 118 analog VoIP gateway with 4 FXS and 4 FXO ports, DHCP enabled by default. | F42: $ 1,077.00 | G42: 1.08% | H42: $1,065.37
A43: Analog VoIP Gateway | B43: MediaPack 1xx | C43: Hardware Configurations with Redirect Service | D43: MP112/2S/SIP/RS | E43: MediaPack 112 analog VoIP gateway with 2 FXS ports, redirect service enabled. | F43: $ 212.00 | G43: 1.08% | H43: $209.71
A44: Analog VoIP Gateway | B44: MediaPack 1xx | C44: Hardware Configurations with Redirect Service | D44: MP114/2S/2O/SIP/RS | E44: MediaPack 114 analog VoIP gateway with 2 FXS and 2 FXO ports, redirect service enabled. | F44: $ 607.00 | G44: 1.08% | H44: $600.44
A45: Analog VoIP Gateway | B45: MediaPack 1xx | C45: Hardware Configurations with Redirect Service | D45: MP124/16S/AC/SIP/RS | E45: MediaPack 124 analog VoIP gateway with 16 FXS ports, redirect service enabled. | F45: $ 1,312.00 | G45: 1.08% | H45: $1,297.83
A46: Analog VoIP Gateway | B46: MediaPack 1xx | C46: Hardware Configurations with Redirect Service | D46: MP124/24S/AC/SIP/RS | E46: MediaPack 124 analog VoIP gateway with 24 FXS ports, redirect service enabled. | F46: $ 1,621.00 | G46: 1.08% | H46: $1,603.49
A47: Analog VoIP Gateway | B47: MediaPack 1xx | C47: TAA Compliant | D47: MP112/2S/SIP/TAA | E47: TAA compliant, MediaPack 112 analog VoIP gateway with 2 FXS ports. | F47: $ 317.00 | G47: 1.08% | H47: $313.58
A48: Analog VoIP Gateway | B48: MediaPack 1xx | C48: TAA Compliant | D48: MP118/8O/SIP/TAA | E48: TAA compliant, MediaPack 118 analog VoIP gateway with 8 FXO ports. | F48: $ 1,407.00 | G48: 1.08% | H48: $1,391.80
A49: Analog VoIP Gateway | B49: MediaPack 1xx | C49: TAA Compliant | D49: MP124/24S/AC/SIP/TAA | E49: TAA compliant, MediaPack 124 analog VoIP gateway with 24 FXS ports. | F49: $ 2,027.00 | G49: 1.08% | H49: $2,005.11
A50: Analog VoIP Gateway | B50: MediaPack 1xx | C50: MediaPack 1xx Software Options | D50: SW/OVOC/MP11X | E50: OVOC license | F50: $ 50.00 | G50: 1.08% | H50: $49.46
A51: Analog VoIP Gateway | B51: MediaPack 1xx | C51: MediaPack 1xx Software Options | D51: SW/OVOC/MP12X | E51: OVOC license | F51: $ 50.00 | G51: 1.08% | H51: $49.46
A52: Analog VoIP Gateway | B52: MediaPack 1xx | C52: MediaPack 1xx Software Options | D52: SW/MP124/16-24S | E52: Upgrade license for MP-124 with 16 FXS ports to 24 FXS ports | F52: $ 452.00 | G52: 1.08% | H52: $447.12
A53: Analog VoIP Gateway | B53: MediaPack 1xx | C53: MediaPack 1xx Software Options | D53: SW/MP1XX/RTCP-XR/1 | E53: RTCP-Extended report single session | F53: $ 3.15 | G53: 1.08% | H53: $3.12
A54: Analog VoIP Gateway | B54: MediaPack 1xx | C54: Accessories - MP-11x | D54: MPRS232 | E54: 10 units of RS-232 cable for MP-11x | F54: $ 210.00 | G54: 1.08% | H54: $207.73
A55: Analog VoIP Gateway | B55: MediaPack 1xx | C55: Accessories - MP-11x | D55: MP11X-LIFELINE-KIT | E55: 25 FXS lifeline cables | F55: $ 132.00 | G55: 1.08% | H55: $130.57
A56: Analog VoIP Gateway | B56: MediaPack 1xx | C56: Accessories - MP-11x | D56: MP-RMSHL | E56: 10 rack mounting shelves for MP11x | F56: $ 166.00 | G56: 1.08% | H56: $164.21
A57: Analog VoIP Gateway | B57: MediaPack 1xx | C57: Accessories - MP-124 | D57: MP124-PATCH-PANEL | E57: 24-ports FXS patch panel | F57: $ 485.00 | G57: 1.08% | H57: $479.76
A58: Analog VoIP Gateway | B58: MediaPack 1xx | C58: Accessories - MP-124 | D58: MP124-CONNECTION-BOX | E58: Mini patch panel break-out box | F58: $ 331.00 | G58: 1.08% | H58: $327.43
A59: Analog VoIP Gateway | B59: MediaPack 1xx | C59: Accessories - MP-124 | D59: CENTOL10 | E59: 10 meters centronics cable | F59: $ 221.00 | G59: 1.08% | H59: $218.61
A60: Analog VoIP Gateway | B60: MediaPack 1xx | C60: Accessories - MP-124 | D60: MP124VELC | E60: 10 units of telephony cable safety locker with Velcro | F60: $ 353.00 | G60: 1.08% | H60: $349.19
A61: Analog VoIP Gateway | B61: MediaPack 1xx | C61: Accessories - MP-124 | D61: MP124VELC-SINGLE | E61: Single telephony cable safety locker with Velcro | F61: $ 35.00 | G61: 1.08% | H61: $34.62
A62: Analog VoIP Gateway | B62: MediaPack 1xx | C62: Accessories - MP-124 | D62: MP124RMK | E62: 10 kits of front-mounting brackets | F62: $ 112.00 | G62: 1.08% | H62: $110.79
A63: Analog VoIP Gateway | B63: MediaPack 1xx | C63: MediaPack 11x Power Cords | D63: MP-CB-US | E63: A kit of 25 US-type AC power cords with C5 connector | F63: $ 154.00 | G63: 1.08% | H63: $152.34
A64: Analog VoIP Gateway | B64: MediaPack 1xx | C64: MediaPack 11x Power Cords | D64: MP-CB-IL | E64: A kit of 25 Israeli-type AC power cords with C5 connector | F64: $ 154.00 | G64: 1.08% | H64: $152.34
A65: Analog VoIP Gateway | B65: MediaPack 1xx | C65: MediaPack 11x Power Cords | D65: MP-CB-EU | E65: A kit of 25 European-type AC power cords with C5 connector | F65: $ 154.00 | G65: 1.08% | H65: $152.34
A66: Analog VoIP Gateway | B66: MediaPack 1xx | C66: MediaPack 11x Power Cords | D66: MP-CB-CH | E66: A kit of 25 Chinese-type AC power cords with C5 connector | F66: $ 154.00 | G66: 1.08% | H66: $152.34
A67: Analog VoIP Gateway | B67: MediaPack 1xx | C67: MediaPack 11x Power Cords | D67: MP-CB-UK | E67: A kit of 25 British-type AC power cords with C5 connector | F67: $ 154.00 | G67: 1.08% | H67: =F67*(1-G67) -> $152.34
A68: Analog VoIP Gateway | B68: MediaPack 1xx | C68: MediaPack 11x Power Cords | D68: MP-CB-AR | E68: A kit of 25 Argentinean-type AC power cords with C5 connector | F68: $ 154.00 | G68: 1.08% | H68: $152.34
A69: Analog VoIP Gateway | B69: MediaPack 1xx | C69: MediaPack 11x Power Cords | D69: MP-CB-AU | E69: A kit of 25 Australian-type AC power cords with C5 connector | F69: $ 154.00 | G69: 1.08% | H69: $152.34
A70: Analog VoIP Gateway | B70: MediaPack 1xx | C70: MediaPack 11x Power Cords | D70: MP-CB-TH | E70: A kit of 25 Thailand-type AC power cords with C5 connector | F70: $ 154.00 | G70: 1.08% | H70: $152.34
A71: Analog VoIP Gateway | B71: MediaPack 1xx | C71: MediaPack 11x Power Cords | D71: MP-CB-BR | E71: A kit of 25 Brazilian-type AC power cords with C5 connector | F71: $ 154.00 | G71: 1.08% | H71: $152.34
A72: Analog VoIP Gateway | B72: MediaPack 1xx | C72: MediaPack 11x Power Cords | D72: MP-CB-JA | E72: A kit of 25 Japanese-type AC power cords with C5 connector | F72: $ 154.00 | G72: 1.08% | H72: $152.34
A73: Analog VoIP Gateway | B73: MediaPack 1xx | C73: MediaPack 11x Power Cords | D73: MP-CB-SA | E73: A kit of 25 South African-type AC power cords with C5 connector | F73: $ 154.00 | G73: 1.08% | H73: $152.34
A74: Analog VoIP Gateway | B74: MediaPack 1xx | C74: MediaPack 11x Power Cords | D74: MP-CB-SW | E74: A kit of 25 Swiss-type AC power cords with C5 connector | F74: $ 154.00 | G74: 1.08% | H74: $152.34
A75: Analog VoIP Gateway | B75: MediaPack 1xx | C75: MediaPack 11x Power Cords | D75: MP-CB-IND | E75: A kit of 25 Indian-type AC power cords with C5 connector | F75: $ 154.00 | G75: 1.08% | H75: $152.34
A76: Analog VoIP Gateway | B76: MediaPack 1xx | C76: MediaPack 124 Power Cords | D76: MP124/CB-EU | E76: A kit of 25 Europe-type AC power cords | F76: $ 154.00 | G76: 1.08% | H76: $152.34
A77: Analog VoIP Gateway | B77: MediaPack 1xx | C77: MediaPack 124 Power Cords | D77: MP124/CB-IL | E77: A kit of 25 Israel-type AC power cords | F77: $ 154.00 | G77: 1.08% | H77: $152.34
A78: Analog VoIP Gateway | B78: MediaPack 1xx | C78: MediaPack 124 Power Cords | D78: MP124/CB-CH | E78: A kit of 25 Chinese-type AC power cords | F78: $ 154.00 | G78: 1.08% | H78: $152.34
A79: Analog VoIP Gateway | B79: MediaPack 1xx | C79: MediaPack 124 Power Cords | D79: MP124/CB-UK | E79: A kit of 25 British-type AC power cords | F79: $ 154.00 | G79: 1.08% | H79: $152.34
A80: Analog VoIP Gateway | B80: MediaPack 1xx | C80: MediaPack 124 Power Cords | D80: MP124/CB-AR | E80: A kit of 25 Argentinean-type AC power cords | F80: $ 154.00 | G80: 1.08% | H80: $152.34
A81: Analog VoIP Gateway | B81: MediaPack 1xx | C81: MediaPack 124 Power Cords | D81: MP124/CB-AU | E81: A kit of 25 Australian-type AC power cords | F81: $ 154.00 | G81: 1.08% | H81: $152.34
A82: Analog VoIP Gateway | B82: MediaPack 1xx | C82: MediaPack 124 Power Cords | D82: MP124/CB-TH | E82: A kit of 25 Thailand-type AC power cords | F82: $ 154.00 | G82: 1.08% | H82: $152.34
A83: Analog VoIP Gateway | B83: MediaPack 1xx | C83: MediaPack 124 Power Cords | D83: MP124/CB-US | E83: A kit of 25 US-type AC power cords | F83: $ 154.00 | G83: 1.08% | H83: $152.34
A84: Analog VoIP Gateway | B84: MediaPack 1xx | C84: MediaPack 124 Power Cords | D84: MP124/CB-SW | E84: A kit of 25 Swiss-type AC power cords | F84: $ 154.00 | G84: 1.08% | H84: $152.34
A85: Analog VoIP Gateway | B85: MediaPack 1xx | C85: MediaPack 124 Power Cords | D85: MP124/CB-BR | E85: A kit of 25 Brazilian-type AC power cords | F85: $ 154.00 | G85: 1.08% | H85: $152.34
A86: Analog VoIP Gateway | B86: MediaPack 1xx | C86: MediaPack 124 Power Cords | D86: MP124/CB-SA | E86: A kit of 25 South Africa-type AC power cords | F86: $ 154.00 | G86: 1.08% | H86: $152.34
A87: Analog VoIP Gateway | B87: MediaPack 1xx | C87: MediaPack 124 Power Cords | D87: MP124/CB-JA | E87: A kit of 25 South Japan-type AC power cords | F87: $ 154.00 | G87: 1.08% | H87: $152.34
A88: Analog VoIP Gateway | B88: MediaPack 1xx | C88: MediaPack 124 Power Cords | D88: MP124/CB-IND | E88: A kit of 25 Indian-type AC power cords | F88: $ 154.00 | G88: 1.08% | H88: $152.34
A89: Analog VoIP Gateway | B89: MediaPack 1288 | C89: MediaPack 1288 Hardware Configurations | D89: MP1288-288S-2AC | E89: MediaPack 1288 high-density analog VoIP gateway with 288 FXS ports | F89: $ 19,051.00 | G89: 1.08% | H89: $18,845.25
A90: Analog VoIP Gateway | B90: MediaPack 1288 | C90: MediaPack 1288 Hardware Configurations | D90: MP1288-216S-2AC | E90: MediaPack 1288 high-density analog VoIP gateway with 216 FXS ports | F90: $ 15,722.00 | G90: 1.08% | H90: $15,552.20
A91: Analog VoIP Gateway | B91: MediaPack 1288 | C91: MediaPack 1288 Hardware Configurations | D91: MP1288-144S-2AC | E91: MediaPack 1288 high-density analog VoIP gateway with 144 FXS ports | F91: $ 11,466.00 | G91: 1.08% | H91: $11,342.17
A92: Analog VoIP Gateway | B92: MediaPack 1288 | C92: MediaPack 1288 Hardware Configurations | D92: MP1288-72S-2AC | E92: MediaPack 1288 high-density analog VoIP gateway with 72 FXS ports | F92: $ 7,084.00 | G92: 1.08% | H92: $7,007.49
A93: Analog VoIP Gateway | B93: MediaPack 1288 | C93: MediaPack 1288 Hardware Configurations | D93: MP1288-288S-2DC | E93: MediaPack 1288 high-density analog VoIP gateway with 288 FXS ports, DC power | F93: $ 20,154.00 | G93: 1.08% | H93: $19,936.34
A94: Analog VoIP Gateway | B94: MediaPack 1288 | C94: MediaPack 1288 Hardware Configurations | D94: MP1288-216S-2DC | E94: MediaPack 1288 high-density analog VoIP gateway with 216 FXS ports, DC power | F94: $ 16,824.00 | G94: 1.08% | H94: $16,642.30
A95: Analog VoIP Gateway | B95: MediaPack 1288 | C95: MediaPack 1288 Hardware Configurations | D95: MP1288-144S-2DC | E95: MediaPack 1288 high-density analog VoIP gateway with 144 FXS ports, DC power | F95: $ 12,569.00 | G95: 1.08% | H95: $12,433.25
A96: Analog VoIP Gateway | B96: MediaPack 1288 | C96: MediaPack 1288 Hardware Configurations | D96: MP1288-72S-2DC | E96: MediaPack 1288 high-density analog VoIP gateway with 72 FXS ports, DC power | F96: $ 8,186.00 | G96: 1.08% | H96: $8,097.59
A97: Analog VoIP Gateway | B97: MediaPack 1288 | C97: MediaPack 1288 Hardware Configurations with DHCP enabled by default | D97: MP1288-288S-2AC/D | E97: MediaPack 1288 high-density analog VoIP gateway with 288 FXS ports, DHCP enabled by default. | F97: $ 19,051.00 | G97: 1.08% | H97: $18,845.25
A98: Analog VoIP Gateway | B98: MediaPack 1288 | C98: MediaPack 1288 Hardware Configurations with DHCP enabled by default | D98: MP1288-216S-2AC/D | E98: MediaPack 1288 high-density analog VoIP gateway with 216 FXS ports, DHCP enabled by default. | F98: $ 15,722.00 | G98: 1.08% | H98: $15,552.20
A99: Analog VoIP Gateway | B99: MediaPack 1288 | C99: MediaPack 1288 Hardware Configurations with DHCP enabled by default | D99: MP1288-144S-2AC/D | E99: MediaPack 1288 high-density analog VoIP gateway with 144 FXS ports, DHCP enabled by default. | F99: $ 11,466.00 | G99: 1.08% | H99: $11,342.17
A100: Analog VoIP Gateway | B100: MediaPack 1288 | C100: MediaPack 1288 Hardware Configurations with DHCP enabled by default | D100: MP1288-72S-2AC/D | E100: MediaPack 1288 high-density analog VoIP gateway with 72 FXS ports, DHCP enabled by default. | F100: $ 7,084.00 | G100: 1.08% | H100: $7,007.49
A101: Analog VoIP Gateway | B101: MediaPack 1288 | C101: TAA Compliant | D101: MP1288-288S-2AC-TAA | E101: TAA Compliant, MediaPack 1288 high-density analog VoIP gateway with 288 FXS ports | F101: $ 20,822.00 | G101: 1.08% | H101: $20,597.12
A102: Analog VoIP Gateway | B102: MediaPack 1288 | C102: TAA Compliant | D102: MP1288-144S-2AC-TAA | E102: TAA Compliant, MediaPack 1288 high-density analog VoIP gateway with 144 FXS ports | F102: $ 13,237.00 | G102: 1.08% | H102: $13,094.04
A103: Analog VoIP Gateway | B103: MediaPack 1288 | C103: TAA Compliant | D103: MP1288-72S-2AC-TAA | E103: TAA Compliant, MediaPack 1288 high-density analog VoIP gateway with 72 FXS ports | F103: $ 8,855.00 | G103: 1.08% | H103: $8,759.37
A104: Analog VoIP Gateway | B104: MediaPack 1288 | C104: TAA Compliant | D104: MP1288-288S-2DC-TAA | E104: TAA Compliant, MediaPack 1288 high-density analog VoIP gateway with 288 FXS ports. DC power. | F104: $ 21,924.00 | G104: 1.08% | H104: $21,687.22
A105: Analog VoIP Gateway | B105: MediaPack 1288 | C105: TAA Compliant | D105: MP1288-144S-2DC-TAA | E105: TAA Compliant, MediaPack 1288 high-density analog VoIP gateway with 144 FXS ports. DC power. | F105: $ 14,339.00 | G105: 1.08% | H105: $14,184.14
A106: Analog VoIP Gateway | B106: MediaPack 1288 | C106: TAA Compliant | D106: MP1288-72S-2DC-TAA | E106: TAA Compliant, MediaPack 1288 high-density analog VoIP gateway with 72 FXS ports. DC power. | F106: $ 9,957.00 | G106: 1.08% | H106: $9,849.46
A107: Analog VoIP Gateway | B107: MediaPack 1288 | C107: TAA Compliant | D107: FRU-MP1288-BLD-TAA | E107: TAA Compliant, MediaPack 1288 analog blade supporting 72 FXS ports | F107: $ 6,339.00 | G107: 1.08% | H107: $6,270.54
A108: Analog VoIP Gateway | B108: MediaPack 1288 | C108: TAA Compliant | D108: FRU-MP1288-CH-AC-TAA | E108: TAA Compliant, MediaPack 1288 spare chassis with two AC power supplies. | F108: $ 6,201.00 | G108: 1.08% | H108: $6,134.03
A109: Analog VoIP Gateway | B109: MediaPack 1288 | C109: TAA Compliant | D109: MP1288-2PS-AC-TAA | E109: TAA Compliant, Two AC power supply units for MediaPack 1288 | F109: $ 2,397.00 | G109: 1.08% | H109: $2,371.11
A110: Analog VoIP Gateway | B110: MediaPack 1288 | C110: TAA Compliant | D110: MP1288-AIR-F-KIT-TAA | E110: TAA Compliant, 5 air filter units | F110: $ 344.00 | G110: 1.08% | H110: $340.28
A111: Analog VoIP Gateway | B111: MediaPack 1288 | C111: TAA Compliant | D111: MP1288-FAN-TRAY-TAA | E111: TAA Compliant, Fan tray module | F111: $ 551.00 | G111: 1.08% | H111: $545.05
A112: Analog VoIP Gateway | B112: MediaPack 1288 | C112: One Voice Operations Center Software Options | D112: SW/OVOC/MP1288 | E112: OVOC license | F112: $ 894.00 | G112: 1.08% | H112: $884.34
A113: Analog VoIP Gateway | B113: MediaPack 1288 | C113: Cloud Resilience Package (CRP) Software Options | D113: SW/MP1288/CRP/50 | E113: 50 CRP users | F113: $ 368.00 | G113: 1.08% | H113: $364.03
A114: Analog VoIP Gateway | B114: MediaPack 1288 | C114: Cloud Resilience Package (CRP) Software Options | D114: SW/MP1288/CRP/100 | E114: 100 CRP users | F114: $ 525.00 | G114: 1.08% | H114: $519.33
A115: Analog VoIP Gateway | B115: MediaPack 1288 | C115: Cloud Resilience Package (CRP) Software Options | D115: SW/MP1288/CRP/250 | E115: 250 CRP users | F115: $ 1,050.00 | G115: 1.08% | H115: $1,038.66
A116: Analog VoIP Gateway | B116: MediaPack 1288 | C116: Analog Device for Teams / SFB Software Options | D116: SW/MP1288/LAD/5 | E116: 5 LAD sessions | F116: $ 210.00 | G116: 1.08% | H116: $207.73
A117: Analog VoIP Gateway | B117: MediaPack 1288 | C117: Analog Device for Teams / SFB Software Options | D117: SW/MP1288/LAD/10 | E117: 10 LAD sessions | F117: $ 420.00 | G117: 1.08% | H117: $415.46
A118: Analog VoIP Gateway | B118: MediaPack 1288 | C118: Analog Device for Teams / SFB Software Options | D118: SW/MP1288/LAD/20 | E118: 20 LAD sessions | F118: $ 735.00 | G118: 1.08% | H118: $727.06
A119: Analog VoIP Gateway | B119: MediaPack 1288 | C119: Analog Device for Teams / SFB Software Options | D119: SW/MP1288/LAD/50 | E119: 50 LAD sessions | F119: $ 1,680.00 | G119: 1.08% | H119: $1,661.86
A120: Analog VoIP Gateway | B120: MediaPack 1288 | C120: Other Software Options | D120: SW/MP1288/HTTP-RP | E120: HTTP Proxy license | F120: $ 420.00 | G120: 1.08% | H120: $415.46
A121: Analog VoIP Gateway | B121: MediaPack 1288 | C121: MediaPack 1288 Accessories | D121: FRU-MP1288-FXS-BLD | E121: MediaPack 1288 analog blade supporting 72 FXS ports | F121: $ 5,072.00 | G121: 1.08% | H121: $5,017.22
A122: Analog VoIP Gateway | B122: MediaPack 1288 | C122: MediaPack 1288 Accessories | D122: FRU-MP1288-2PS-AC | E122: Two AC power supply units for MediaPack 1288 | F122: $ 1,918.00 | G122: 1.08% | H122: $1,897.29
A123: Analog VoIP Gateway | B123: MediaPack 1288 | C123: MediaPack 1288 Accessories | D123: MP1288-PS-DC | E123: DC power supply unit | F123: $ 1,290.00 | G123: 1.08% | H123: $1,276.07
A124: Analog VoIP Gateway | B124: MediaPack 1288 | C124: MediaPack 1288 Accessories | D124: MP1288-PATCH-PNL-KIT | E124: Three patch panels units | F124: $ 1,467.00 | G124: 1.08% | H124: $1,451.16
A125: Analog VoIP Gateway | B125: MediaPack 1288 | C125: MediaPack 1288 Accessories | D125: MP1288-CENTOL10 | E125: Three Centronics cables | F125: $ 662.00 | G125: 1.08% | H125: $654.85
A126: Analog VoIP Gateway | B126: MediaPack 1288 | C126: MediaPack 1288 Accessories | D126: FRU-MP1288-CHASI-AC | E126: MediaPack 1288 spare chassis with two AC power supplies. | F126: $ 4,961.00 | G126: 1.08% | H126: $4,907.42
A127: Analog VoIP Gateway | B127: MediaPack 1288 | C127: MediaPack 1288 Accessories | D127: FRU-MP1288-AIR-F-KIT | E127: 5 air filter units | F127: $ 276.00 | G127: 1.08% | H127: $273.02
A128: Analog VoIP Gateway | B128: MediaPack 1288 | C128: MediaPack 1288 Accessories | D128: FRU-MP1288-FAN-TRAY | E128: Fan tray module | F128: $ 441.00 | G128: 1.08% | H128: $436.24
A129: Analog VoIP Gateway | B129: MediaPack 1288 | C129: MediaPack 1288 Accessories | D129: FRU-MP1288-RACK-KIT | E129: 5 kits of front-mounting brackets | F129: $ 276.00 | G129: 1.08% | H129: $273.02
A130: Analog VoIP Gateway | B130: MediaPack 1288 | C130: MediaPack 1288 Accessories | D130: FRU-MP1288-COVER-KIT | E130: Metal covers for a 50-pin telco connector | F130: $ 77.70 | G130: 1.08% | H130: $76.86
A131: Analog VoIP Gateway | B131: MediaPack 1288 | C131: MediaPack 1288 Power Cords | D131: MP1288/CB-EU | E131: Two European-type AC power cords | F131: $ 44.10 | G131: 1.08% | H131: =F131*(1-G131) -> $43.62
A132: Analog VoIP Gateway | B132: MediaPack 1288 | C132: MediaPack 1288 Power Cords | D132: MP1288/CB-UK | E132: Two British-type AC power cords | F132: $ 44.10 | G132: 1.08% | H132: $43.62
A133: Analog VoIP Gateway | B133: MediaPack 1288 | C133: MediaPack 1288 Power Cords | D133: MP1288/CB-AU | E133: Two Australian-type AC power cords | F133: $ 44.10 | G133: 1.08% | H133: $43.62
A134: Analog VoIP Gateway | B134: MediaPack 1288 | C134: MediaPack 1288 Power Cords | D134: MP1288/CB-US | E134: Two US-type AC power cords | F134: $ 44.10 | G134: 1.08% | H134: $43.62
A135: Analog VoIP Gateway | B135: MediaPack 2xx | C135: MediaPack 20x Voice Gateway | D135: MP202B/2S/SIP | E135: MediaPack 202 VoIP Telephone Adapter with 2 FXS ports | F135: $ 156.00 | G135: 1.08% | H135: $154.32
A136: Analog VoIP Gateway | B136: MediaPack 2xx | C136: MediaPack 20x Voice Gateway | D136: MP204B/4S/SIP | E136: MediaPack 204 VoIP Telephone Adapter with 4 FXS ports | F136: $ 284.00 | G136: 1.08% | H136: $280.93
A137: Analog VoIP Gateway | B137: MediaPack 2xx | C137: MediaPack 20x Voice Gateway | D137: MP202B/2S/SIP/CER | E137: MediaPack 202 VoIP Analog Telephone Adapter with 2 FXS ports. Fits to BroadSoft BroadCloud environment. | F137: $ 156.00 | G137: 1.08% | H137: $154.32
A138: Analog VoIP Gateway | B138: MediaPack 2xx | C138: MediaPack 20x Voice Gateway | D138: MP202B/2S/SIP/V6 | E138: MediaPack 202 VoIP Telephone Adapter with 2 FXS ports support IPV6 | F138: $ 212.00 | G138: 1.08% | H138: $209.71
A139: Analog VoIP Gateway | B139: MediaPack 2xx | C139: MediaPack 20x Voice Gateway | D139: MP204B/4S/SIP/V6 | E139: MediaPack 204 VoIP Telephone Adapter with 4 FXS ports support IPV6 | F139: $ 284.00 | G139: 1.08% | H139: $280.93
A140: Analog VoIP Gateway | B140: MediaPack 2xx | C140: MediaPack 20x Power Supply Kits | D140: MP20X-1A-PS-US-10U | E140: 10 units of 1 A US-type power supply for MP-202D/B | F140: $ 122.00 | G140: 1.08% | H140: $120.68
A141: Analog VoIP Gateway | B141: MediaPack 2xx | C141: MediaPack 20x Power Supply Kits | D141: MP20X-1A-PS-EU-10U | E141: 10 units of 1 A EU-type power supply for MP-202D/B | F141: $ 122.00 | G141: 1.08% | H141: $120.68
A142: Analog VoIP Gateway | B142: MediaPack 2xx | C142: MediaPack 20x Power Supply Kits | D142: MP20X-1A-PS-UK-10U | E142: 10 units of 1A UK-type power supply for MP-202D/B | F142: $ 122.00 | G142: 1.08% | H142: $120.68
A143: Analog VoIP Gateway | B143: MediaPack 2xx | C143: MediaPack 20x Power Supply Kits | D143: MP20X-1A-PS-AUS-10U | E143: 10 units of 1 A Australian-type power supply for MP-202D/B | F143: $ 122.00 | G143: 1.08% | H143: $120.68
A144: Analog VoIP Gateway | B144: MediaPack 2xx | C144: MediaPack 20x Power Supply Kits | D144: MP20X-2A-PS-US-10U | E144: 10 units of 2 A US-type power supply for MP-204D/B and all MP20xR models | F144: $ 166.00 | G144: 1.08% | H144: $164.21
A145: Analog VoIP Gateway | B145: MediaPack 2xx | C145: MediaPack 20x Power Supply Kits | D145: MP20X-2A-PS-EU-10U | E145: 10 units of 2 A EU-type power supply for MP-204D/B and all MP20xR models | F145: $ 166.00 | G145: 1.08% | H145: $164.21
A146: Analog VoIP Gateway | B146: MediaPack 2xx | C146: MediaPack 20x Power Supply Kits | D146: MP20X-2A-PS-UK-10U | E146: 10 units of 2 A UK-type power supply for MP-204D/B and all MP20xR models | F146: $ 166.00 | G146: 1.08% | H146: $164.21
A147: Analog VoIP Gateway | B147: MediaPack 2xx | C147: MediaPack 20x Power Supply Kits | D147: MP20X-2A-PS-AUS-10U | E147: 10 units of 2 A Australian-type power supply for MP-204D/B and all MP20xR models | F147: $ 166.00 | G147: 1.08% | H147: $164.21
A148: Analog VoIP Gateway | B148: MediaPack 2xx | C148: One Voice Operations Center Software Options | D148: SW/OVOC/MP20X | E148: OVOC license | F148: $ 16.60 | G148: 1.08% | H148: $16.42
A149: Unified CPE | B149: Mediant 500Li | C149: Mediant 500Li Models (router only) | D149: M500L-I-GECS | E149: Mediant 500L with 1000Base-T WAN and dual-mode SFP WAN Interfaces. | F149: $ 463.00 | G149: 1.08% | H149: $458.00
A150: Unified CPE | B150: Mediant 500Li | C150: Mediant 500Li Models (router only) | D150: M500L-I-AGECS | E150: Mediant 500L with ADSL/VDSL Vectoring plus, 1000Base-T WAN and dual-mode SFP WAN Interfaces. | F150: $ 628.00 | G150: 1.08% | H150: $621.22
A151: Unified CPE | B151: Mediant 500Li | C151: Mediant 500Li Models (router only) | D151: M500L-I-AGECSLE | E151: Mediant 500L with ADSL/VDSL Vectoring plus, 1000Base-T WAN and dual-mode SFP WAN Interfaces and internal 3G/4G CAT4 Modem for Europe | F151: $ 904.00 | G151: 1.08% | H151: $894.24
A152: Unified CPE | B152: Mediant 500Li | C152: Mediant 500Li Models (router only) | D152: M500L-IW-AGECSLE | E152: Mediant 500L with ADSL/VDSL Vectoring plus, 1000Base-T WAN and dual-mode SFP WAN Interfaces, WIFI 802.11n and internal 3G/4G CAT4 Modem for Europe | F152: $ 1,069.00 | G152: 1.08% | H152: $1,057.45
A153: Unified CPE | B153: Mediant 500Li | C153: Mediant 500Li PSTN Models | D153: M500L-I2B-AGECS | E153: Mediant 500L with 2 BRI Voice Interfaces and ADSL/VDSL Vectoring plus, 1000Base-T WAN and dual-mode SFP WAN Interfaces, with 5PPM clock | F153: $ 849.00 | G153: 1.08% | H153: $839.83
A154: Unified CPE | B154: Mediant 500Li | C154: Mediant 500Li PSTN Models | D154: M500L-I4B-AGECS | E154: Mediant 500L with 4 BRI Voice Interfaces and ADSL/VDSL Vectoring plus, 1000Base-T WAN and dual-mode SFP WAN Interfaces, with 5PPM clock | F154: $ 1,069.00 | G154: 1.08% | H154: $1,057.45
A155: Unified CPE | B155: Mediant 500Li | C155: Mediant 500Li PSTN Models | D155: M500L-I2B | E155: Mediant 500L with 2 BRI Voice Interfaces upgradable to 4 BRI and 1000Base-T WAN s, with 5PPM clock | F155: $ 695.00 | G155: 1.08% | H155: $687.49
A156: Unified CPE | B156: Mediant 500Li | C156: Mediant 500Li PSTN Models | D156: M500L-I4B | E156: Mediant 500L with 4 BRI Voice Interfaces and 1000Base-T WAN WAN Interface, with 5PPM clock | F156: $ 937.00 | G156: 1.08% | H156: $926.88
A157: Unified CPE | B157: Mediant 500Li | C157: Mediant 500Li PSTN Models | D157: M500L-I4BW-AGECS | E157: Mediant 500L with 4 BRI Voice Interfaces and ADSL/VDSL Vectoring plus, 1000Base-T WAN and dual-mode SFP WAN Interfaces and WIFI 802.11n | F157: $ 1,235.00 | G157: 1.08% | H157: $1,221.66
A158: Unified CPE | B158: Mediant 500Li | C158: Mediant 500Li PSTN Models | D158: M500L-I2B2S-AGECS | E158: Mediant 500L with 2 FXS, 2 BRI Voice Interfaces and ADSL/VDSL Vectoring plus, 1000Base-T WAN and dual-mode SFP WAN Interfaces, with 5PPM clock | F158: $ 1,069.00 | G158: 1.08% | H158: $1,057.45
A159: Unified CPE | B159: Mediant 500Li | C159: Mediant 500Li PSTN Models | D159: M500L-I8S-AGECS | E159: Mediant 500L with 8 FXS Voice Interfaces and ADSL/VDSL Vectoring plus, 1000Base-T WAN and dual-mode SFP WAN Interfaces. | F159: $ 1,240.00 | G159: 1.08% | H159: $1,226.61
A160: Unified CPE | B160: Mediant 500Li | C160: Mediant 500Li PSTN Models | D160: M500L-I4S-AGECSLA | E160: Mediant 500L with 4 FXS Voice Interfaces and ADSL/VDSL Vectoring plus, 1000Base-T WAN, dual-mode SFP WAN Interfaces and internal 3G/4G CAT4 modem for America | F160: $ 1,185.00 | G160: 1.08% | H160: $1,172.20
A161: Unified CPE | B161: Mediant 500Li | C161: Mediant 500Li PSTN Models | D161: M500L-I4S-AGECSLAF | E161: Mediant 500L with 4 FXS Voice Interfaces and ADSL/VDSL Vectoring plus, 1000Base-T WAN, dual-mode SFP WAN Interfaces and internal 3G/4G CAT4 modem for America includes Firstnet band | F161: $ 1,350.00 | G161: 1.08% | H161: $1,335.42
A162: Unified CPE | B162: Mediant 500Li | C162: Mediant 500Li PSTN Models | D162: M500L-I4S-AGECSLJ | E162: Mediant 500L with 4 FXS Voice Interfaces and ADSL/VDSL Vectoring plus, 1000Base-T WAN, dual-mode SFP WAN Interfaces and internal 3G/4G CAT4 modem for Japan | F162: $ 1,185.00 | G162: 1.08% | H162: $1,172.20
A163: Unified CPE | B163: Mediant 500Li | C163: Mediant 500Li PSTN Models | D163: M500L-I8S-AGECSLA | E163: Mediant 500L with 8 FXS Voice Interfaces and ADSL/VDSL Vectoring plus, 1000Base-T WAN, dual-mode SFP WAN Interfaces and internal 3G/4G CAT4 modem for America | F163: $ 1,515.00 | G163: 1.08% | H163: $1,498.64
A164: Unified CPE | B164: Mediant 500Li | C164: Mediant 500Li PSTN Models | D164: M500L-I2S2BW-AGECSLA | E164: Mediant 500L with 2 FXS, 2 BRI Voice Interfaces and ADSL/VDSL Vectoring plus, 1000Base-T WAN and dual-mode SFP WAN Interfaces, internal 3G/4G CAT4 Modem for America and 802.11b/g/n (Wi-Fi). | F164: $ 1,455.00 | G164: 1.08% | H164: $1,439.29
A165: Unified CPE | B165: Mediant 500Li | C165: Mediant 500Li PSTN Models | D165: M500L-I2S2BW-AGECSLU | E165: Mediant 500L with 2 FXS, 2 BRI Voice Interfaces and ADSL/VDSL Vectoring plus, 1000Base-T WAN and dual-mode SFP WAN Interfaces, internal 3G/4G CAT4 Modem for ANZ and Latin America and 802.11b/g/n (Wi-Fi). | F165: $ 1,455.00 | G165: 1.08% | H165: $1,439.29
A166: Unified CPE | B166: Mediant 500Li | C166: Mediant 500Li PSTN Models | D166: M500L-I2S2BW-AGECSLE | E166: Mediant 500L with 2 FXS, 2 BRI Voice Interfaces and ADSL/VDSL Vectoring plus, 1000Base-T WAN and dual-mode SFP WAN Interfaces, internal 3G/4G CAT4 Modem for Europe and 802.11b/g/n (Wi-Fi). | F166: $ 1,455.00 | G166: 1.08% | H166: $1,439.29
A167: Unified CPE | B167: Mediant 500Li | C167: TAA Compliant | D167: M500L-I4S-LAF-TAA | E167: Mediant 500L with 4 FXS Voice Interfaces and ADSL/VDSL Vectoring plus, 1000Base-T WAN, dual-mode SFP WAN Interfaces and internal 3G/4G CAT4 modem for America includes Firstnet band, TAA compliant | F167: $ 1,687.00 | G167: 1.08% | H167: $1,668.78
A168: Unified CPE | B168: Mediant 500Li | C168: Mediant 5G-Extended access | D168: M5G-EA-EU | E168: Mediant 5G (M5G-EA) Extended Access outdoor IP65 5G module | F168: $ 1,700.00 | G168: 1.08% | H168: $1,681.64
A169: Unified CPE | B169: Mediant 500Li | C169: Mediant 5G-Extended access | D169: M5G-EA-G | E169: Mediant 5G (M5G-EA) Extended Access outdoor IP65 5G module Global coverage | F169: $ 1,500.00 | G169: 1.08% | H169: $1,483.80
A170: Unified CPE | B170: Mediant 500Li | C170: Mediant 5G-Extended access | D170: FRU/M5G/POE-INJ | E170: POE Injector for the M5G Module | F170: $ 120.00 | G170: 1.08% | H170: $118.70
A171: Unified CPE | B171: Mediant 500Li | C171: Mediant 5G Voice Resiliency Package | D171: M5G-VRP | E171: Site Resiliency package including Mediant 500Li, M5G-EA and PoE injector | F171: $ 1,700.00 | G171: 1.08% | H171: $1,681.64
A172: Unified CPE | B172: Mediant 500Li | C172: Mediant 500Li Software Options for Data Networking | D172: SW/M500/AP500 | E172: Mediant 500Li Advanced Performance Software Module for 500Mbps throughput | F172: $ 600.00 | G172: 1.08% | H172: $593.52
A173: Unified CPE | B173: Mediant 500Li | C173: Mediant 500Li Software Options for Data Networking | D173: SW/M500/AP1000 | E173: Mediant 500Li Advanced Performance Software Module for 1Gbps throughput | F173: $ 1,150.00 | G173: 1.08% | H173: $1,137.58
A174: Unified CPE | B174: Mediant 500Li | C174: Mediant 500Li Software Options for Data Networking | D174: SW/M500/AR | E174: Mediant 500Li Advanced Routing Software Module | F174: $ 210.00 | G174: 1.08% | H174: $207.73
A175: Unified CPE | B175: Mediant 500Li | C175: Mediant 500Li Software Options for Data Networking | D175: SW/M500/AS | E175: Mediant 500Li Advanced Data Security and increased VPN throughput Software Module up to 500Mbps includes Advanced performance AP1000 | F175: $ 1,500.00 | G175: 1.08% | H175: $1,483.80
A176: Hybrid SBC and Media Gateway | B176: Mediant 500 and Mediant 500L | C176: Mediant 500 and Mediant 500L E-SBC | D176: M500L-ESBC | E176: Mediant 500L base SBC | F176: $ 419.00 | G176: 1.08% | H176: $414.47
A177: Hybrid SBC and Media Gateway | B177: Mediant 500 and Mediant 500L | C177: Mediant 500 and Mediant 500L E-SBC | D177: M500-ESBC | E177: Mediant 500 base SBC | F177: $ 606.00 | G177: 1.08% | H177: $599.46
A178: Hybrid SBC and Media Gateway | B178: Mediant 500 and Mediant 500L | C178: Mediant 500 and Mediant 500L VoIP Gateway | D178: M500-V-1ET | E178: Mediant 500 with a single E1/T1 interface | F178: $ 2,150.00 | G178: 1.08% | H178: $2,126.78
A179: Hybrid SBC and Media Gateway | B179: Mediant 500 and Mediant 500L | C179: Mediant 500 and Mediant 500L VoIP Gateway | D179: M500L-V-2B | E179: Mediant 500L with 2 BRI interfaces | F179: $ 695.00 | G179: 1.08% | H179: $687.49
A180: Hybrid SBC and Media Gateway | B180: Mediant 500 and Mediant 500L | C180: Mediant 500 and Mediant 500L VoIP Gateway | D180: M500L-V-4B | E180: Mediant 500L with 4 BRI interfaces | F180: $ 937.00 | G180: 1.08% | H180: $926.88
A181: Hybrid SBC and Media Gateway | B181: Mediant 500 and Mediant 500L | C181: Mediant 500 and Mediant 500L VoIP Gateway | D181: M500L-V-4S | E181: Mediant 500L with 4 FXS interfaces | F181: $ 772.00 | G181: 1.08% | H181: $763.66
A182: Hybrid SBC and Media Gateway | B182: Mediant 500 and Mediant 500L | C182: Mediant 500 and Mediant 500L VoIP Gateway | D182: M500L-V-4O | E182: Mediant 500L with 4 FXO interfaces | F182: $ 772.00 | G182: 1.08% | H182: $763.66
A183: Hybrid SBC and Media Gateway | B183: Mediant 500 and Mediant 500L | C183: Mediant 500 and Mediant 500L VoIP Gateway | D183: M500L-V-2S2O | E183: Mediant 500L with 2 FXS and 2 FXO interfaces | F183: $ 772.00 | G183: 1.08% | H183: $763.66
A184: Hybrid SBC and Media Gateway | B184: Mediant 500 and Mediant 500L | C184: Mediant 500 and Mediant 500L VoIP Gateway | D184: M500L-V-4S4O | E184: Mediant 500L with 4 FXS and 4 FXO interfaces | F184: $ 1,103.00 | G184: 1.08% | H184: $1,091.09
A185: Hybrid SBC and Media Gateway | B185: Mediant 500 and Mediant 500L | C185: One Voice Operations Center Software Options | D185: SW/OVOC/M500 | E185: OVOC license | F185: $ 132.00 | G185: 1.08% | H185: $130.57
A186: Hybrid SBC and Media Gateway | B186: Mediant 500 and Mediant 500L | C186: Cloud Resilience Package Software Options | D186: SW/M500/CRP/5 | E186: 5 CRP users | F186: $ 94.50 | G186: 1.08% | H186: $93.48
A187: Hybrid SBC and Media Gateway | B187: Mediant 500 and Mediant 500L | C187: Cloud Resilience Package Software Options | D187: SW/M500/CRP/25 | E187: 25 CRP users | F187: $ 284.00 | G187: 1.08% | H187: $280.93
A188: Hybrid SBC and Media Gateway | B188: Mediant 500 and Mediant 500L | C188: Cloud Resilience Package Software Options | D188: SW/M500/CRP/50 | E188: 50 CRP users | F188: $ 368.00 | G188: 1.08% | H188: $364.03
A189: Hybrid SBC and Media Gateway | B189: Mediant 500 and Mediant 500L | C189: Cloud Resilience Package Software Options | D189: SW/M500/CRP/100 | E189: 100 CRP users | F189: $ 525.00 | G189: 1.08% | H189: $519.33
A190: Hybrid SBC and Media Gateway | B190: Mediant 500 and Mediant 500L | C190: Cloud Resilience Package Software Options | D190: SW/M500/CRP/250 | E190: 250 CRP users | F190: $ 1,050.00 | G190: 1.08% | H190: $1,038.66
A191: Hybrid SBC and Media Gateway | B191: Mediant 500 and Mediant 500L | C191: Cloud Resilience Package Software Options | D191: SW/M500/CRP/500 | E191: 500 CRP users | F191: $ 1,575.00 | G191: 1.08% | H191: $1,557.99
A192: Hybrid SBC and Media Gateway | B192: Mediant 500 and Mediant 500L | C192: Other Software Options | D192: SW/M500/UP-2S2O | E192: Upgrade Mediant 500L with 2 FXS and 2 FXO to 4FXS and 4 FXO. | F192: $ 473.00 | G192: 1.08% | H192: $467.89
A193: Hybrid SBC and Media Gateway | B193: Mediant 500 and Mediant 500L | C193: Other Software Options | D193: SW/M500/ELIN | E193: ELIN gateway license | F193: $ 525.00 | G193: 1.08% | H193: $519.33
A194: Hybrid SBC and Media Gateway | B194: Mediant 500 and Mediant 500L | C194: Other Software Options | D194: SW/M500/TESTCALL/1 | E194: Test call single session | F194: $ 15.80 | G194: 1.08% | H194: $15.63
A195: Hybrid SBC and Media Gateway | B195: Mediant 500 and Mediant 500L | C195: Other Software Options | D195: SW/M500/MSFT | E195: General Microsoft (MSFT) and Teams licenses | F195: $ 1,155.00 | G195: 1.08% | H195: =F195*(1-G195) -> $1,142.53
A196: Hybrid SBC and Media Gateway | B196: Mediant 500 and Mediant 500L | C196: Other Software Options | D196: SW/M500/TEAMS-UP | E196: Microsoft TEAMS-upgrade license | F196: $ 525.00 | G196: 1.08% | H196: $519.33
A197: Hybrid SBC and Media Gateway | B197: Mediant 500 and Mediant 500L | C197: Other Software Options | D197: SW/M500/HTTP-RP | E197: HTTP Proxy license | F197: $ 315.00 | G197: 1.08% | H197: $311.60
A198: Hybrid SBC and Media Gateway | B198: Mediant 500 and Mediant 500L | C198: Other Software Options | D198: SW/M500/GW2SBC | E198: Gateway to SBC license | F198: $ 525.00 | G198: 1.08% | H198: $519.33
A199: Hybrid SBC and Media Gateway | B199: Mediant 500 and Mediant 500L | C199: Other Software Options | D199: SW/M500L/GW2SBC | E199: Gateway to SBC license | F199: $ 210.00 | G199: 1.08% | H199: $207.73
A200: Hybrid SBC and Media Gateway | B200: Mediant 500 and Mediant 500L | C200: Mediant 500 Accessories | D200: M500RMK | E200: 10 kits of front-mounting brackets | F200: $ 112.00 | G200: 1.08% | H200: $110.79
... 925 more rows

Sheet Aviatrix
A1: Aviatrix
A2: Solutions/Services | B2: SKU | C2: Description | D2: NASPO Price
A3: VPC-to-VPC IPSec Tunnel Connections | B3: VPC-to-VPC IPSec Tunnel Connections | C3: per VPC to VPC tunnel connection | D3: $0.227/hr
A4: User or Client SSL VPN Connections | B4: User or Client SSL VPN Connections | C4: per user or client | D4: $0.04448/hr
A5: Gateways running Security Services | B5: Gateways running Security Services | C5: per gateway | D5: $0.227/hr
A6: VPC to Site or Multicloud IPSec Tunnel Connections | B6: VPC to Site or Multicloud IPSec Tunnel Connections | C6: per VPC to Site or VPC to Multicloud connection | D6: $0.6919/hr
A7: CostIQ | B7: CostIQ | C7: Gives customers the visibility and control required to accurately measure which accounts are using shared services, regardless of the shared service location. | D7: 20% of total monthly recurring software fees for any month enabled

Sheet Black Kite
A1: Black Kite
A3: Product Name | B3: SKU | C3: Price | D3: NASPO Price
A4: Premium Annual Continuous License | B4: BK-US-SC4-C | C4: $1,150.00 | D4: $1,137.58
A5: Continuous Annual License | B5: NS-US-SC2-C | C5: $950.00 | D5: $939.74
A6: Annual Support & Maintenance | B6: 3SUPPMA | C6: Included with Subscription | D6: Included with Subscription

Sheet BlindSpot
A1: Solutions/Services | B1: SKU | C1: Description | D1: Part # | E1: NASPO Price
A2: BlindSPOT Saas Solution - Annual Subscription | B2: BS_SUB_001 | C2: BlindSPOT is a information security, cloud based SaaS solution that simulates cyber attacks on client's production networks. This is an annual subscrition. | D2: BSP - 2001 | E2: $99,960.00
A3: BlindSPOT Saas Solution - 30-day Subscription | B3: BS_SUB_003 | C3: BlindSPOT is a information security, cloud based SaaS solution that simulates cyber attacks on client's production networks. This is a 30-day subscrition. | D3: BSP - 2002 | E3: $19,600.00
A4: BlindSPOT Additional Agents | B4: BS_AGE_001 | C4: BlindSPOT agents are used to deploy attack activity in client production network environments. These are annual licenses.
A6: Solutions/Services | B6: SKU | C6: Description | D6: Part #
A7: Professional Services | B7: BS_PLA_001 | C7: Professional services include additonal training, results scoring, remediation assistance, and more. | D7: BSP - 2003 | E7: $220.50

Sheet Calabrio
A1: Cloud Product | B1: SKU | C1: Name | D1: List Price | E1: Unit of Measure | F1: Discount
A2: Call Recording | B2: SW-CQMCR | C2: Call Recording | D2: $12.00 | E2: per named user | F2: 10% | G2: $10.80
A4: Screen Recording | B4: SW-CQMSCR | C4: QM Screen Recording Add-On | D4: $9.00 | E4: per named user | F4: 10% | G4: $8.10
A5: QM | B5: SW-CQMAQM-STND | C5: Advanced Quality Management (Standard) | D5: $36.00 | E5: per named user | F5: 10% | G5: $32.40
B8: SW-CQMAPR | C8: Calabrio Cloud: CR & QM: Automated Pause/Resume | D8: $0.00 | E8: per named user
B9: SW-QMSIPAC | C9: Calabrio ONE Cloud: Solution Integration Pack - QM - Data Integration Software Package | D9: $1.00 | E9: per named user | F9: 10% | G9: $0.90
B10: SW-CQMAQM-CORE | C10: Advanced Quality Management (Core) | D10: $32.00 | E10: per concurrent user | F10: 10% | G10: $28.80
A11: Live Screen Monitoring | B11: SW-CQMSCM | C11: QM Live Screen Monitoring | D11: $8.00 | E11: per named user | F11: 10% | G11: $7.20
A12: Analytics | B12: SW-CASANA | C12: Analytics Essentials | D12: $60.00 | E12: per named user | F12: 10% | G12: $54.00
B19: SW-CASANA-ENT | C19: Analytics Enterprise 200-Interactions | D19: $96.00 | E19: per named user | F19: 10% | G19: $86.40
B20: SW-CASANA-ENT400 | C20: Analytics Enterprise 400 inter | D20: $104.00 | E20: per named user | F20: 10% | G20: $93.60
B21: SW-CASANA-ENT800 | C21: Analytics Enterprise 800 inter | D21: $119.00 | E21: per named user | F21: 10% | G21: $107.10
B22: SW-CASANA-ENT1600 | C22: Analytics Enterprise 1600 inter | D22: $149.00 | E22: per named user | F22: 10% | G22: $134.10
B23: BF-TQM-INTER | C23: Trending Topics & Auto QM Interaction Fees | D23: $0.09 | E23: per interaction | F23: 10% | G23: $0.08
B24: SW-CASANA-ENT400UPG | C24: Analytics Enterprise 400-interactions Upgrade | D24: $44.00 | E24: per named user | F24: 10% | G24: $39.60
B25: SW-CASANA-ENT100BNDL | C25: Analytics Enterprise 100 Interaction Bundle Add-On | D25: $9.00 | E25: block of 100 interactions | F25: 10% | G25: $8.10
B26: SW-CASANA-ENTPLUS | C26: Analytics Enterprise Plus | D26: $0.29 | E26: per interaction | F26: 10% | G26: $0.26
B27: SW-CASANA-ESS-ENTPLUS-UPG | C27: Analytics Essentials to Enterprise Plus Upgrade | D27: $0.23 | E27: per interaction | F27: 10% | G27: $0.21
B28: SW-CASANA-ENT-ENTPLUS-UPG | C28: Analytics Enterprise to Enterprise Plus Upgrade | D28: $0.15 | E28: per interaction | F28: 10% | G28: $0.14
B29: SW-CASLNG | C29: Additional Language | D29: $416.67 | E29: per language | F29: 10% | G29: $375.00
B30: SW-CASDESA | C30: CAS Desktop Analytics | D30: $18.00 | E30: per named user | F30: 10% | G30: $16.20
A31: Performance Management | B31: SW-CQMPMC | C31: Calabrio ONE Performance Management - Add-on to QM or WFM products | D31: $29.00 | E31: per named user | F31: 10% | G31: $26.10
A32: Bot Analytics | B32: SW-BOTANA | C32: Bot Analytics | D32: $0.13 | E32: per interaction | F32: 10% | G32: $0.12
A33: WFM | B33: SW-CWFM-STND | C33: Calabrio Workforce Management (Standard) | D33: $42.00 | E33: per named user | F33: 10% | G33: $37.80
B69: SW-CWFMPR | C69: Payroll Integration | D69: $4.40 | E69: per named user | F69: 10% | G69: $3.96
B72: SW-CWFMSU | C72: Super Users | D72: $25.00 | E72: per superuser | F72: 10% | G72: $22.50
B74: SW-CWFMVAP | C74: Vacation Planner Pro | D74: $5.00 | E74: per named user | F74: 10% | G74: $4.50
B75: SW-CWFMCO | C75: Additional Connector | D75: $180.00 | E75: per connector | F75: 10% | G75: $162.00
B79: SW-CWFMCOG | C79: WFM Genesys Forecast connector | D79: $180.00 | E79: per connector | F79: 10% | G79: $162.00
B80: SW-CWFMCRA | C80: Custom Report Access | D80: $0.50 | E80: per named user | F80: 10% | G80: $0.45
B84: SW-CWFMDES | C84: Data Export Service | D84: $0.50 | E84: per named user | F84: 10% | G84: $0.45
B85: SW-TELDED | C85: Dedicated Instance | D85: $4.00 | E85: per named user | F85: 10% | G85: $3.60
B87: SW-TELINS | C87: Teleopti Insights | D87: $11.00 | E87: per named user | F87: 10% | G87: $9.90
B89: SW-CWFMCORE | C89: WFM Core | D89: $34.00 | E89: per concurrent user | F89: 10% | G89: $30.60
A90: Insights | B90: SW-INSAUTINCL | C90: Insights Author (Included Automatically) | D90: $0.00 | E90: per named user | F90: 10% | G90: $0.00
B91: SW-INSRDRINCL | C91: Insights Reader (Included Automatically) | D91: $0.00 | E91: per named user | F91: 10% | G91: $0.00
B92: SW-INSAUT | C92: Insights Author | D92: $50.00 | E92: per named user | F92: 10% | G92: $45.00
B93: SW-INSRDR | C93: Insight Readers | D93: $6.00 | E93: per named user | F93: 10% | G93: $5.40
B94: SW-INDATAEXP | C94: Insights Data Export Manager | D94: $5.00 | E94: per named user | F94: 10% | G94: $4.50
A95: Calabrio ONE Bundles | B95: SW-CALONE | C95: Calabrio ONE Bundle | D95: $125.00 | E95: per named user | F95: 10% | G95: $112.50
B98: SW-CALONE-ENT | C98: Calabrio ONE Enterprise Bundle 200 inter | D98: $148.00 | E98: per named user | F98: 10% | G98: $133.20
B99: SW-CALONE-ENT400 | C99: Calabrio ONE Enterprise Bundle 400 inter | D99: $156.00 | E99: per named user | F99: 10% | G99: $140.40
B100: SW-CALONE-ENT800 | C100: Calabrio ONE Enterprise Bundle 800 inter | D100: $171.00 | E100: per named user | F100: 10% | G100: $153.90
B101: SW-CALONE-ENT1600 | C101: Calabrio ONE Enterprise Bundle 1600 inter | D101: $201.00 | E101: per named user | F101: 10% | G101: $180.90
A102: Storage | B102: BF-STORAGE | C102: Storage | D102: $0.05 | E102: per GB | F102: 10% | G102: $0.05
A103: Labs | B103: SW-QMALAB | C103: AQM/CAS Lab | D103: $800.00 | E103: per tenant | F103: 10% | G103: $720.00
B105: SW-AQMLAB | C105: AQM Lab | D105: $650.00 | E105: per tenant | F105: 10% | G105: $585.00
B107: SW-CWFMLAB | C107: WFM Lab | D107: ####### | E107: per tenant | F107: 10% | G107: $900.00
B110: SW-ONELAB | C110: Full Suite (AQM/CAS/WFM) Lab | D110: ####### | E110: per tenant | F110: 10% | G110: $900.00
A112: Bulk Export | B112: SW-ONEARX | C112: Advanced Bulk Contact Export - User License | D112: $1.00 | E112: per named user | F112: 10% | G112: $0.90
B114: SW-CQMARX | C114: Advanced Bulk Contact Export | D114: $1.00 | E114: per named user | F114: 10% | G114: $0.90

Sheet Checkpoint
A1: OEM: CheckPoint
A2: SKU | B2: Description | C2: NASPO Price
A3: CPAC-1500/3600/3800-RM-DUAL | B3: Rack Mount shelf for Single/Dual for 1500/ 3600/ 3800 desktop appliances.The mount does not support Quantum Spark models with WiFi | C3: $275.00
A4: CPAC-1500-32GB-SD | B4: SD memory card 32GB | C4: $172.12
A5: CPAC-1500-64GB-SD | B5: SD memory card 64GB | C5: $285.88
A6: CPAC-1500-TR-100BASE-FX | B6: SFP form factor, Short Range, 100BF optical transceiver. Compatible with 1570R appliance | C6: $108.81
A7: CPAC-1500-TR-1LX | B7: SFP form factor, Long Range, 1Gb optical transceiver. Compatible with 1570, 1590, 1570R, 1600 and 1800 appliances | C7: $165.20
A8: CPAC-1500-TR-1SX | B8: SFP form factor, Short Range, 1Gb optical transceiver. Compatible with 1570, 1590, 1570R, 1600 and 1800 appliances | C8: $108.81
A9: CPAC-1500-TR-DSL | B9: DSL modem in SFP form factor. Compatible with 1570, 1590 WLTE appliances. | C9: $343.25
A10: CPAC-1500-TR-DSL-B | B10: DSL modem in SFP form factor. Compatible with 1570, 1590 WLTE appliances. TAE cable included for German market | C10: $343.25
A11: CPAC-1500-WIFI-ANTENNA | B11: Replacement WiFi Antennas for 1500 Wireless models. Contains two antennas. | C11: $56.38
A12: CPAC-1550/1590-PSU | B12: Replacement Power Supply for 1530, 1550 wired/wireless models and 1570, 1590 wired models | C12: $114.75
A13: CPAC-1570R-DIN-EXT | B13: DIN rail extension for rear panel mounting of 1570R WLTE model | C13: $125.63
A14: CPAC-1570R-DIN-MNT | B14: Accessory for mounting the 1570R on DIN Rail | C14: $172.12
A15: CPAC-1570R-DIN-RAIL | B15: Accessory for mounting the 1570R on 2U rack | C15: $303.68
A16: CPAC-1570R-PSU-IND | B16: Power Supply for 1570R industrial temperature range (-40C - 70C) | C16: $228.51
A17: CPAC-1570R-RM-DUAL | B17: Rack Mount shelf for Single/Dual 1570R appliances | C17: $275.00
A18: CPAC-1570R-SHOCKMT | B18: Shock resistant mount kit (supports IEC 60068-2-27) | C18: $125.63
A19: CPAC-1590-LTE-ANTENNA | B19: Replacement LTE Antennas for 1570, 1570R and 1590 Wireless LTE models. Contains four antennas. | C19: $56.38
A20: CPAC-1590-RM-EARS | B20: Rack Mount ears for 1570 and 1590 models | C20: $136.51
A21: CPAC-1590W-PSU | B21: Replacement Power Supply for 1570, 1590 wireless models | C21: $114.75
A22: CPAC-1800-TR-10LR | B22: SFP+ transceiver for 10G fiber Ports - long range (10GBase-LR) | C22: $457.01
A23: CPAC-1800-TR-10SR | B23: SFP+ transceiver for 10G fiber Ports - short range (10GBase-SR) | C23: $285.88
A24: CPAC-2-10F-SM-C | B24: 2 Port 10GBase-F SFP+ interface card for Smart-1 6 series. Requires an additional 10GBase SFP+ transceiver per interface port | C24: $12,572.73
A25: CPAC-2-10FSR-BP | B25: 2 Port 10GE short-range Fiber Bypass (Fail-Open) Network interface card (10000Base-SR) | C25: $32,168.78
A26: CPAC-2-10FSR-BP-C | B26: 2 Port 10GE Short-range Fiber Bypass (Fail-Open) Network interface card (10000Base-SR) compatible with 6000, 7000, 16000, 26000 and 28000 Security Gateways only | C26: $14,293.94
A27: CPAC-2-1F-SM-C | B27: 2 Port 1GBase-F SFP interface card for Smart-1 6 series. Requires an additional 1GBase SFP transceiver per interface port | C27: $2,057.54
A28: CPAC-4-10F-C | B28: 4 Port 10GBase-F SFP+ interface card for 6000, 7000, 16000,26000 and 28000 series. Requires an additional 10GBase SFP+ transceiver per interface port. | C28: $6,518.83
A29: CPAC-4-10F-TE | B29: 4 Port 10GBase-F SFP+ interface card. Requires an additional 10GBase SFP+ transceiver per interface port for TE appliances | C29: $22,375.70
A30: CPAC-4-1C-BP-C | B30: 4 Port 1GE copper Bypass (Fail-Open) Network interface card (10/100/1000 Base-T) compatible with 6000,7000,16000,26000 and 28000 Security Gateways only | C30: $2,571.92
A31: CPAC-4-1F-C | B31: 4 Port 1000Base-F SFP interface card compatible with 6000/7000/16000/26000/28000 Security Gateways only | C31: $1,147.47
A32: CPAC-8-1C-C | B32: 8 Port 10/100/1000 RJ45 interface card compatible with 6000/7000/16000/26000/28000 Security Gateways only | C32: $2,057.54
A33: CPAC-8-1C-TE | B33: 8 Port 10/100/1000 RJ45 interface card for TE appliances | C33: $7,062.89
A34: CPAC-AL6024-UPG-64G-INSTALL | B34: SSL Protector 6024 Memory Upgrade to 64 GB- Factory installed | C34: $17,696.79
A35: CPAC-AL6024-UPG-S-INSTALL | B35: SSL Protector 6024- Upgrade to S SSL Acceleration- Factory installed | C35: $7,409.11
A36: CPAC-AL6420-UPG-32G-TO-64G-INSTALL | B36: SSL Protector 6420- Memory Upgrade to 64 GB- Factory installed | C36: $18,864.04
A37: CPAC-AL-PLUG-COP | B37: 10Gbps Pluggable Copper 10GBASE-T | C37: $5,826.39
A38: CPAC-DAC-100G-3M | B38: 100 GbE Direct Attach Cable (DAC), 3m | C38: $1,830.02
A39: CPAC-DAC-10G-3M | B39: 10 GbE Direct Attach Cable (DAC), 3m | C39: $457.01
A40: CPAC-DAC-25G-3M | B40: 25GbE SFP28 Direct Attach Copper Cable, 3 Meter | C40: $1,830.02
A41: CPAC-DAC-40/10G-3M | B41: 40 GbE to four 10 GbE interfaces DAC Splitter, 3m length | C41: $1,830.02
A42: CPAC-DAC-40G-3M | B42: 40 GbE Direct Attach Cable (DAC), 3m | C42: $1,147.47
A43: CPAC-DP-100SR4-QSFP | B43: 100Gbps Pluggable Optics Multimode SR4 | C43: $13,967.50
A44: CPAC-DP-10G-LR-BPM | B44: 10 Gigabit Fiber (LR) Intelligent Bypass Switch Module, Single -mode | C44: $32,247.92
A45: CPAC-DP-10G-SR-BPM | B45: 10 Gigabit Fiber (SR) Intelligent Bypass Switch Module, Multi-mode | C45: $31,436.78
A46: CPAC-DP-10LR-SFP | B46: 10Gbps Pluggable Optics Singlemode LR | C46: $4,530.54
A47: CPAC-DP-10LR-XFP | B47: 10Gbps Pluggable Optics (XFP) Singlemode LR | C47: $4,767.94
A48: CPAC-DP-10SR-SFP | B48: 10Gbps Pluggable Optics Multimode SR | C48: $2,383.97
A49: CPAC-DP-10SR-XFP | B49: 10Gbps Pluggable Optics (XFP) Multimode SR | C49: $2,116.89
A50: CPAC-DP-1C-SFP | B50: 1Gbps Pluggable Copper 1000BASET | C50: $529.22
A51: CPAC-DP-1G-LX-BPM | B51: Gigabit Fiber (LX) Intelligent Bypass Switch Module, Single mode | C51: $9,526.00
A52: CPAC-DP-1G-SX-BPM | B52: Gigabit Fiber (SX) Intelligent Bypass Switch Module, Multi-mode | C52: $8,892.91
A53: CPAC-DP-1LX-SFP | B53: 1Gbps Pluggable Optics Singlemode LX | C53: $444.15
A54: CPAC-DP-1SX-SFP | B54: 1Gbps Pluggable Optics Multimode SX | C54: $306.65
A55: CPAC-DP-1ZX-SFP | B55: 1Gbps Pluggable Optics Singlemode ZX | C55: $2,225.70
A56: CPAC-DP-2RM | B56: Two Slot Rack Mount Frame for bypass switches | C56: $159.26
A57: CPAC-DP-40LR-QSFP | B57: 40Gbps Pluggable Optics Singlemode LR | C57: $36,837.81
A58: CPAC-DP-40SR-QSFP | B58: 40Gbps Pluggable Optics Multimode SR | C58: $6,983.75
A59: CPAC-DP-BP-AC2 | B59: Intelligent bypass AC switch 1U unit-chassis only. Can host up to 4 bypass modules 1G | C59: $8,704.96
A60: CPAC-DP-BP-CO-100Gb | B60: Intelligent Bypass Switch 1U unit for 100 Giga Fiber - Chassis only | C60: $147,479.83
A61: CPAC-DP-BP-DC | B61: Ext. Bypass chassis for 1GBE & 10GbE Fiber interface | C61: $7,201.38
A62: CPAC-DP-BP-SR4-100Gb | B62: 100 Gigabit Fiber (SR4) Intelligent Bypass Switch Module, Multi-mode | C62: $257,310.70
A63: CPAC-EXP-SLOTS-COVERS | B63: Expansion slot cover for 5000 / 6000 / 15000 / 16000 / 23000 / 26000 / 28000 appliances. | C63: $22.45
A64: CPAC-FAN-16000 | B64: Replacement fan cartridge for 16000 appliances | C64: $682.55
A65: CPAC-FAN-26000/28000 | B65: Replacement fan cartridge for 26000 and 28000 appliances | C65: $682.55
A66: CPAC-FAN-MHO140 | B66: Fan replacement for Maestro Hyperscale Orchestrator 140 | C66: $2,057.54
A67: CPAC-FAN-MHO170 | B67: Fan replacement for Maestro Hyperscale Orchestrator 170 | C67: $2,057.54
A68: CPAC-FAN-MHO175 | B68: Fan replacement for Maestro Hyperscale Orchestrator 175 | C68: $2,057.54
A69: CPAC-HDD-1T-C | B69: Additional/Replacement 1TB Hard Drive for 16000/26000 appliances | C69: $1,483.80
A70: CPAC-HDD-4TB-SM6000-L | B70: Additional/Replacement 4TB Hard Drive for Smart-1 6000-L | C70: $2,631.27
A71: CPAC-HDD-4TB-SM600M | B71: Additional/Replacement 4TB Hard Drive for Smart-1 600-M appliance | C71: $2,631.27
A72: CPAC-HDD-4TB-SM600M-INSTALL | B72: Additional/Replacement 4TB Hard Drive for Smart-1 600-M appliance | C72: $2,631.27
A73: CPAC-LOM-C | B73: Light Out Management module appliances | C73: $801.25
A74: CPAC-NGSM6000L-UPG-PLUS | B74: Upgrade kit of Smart-1 6000-L Base Security Management, Log and SmartEvent to Smart-1 6000-L Plus Security Management, Log and SmartEvent | C74: $48,015.77
A75: CPAC-NGSM6000L-UPG-PLUS-EVNT | B75: Upgrade kit of Smart-1 6000-L Base SmartEvent to Smart-1 6000-L Plus SmartEvent | C75: $48,015.77
A76: CPAC-NGSM6000L-UPG-PLUS-MLOG | B76: Upgrade kit of Smart-1 6000-L Base Multi-Log to Smart-1 6000-L Plus SmartEvent | C76: $48,015.77
A77: CPAC-NGSM6000XL-UPG-PLUS | B77: Upgrade kit of Smart-1 6000-XL Base Securtiy Management, Log and SmartEvent to Smart-1 6000-XL Plus Securtiy Management, Log and SmartEven | C77: $66,296.18
A78: CPAC-NGSM6000XL-UPG-PLUS-EVNT | B78: Upgrade kit of Smart-1 6000-XL Base SmartEvent to Smart-1 6000-L Plus SmartEvent | C78: $66,296.18
A79: CPAC-NGSM6000XL-UPG-PLUS-MGMT | B79: Upgrade kit of Smart-1 6000-L Base Recomended for Security Management to Smart-1 6000-L Plus Dedicated Security Management | C79: $66,296.18
A80: CPAC-NGSM6000XL-UPG-PLUS-MLOG | B80: Upgrade kit of Smart-1 6000-L Base Multi-Log to Smart-1 6000-L Plus Multi-Log | C80: $66,296.18
A81: CPAC-NGSM600M-UPG-PLUS | B81: Upgrade kit of Smart-1 600-M Base Security Management Server,Log and SmartEvent to Smart-1 600-M Plus Security Management Server,Log and SmartEvent | C81: $16,005.26
